Workbook

Sheet Intro
B4: Sample Budget for Blueberry Production in Tennessee
B5: Version 1.0
B7: Margarita Velandia and Riley Denton
B8: Professor and Research Assistant
B9: Office: (865) 974-7409 emails: mvelandia@utk.edu, rdenton5@vols.utk.edu
B11: Becky Bowling
B12: Extension Specialist
B13: Office: (865) 974-7016 Email: bowling10@utk.edu
B16: This sample budget spreadsheet tool was developed as a decision aid to assist Tennessee blueberry producers in estimating the cost of production.
B18: General Budget Assumptions
B19: 1. You can select the space between rows and bed centers you want to use. This selection will determine the number of plants per acre. You have to options 6 ft x12 ft, and 6 ft x 10 ft.
B20: 2. You can select one of two Integrated Pest Management (IPM) scenarios: Low and Moderate. Each scenario will have different implications for the chemicals you will apply and the frequency of application.
B21: 3. You can select three scenarios to market your blueberries: 1) 100% Retail (e.g., on-farm or at Farmers Markets); 2) 50% Pick-your_Own (PYO) AND 50% Ready Picked to be marketed on-farm or at Farmers Markets; 3) 75% Pick-your_Own (PYO) AND 25% Ready Picked to be marketed on-farm or at Farmers Markets.
B23: Summary Budget
B24: In this spreadsheet, you can see a summary of total costs by year. You will be able to print this summary budget using the print button.
B26: Blueberry Budget Y0 to Y7
B27: These spreadsheets will provide a summary budget for each year. You will be able to print each year's budget using the print button. In these spreadsheets, you will be able to change input price and quantity; labor hours and costs; and implement and tractors direct and fixed costs.
B29: Blueberry Budget Year 0
B30: Blueberry Budget Year 1
B31: Blueberry Budget Year 2
B32: Blueberry Budget Year 3
B33: Blueberry Budget Year 4
B34: Blueberry Budget Year 5
B35: Blueberry Budget Year 6
B36: Blueberry Budget Year 7
B38: *User can click on blue italic text to go to budgets.
B39: *Spreadsheet cells highlighted in grey can be modified by users to reflect their specific situation.
B40: *The print button allows the user to print a one page summary of the budget/scenario.
B41: *The Reset Defaults button will allow you to return to default values.
B43: Programs in agriculture and natural resources, 4-H youth development, family and consumer sciences, and resource development.
B44: University of Tennessee Institute of Agriculture, U.S. Department of Agriculture and country governments cooperating.
B45: UT Extension provide equal opportunities in programs and employment.

Sheet General Budget Assumptions
B1: Budget Assumptions
B2: Blueberry Species | C2: Rabbiteye
B3: 1. Space between rows and plants (select space between rows and plants) | C3: 6'x10'
B4: 2.IMP Treatment # 1 (select low or moderate) | C4: Low
B5: 3. Market outlet (select market outlet combination from drop down list) | C5: 100% Ready_Picked_Retail
B7: 1. You can select the space between rows and bed centers you want to use. This selection will determine the number of plants per acre. You have to options 6 ft x12 ft, and 6 ft x 10 ft.
B8: 2. You can select one of two Integrated Pest Management (IPM) scenarios: Low and Moderate. Each scenario will have different implications for the chemicals you will apply and the frequency of application.
B9: 3. You can select three scenarios to market your blueberries: 1) 100% Retail (e.g., on-farm or at Farmers Markets); 2) 50% Pick-your_Own (PYO) AND 50% Ready Picked to be marketed on-farm or at Farmers Markets; 3) 75% Pick-your_Own (PYO) AND 25% Ready Picked to be marketed on-farm or at Farmers Markets.

Sheet Labor_Fuel_Interest (hidden)
B2: Fuel
B3: Fuel Type | C3: Price/Gallon | D3: FARMER DISCCOUNT | E3: FINAL PRICE/GAL
B4: Diesel | C4: 2.3 | D4: 0 | E4: =C4-D4 -> 2.3
B5: Gasoline | C5: 2.2 | D5: 0 | E5: 2.2
B6: LP Gas | C6: 2.64 | D6: 0 | E6: 2.64
B9: Labor | D9: Details
B10: Labor Type | C10: Wage/Hour
B11: Operator | C11: 17.27 | D11: 2019 Department of Labor
B12: Hand | C12: 12.4 | D12: 2020 Adverse Effect Wage Rate
B14: Interest
B15: Short term | C15: 0.0525
B16: Intermediate-term | C16: 0.0625

Sheet Yield (hidden)
A1: Estimated yields by year of blueberry production in Tennessee
A3: Production | B3: Pint/acre | C3: % of full production
A4: 0 | B4: 0 | C4: 0
A5: 1 | B5: 0 | C5: 0
A6: 2 | B6: 0 | C6: 0
A7: 3 | B7: 2000 | C7: 0.17
A8: 4 | B8: 6000 | C8: 0.5
A9: 5 | B9: 9960 | C9: 0.83
A10: 6 | B10: 12000 | C10: 1
A11: 7 | B11: 12000 | C11: 1
A12: 8 | B12: 12000 | C12: 1
A13: 9 | B13: 12000 | C13: 1
A14: 10 | B14: 12000 | C14: 1
A15: 11 | B15: 12000 | C15: 1
A16: 12 | B16: 12000 | C16: 1
A17: 13 | B17: 12000 | C17: 1
A18: 14 | B18: 12000 | C18: 1
A19: 15 | B19: 12000 | C19: 1

Sheet Blueberry prices (hidden)
B2: U-Pick | C2: Ready-Picked
B3: $/pint
A4: Producer A | B4: 2.25 | C4: 3
A5: Producer B | B5: 2.25
A6: Producer C | B6: 3
A7: Producer D | B7: 2.2 | C7: 3.85
A8: Producer E | B8: 2.25 | C8: 4
A9: Average prices | B9: =+AVERAGE(B4:B8) -> 2.39 | C9: =+AVERAGE(C4:C8) -> 3.616666667 | H9: =+G9*0.75 -> 0

Sheet Summary Budget
B2: Year 0 | C2: % | D2: Year 1 | E2: % | F2: Year 2 | G2: % | H2: Year 3 | I2: % | J2: Year 4 | K2: % | L2: Year 5 | M2: % | N2: Year 6 | O2: % | P2: Year 7 | Q2: % | R2: Total | S2: %
A3: Planting/Replanting | B3: 0 | C3: =+B3/B$21 -> 0 | D3: =+SUM('Blueberry Budget Y1 '!U$10,'Blueberry Budget Y1 '!U$11,'Blueberry Budget Y1 '!U$12) -> 3625.392 | E3: =+D3/D$21 -> 0.7340290433 | F3: =+SUM('Blueberry Budget Y2 '!U$10,'Blueberry Budget Y2 '!U$11,'Blueberry Budget Y2 '!U$12) -> 153.092 | G3: =+F3/F$21 -> 0.05282925979 | H3: 0 | I3: =+H3/H$21 -> 0 | J3: 0 | K3: =+J3/J$21 -> 0 | L3: 0 | M3: =+L3/L$21 -> 0 | N3: 0 | O3: =+N3/N$21 -> 0 | P3: 0 | Q3: =+P3/P$21 -> 0 | R3: =+SUM(B3,D3,F3,H3,J3,L3,N3,P3) -> 3778.484 | S3: =+R3/R$21 -> 0.05146035619
A4: Remove Fruit Buds and Prune | B4: 0 | C4: 0 | D4: =+'Blueberry Budget Y1 '!U$13 -> 119.4 | E4: 0.02417478379 | F4: =+SUM('Blueberry Budget Y2 '!U$13) -> 74.4 | G4: 0.02567408439 | H4: =+SUM('Blueberry Budget Y3'!U$9) -> 297.6 | I4: 0.07298804507 | J4: =+SUM('Blueberry Budget Y4'!U$9) -> 446.4 | K4: 0.0443573858 | L4: =+SUM('Blueberry Budget Y5'!U$9) -> 744 | M4: 0.05761595933 | N4: =+SUM('Blueberry Budget Y6 '!U$9) -> 744 | O4: 0.04463796764 | P4: =+SUM('Blueberry Budget Y7'!U$9) -> 744 | Q4: 0.04942206388 | R4: =+SUM(B4,D4,F4,H4,J4,L4,N4,P4) -> 3169.8 | S4: 0.04317049829
A5: Front End Loader | B5: =+SUM('Blueberry Budget Y0'!U$16) -> 23.4306 | C5: 0.003439285577 | D5: 0 | E5: 0 | F5: 0 | G5: 0 | H5: 0 | I5: 0 | J5: 0 | K5: 0 | L5: 0 | M5: 0 | N5: 0 | O5: 0 | P5: 0 | Q5: 0 | R5: 23.4306 | S5: 0.0003191086747
A6: Disk | B6: =+SUM('Blueberry Budget Y0'!U$7) -> 20.90966 | C6: 0.003069246714 | D6: 0 | E6: 0 | F6: 0 | G6: 0 | H6: 0 | I6: 0 | J6: 0 | K6: 0 | L6: 0 | M6: 0 | N6: 0 | O6: 0 | P6: 0 | Q6: 0 | R6: 20.90966 | S6: 0.0002847752039
A7: Subsoiler | B7: =+SUM('Blueberry Budget Y0'!U$15) -> 15.779004 | C7: 0.002316137908 | D7: 0 | E7: 0 | F7: 0 | G7: 0 | H7: 0 | I7: 0 | J7: 0 | K7: 0 | L7: 0 | M7: 0 | N7: 0 | O7: 0 | P7: 0 | Q7: 0 | R7: 15.779004 | S7: 0.000214899194
A8: Construct Beds | B8: =+SUM('Blueberry Budget Y0'!U$21,'Blueberry Budget Y0'!U$22,'Blueberry Budget Y0'!U$14) -> 95.460788 | C8: 0.01401231344 | D8: 0 | E8: 0 | F8: 0 | G8: 0 | H8: 0 | I8: 0 | J8: 0 | K8: 0 | L8: 0 | M8: 0 | N8: 0 | O8: 0 | P8: 0 | Q8: 0 | R8: 95.460788 | S8: 0.001300110349
A9: Fertilizer | B9: =SUM('Blueberry Budget Y0'!U$12) -> 193.377985 | C9: 0.0283851935 | D9: =+SUM('Blueberry Budget Y1 '!U$19,'Blueberry Budget Y1 '!U$20,'Blueberry Budget Y1 '!U$31,'Blueberry Budget Y1 '!U$32,'Blueberry Budget Y1 '!U$42,'Blueberry Budget Y1 '!U$43) -> 163.258818 | E9: 0.03305482938 | F9: =+SUM('Blueberry Budget Y2 '!U$23,'Blueberry Budget Y2 '!U$24,'Blueberry Budget Y2 '!U$35,'Blueberry Budget Y2 '!U$36,'Blueberry Budget Y2 '!U$46,'Blueberry Budget Y2 '!U$47) -> 140.788818 | G9: 0.04858365585 | H9: =+SUM('Blueberry Budget Y3'!U$15,'Blueberry Budget Y3'!U$16,'Blueberry Budget Y3'!U$27,'Blueberry Budget Y3'!U$28,'Blueberry Budget Y3'!U$38,'Blueberry Budget Y3'!U$39) -> 140.788818 | I9: 0.03452923587 | J9: =+SUM('Blueberry Budget Y4'!U$19,'Blueberry Budget Y4'!U$20,'Blueberry Budget Y4'!U$31,'Blueberry Budget Y4'!U$32,'Blueberry Budget Y4'!U$42,'Blueberry Budget Y4'!U$43) -> 140.788818 | K9: 0.01398974892 | L9: =+SUM('Blueberry Budget Y5'!U$15,'Blueberry Budget Y5'!U$16,'Blueberry Budget Y5'!U$27,'Blueberry Budget Y5'!U$28,'Blueberry Budget Y5'!U$38,'Blueberry Budget Y5'!U$39) -> 140.788818 | M9: 0.01090279948 | N9: =+SUM('Blueberry Budget Y6 '!U$19,'Blueberry Budget Y6 '!U$20,'Blueberry Budget Y6 '!U$31,'Blueberry Budget Y6 '!U$32,'Blueberry Budget Y6 '!U$42,'Blueberry Budget Y6 '!U$43) -> 140.788818 | O9: 0.008446944492 | P9: =+SUM('Blueberry Budget Y7'!U$15,'Blueberry Budget Y7'!U$16,'Blueberry Budget Y7'!U$27,'Blueberry Budget Y7'!U$28,'Blueberry Budget Y7'!U$38,'Blueberry Budget Y7'!U$39) -> 140.788818 | Q9: 0.009352249942 | R9: 1201.369711 | S9: 0.0163618301
A10: Sulfur Application | B10: =SUM('Blueberry Budget Y0'!U$11) -> 254.127985 | C10: 0.03730244695 | D10: 0 | E10: 0 | F10: 0 | G10: 0 | H10: 0 | I10: 0 | J10: 0 | K10: 0 | L10: 0 | M10: 0 | N10: 0 | O10: 0 | P10: 0 | Q10: 0 | R10: 254.127985 | S10: 0.003461048565
A11: Fungicides/Insecticides | B11: 0 | C11: 0 | D11: =+SUM('Blueberry Budget Y1 '!U$22,'Blueberry Budget Y1 '!U$23,'Blueberry Budget Y1 '!U$24,'Blueberry Budget Y1 '!U$25,'Blueberry Budget Y1 '!U$34,'Blueberry Budget Y1 '!U$35,'Blueberry Budget Y1 '!U$36,'Blueberry Budget Y1 '!U$45,'Blueberry Budget Y1 '!U$46,'Blueberry Budget Y1 '!U$47,'Blueberry Budget Y1 '!U$48,'Blueberry Budget Y1 '!U$54,'Blueberry Budget Y1 '!U$55,'Blueberry Budget Y1 '!U$56) -> 214.4870833 | E11: 0.04342695868 | F11: =+SUM('Blueberry Budget Y2 '!U$26,'Blueberry Budget Y2 '!U$27,'Blueberry Budget Y2 '!U$28,'Blueberry Budget Y2 '!U$29,'Blueberry Budget Y2 '!U$38,'Blueberry Budget Y2 '!U$39,'Blueberry Budget Y2 '!U$40,'Blueberry Budget Y2 '!U$49,'Blueberry Budget Y2 '!U$50,'Blueberry Budget Y2 '!U$51,'Blueberry Budget Y2 '!U$52,'Blueberry Budget Y2 '!U$58,'Blueberry Budget Y2 '!U$59,'Blueberry Budget Y2 '!U$60) -> 214.4870833 | G11: 0.07401558439 | H11: =+SUM('Blueberry Budget Y3'!U$18,'Blueberry Budget Y3'!U$19,'Blueberry Budget Y3'!U$20,'Blueberry Budget Y3'!U$21,'Blueberry Budget Y3'!U$30,'Blueberry Budget Y3'!U$31,'Blueberry Budget Y3'!U$32,'Blueberry Budget Y3'!U$41,'Blueberry Budget Y3'!U$42,'Blueberry Budget Y3'!U$43,'Blueberry Budget Y3'!U$44,'Blueberry Budget Y3'!U$50,'Blueberry Budget Y3'!U$51,'Blueberry Budget Y3'!U$52) -> 214.4870833 | I11: 0.05260414283 | J11: =+SUM('Blueberry Budget Y4'!U$22,'Blueberry Budget Y4'!U$23,'Blueberry Budget Y4'!U$24,'Blueberry Budget Y4'!U$25,'Blueberry Budget Y4'!U$34,'Blueberry Budget Y4'!U$35,'Blueberry Budget Y4'!U$36,'Blueberry Budget Y4'!U$45,'Blueberry Budget Y4'!U$46,'Blueberry Budget Y4'!U$47,'Blueberry Budget Y4'!U$48,'Blueberry Budget Y4'!U$54,'Blueberry Budget Y4'!U$55,'Blueberry Budget Y4'!U$56) -> 214.4870833 | K11: 0.02131291735 | L11: =SUM('Blueberry Budget Y5'!U$18,'Blueberry Budget Y5'!U$19,'Blueberry Budget Y5'!U$20,'Blueberry Budget Y5'!U$21,'Blueberry Budget Y5'!U$30,'Blueberry Budget Y5'!U$31,'Blueberry Budget Y5'!U$32,'Blueberry Budget Y5'!U$41,'Blueberry Budget Y5'!U$42,'Blueberry Budget Y5'!U$43,'Blueberry Budget Y5'!U$44,'Blueberry Budget Y5'!U$50,'Blueberry Budget Y5'!U$51,'Blueberry Budget Y5'!U$52) -> 214.4870833 | M11: 0.01661005251 | N11: =+SUM('Blueberry Budget Y6 '!U$22,'Blueberry Budget Y6 '!U$23,'Blueberry Budget Y6 '!U$24,'Blueberry Budget Y6 '!U$25,'Blueberry Budget Y6 '!U$34,'Blueberry Budget Y6 '!U$35,'Blueberry Budget Y6 '!U$36,'Blueberry Budget Y6 '!U$45,'Blueberry Budget Y6 '!U$46,'Blueberry Budget Y6 '!U$47,'Blueberry Budget Y6 '!U$48,'Blueberry Budget Y6 '!U$54,'Blueberry Budget Y6 '!U$55,'Blueberry Budget Y6 '!U$56) -> 214.4870833 | O11: 0.01286863909 | P11: =+SUM('Blueberry Budget Y7'!U$18,'Blueberry Budget Y7'!U$19,'Blueberry Budget Y7'!U$20,'Blueberry Budget Y7'!U$21,'Blueberry Budget Y7'!U$30,'Blueberry Budget Y7'!U$31,'Blueberry Budget Y7'!U$32,'Blueberry Budget Y7'!U$41,'Blueberry Budget Y7'!U$42,'Blueberry Budget Y7'!U$43,'Blueberry Budget Y7'!U$44,'Blueberry Budget Y7'!U$50,'Blueberry Budget Y7'!U$51,'Blueberry Budget Y7'!U$52) -> 214.4870833 | Q11: 0.01424784185 | R11: 1501.409583 | S11: 0.02044816703
A12: Soil Testing | B12: =+SUM('Blueberry Budget Y0'!U$8,'Blueberry Budget Y0'!U$9,'Blueberry Budget Y0'!U$10) -> 133.3475 | C12: 0.01957355482 | D12: =SUM('Blueberry Budget Y1 '!U$7,'Blueberry Budget Y1 '!U$8) -> 22.44 | E12: 0.004543401577 | F12: =+SUM('Blueberry Budget Y2 '!U$7,'Blueberry Budget Y2 '!U$8) -> 22.44 | G12: 0.007743635132 | H12: =SUM('Blueberry Budget Y3'!U$7,'Blueberry Budget Y3'!U$8) -> 22.44 | I12: 0.005503534044 | J12: =+SUM('Blueberry Budget Y4'!U$7,'Blueberry Budget Y4'!U$8) -> 22.44 | K12: 0.002229793318 | L12: =SUM('Blueberry Budget Y5'!U$7,'Blueberry Budget Y5'!U$8) -> 22.44 | M12: 0.001737771677 | N12: =+SUM('Blueberry Budget Y6 '!U$7,'Blueberry Budget Y6 '!U$8) -> 22.44 | O12: 0.001346338701 | P12: =+SUM('Blueberry Budget Y7'!U$7,'Blueberry Budget Y7'!U$8) -> 22.44 | Q12: 0.001490633217 | R12: 290.4275 | S12: 0.003955423021
A13: Mowing | B13: 0 | C13: 0 | D13: =+SUM('Blueberry Budget Y1 '!U$17,'Blueberry Budget Y1 '!U$29,'Blueberry Budget Y1 '!U$40,'Blueberry Budget Y1 '!U$52,'Blueberry Budget Y1 '!U$60,'Blueberry Budget Y1 '!U$64) -> 80.127708 | E13: 0.01622336697 | F13: =SUM('Blueberry Budget Y2 '!U$21,'Blueberry Budget Y2 '!U$33,'Blueberry Budget Y2 '!U$44,'Blueberry Budget Y2 '!U$56,'Blueberry Budget Y2 '!U$64,'Blueberry Budget Y2 '!U$68) -> 80.127708 | G13: 0.02765061206 | H13: =+SUM('Blueberry Budget Y3'!U$13,'Blueberry Budget Y3'!U$25,'Blueberry Budget Y3'!U$36,'Blueberry Budget Y3'!U$48,'Blueberry Budget Y3'!U$56,'Blueberry Budget Y3'!U$60) -> 80.127708 | I13: 0.01965176332 | J13: =SUM('Blueberry Budget Y4'!U$17,'Blueberry Budget Y4'!U$29,'Blueberry Budget Y4'!U$40,'Blueberry Budget Y4'!U$52,'Blueberry Budget Y4'!U$60,'Blueberry Budget Y4'!U$64) -> 80.127708 | K13: 0.007962042242 | L13: =SUM('Blueberry Budget Y5'!U$13,'Blueberry Budget Y5'!U$25,'Blueberry Budget Y5'!U$36,'Blueberry Budget Y5'!U$48,'Blueberry Budget Y5'!U$56,'Blueberry Budget Y5'!U$60) -> 80.127708 | M13: 0.006205154254 | N13: =SUM('Blueberry Budget Y6 '!U$17,'Blueberry Budget Y6 '!U$29,'Blueberry Budget Y6 '!U$40,'Blueberry Budget Y6 '!U$52,'Blueberry Budget Y6 '!U$60,'Blueberry Budget Y6 '!U$64) -> 80.127708 | O13: 0.004807443598 | P13: =+SUM('Blueberry Budget Y7'!U$13,'Blueberry Budget Y7'!U$25,'Blueberry Budget Y7'!U$36,'Blueberry Budget Y7'!U$48,'Blueberry Budget Y7'!U$56,'Blueberry Budget Y7'!U$60) -> 80.127708 | Q13: 0.005322683741 | R13: 560.893956 | S13: 0.007638990336
A14: Seed Grass | B14: =SUM('Blueberry Budget Y0'!U$24,'Blueberry Budget Y0'!U$25,'Blueberry Budget Y0'!U$26) -> 45.24919186 | C14: 0.006641950822 | D14: 0 | E14: 0 | F14: 0 | G14: 0 | H14: 0 | I14: 0 | J14: 0 | K14: 0 | L14: 0 | M14: 0 | N14: 0 | O14: 0 | P14: 0 | Q14: 0 | R14: 45.24919186 | S14: 0.0006162629061
A15: Irrigation | B15: =SUM('Blueberry Budget Y0'!U$27) -> 258 | C15: 0.0378708048 | D15: =+SUM('Blueberry Budget Y1 '!U$15,'Blueberry Budget Y1 '!U$27,'Blueberry Budget Y1 '!U$38,'Blueberry Budget Y1 '!U$50,'Blueberry Budget Y1 '!U$58,'Blueberry Budget Y1 '!U$62,'Blueberry Budget Y1 '!U$66,'Blueberry Budget Y1 '!U$67) -> 400.6 | E15: 0.08110903172 | F15: =+SUM('Blueberry Budget Y2 '!U$19,'Blueberry Budget Y2 '!U$31,'Blueberry Budget Y2 '!U$42,'Blueberry Budget Y2 '!U$54,'Blueberry Budget Y2 '!U$62,'Blueberry Budget Y2 '!U$66,'Blueberry Budget Y2 '!U$70,'Blueberry Budget Y2 '!U$71) -> 400.6 | G15: 0.1382397609 | H15: =+SUM('Blueberry Budget Y3'!U$11,'Blueberry Budget Y3'!U$23,'Blueberry Budget Y3'!U$34,'Blueberry Budget Y3'!U$46,'Blueberry Budget Y3'!U$54,'Blueberry Budget Y3'!U$58,'Blueberry Budget Y3'!U$62,'Blueberry Budget Y3'!U$63) -> 400.6 | I15: 0.09824936444 | J15: =+SUM('Blueberry Budget Y4'!U$15,'Blueberry Budget Y4'!U$27,'Blueberry Budget Y4'!U$38,'Blueberry Budget Y4'!U$50,'Blueberry Budget Y4'!U$58,'Blueberry Budget Y4'!U$62,'Blueberry Budget Y4'!U$66,'Blueberry Budget Y4'!U$67) -> 400.6 | K15: 0.03980638161 | L15: =+SUM('Blueberry Budget Y5'!U$11,'Blueberry Budget Y5'!U$23,'Blueberry Budget Y5'!U$34,'Blueberry Budget Y5'!U$46,'Blueberry Budget Y5'!U$54,'Blueberry Budget Y5'!U$58,'Blueberry Budget Y5'!U$62,'Blueberry Budget Y5'!U$63) -> 400.6 | M15: 0.0310227867 | N15: =+SUM('Blueberry Budget Y6 '!U$15,'Blueberry Budget Y6 '!U$27,'Blueberry Budget Y6 '!U$38,'Blueberry Budget Y6 '!U$50,'Blueberry Budget Y6 '!U$58,'Blueberry Budget Y6 '!U$62,'Blueberry Budget Y6 '!U$66,'Blueberry Budget Y6 '!U$67) -> 400.6 | O15: 0.02403490569 | P15: =+SUM('Blueberry Budget Y7'!U$11,'Blueberry Budget Y7'!U$23,'Blueberry Budget Y7'!U$34,'Blueberry Budget Y7'!U$46,'Blueberry Budget Y7'!U$54,'Blueberry Budget Y7'!U$58,'Blueberry Budget Y7'!U$62,'Blueberry Budget Y7'!U$63) -> 400.6 | Q15: 0.02661085859 | R15: 3062.2 | S15: 0.04170506021
A16: Incorporating Mulch | B16: =SUM('Blueberry Budget Y0'!U$18,'Blueberry Budget Y0'!U$19,'Blueberry Budget Y0'!U$20) -> 5551.757267 | C16: 0.8149206036 | D16: 0 | E16: 0 | F16: =+SUM('Blueberry Budget Y2 '!U$17,'Blueberry Budget Y2 '!U$16,'Blueberry Budget Y2 '!U$15) -> 1565.257267 | G16: 0.5401417629 | H16: 0 | I16: 0 | J16: =+SUM('Blueberry Budget Y4'!U$11,'Blueberry Budget Y4'!U$12,'Blueberry Budget Y4'!U$13) -> 1565.257267 | K16: 0.155534768 | L16: 0 | M16: 0 | N16: =+SUM('Blueberry Budget Y6 '!U$11,'Blueberry Budget Y6 '!U$12,'Blueberry Budget Y6 '!U$13) -> 1565.257267 | O16: 0.09391116023 | P16: 0 | Q16: 0 | R16: 10247.52907 | S16: 0.1395643056
A17: Harvest | B17: 0 | C17: 0 | D17: 0 | E17: 0 | F17: 0 | G17: 0 | H17: =+SUM('Blueberry Budget Y3'!U$66) -> 992 | I17: 0.2432934836 | J17: =SUM('Blueberry Budget Y4'!U$70) -> 2976 | K17: 0.2957159053 | L17: =+SUM('Blueberry Budget Y5'!U$66) -> 4940.16 | M17: 0.3825699699 | N17: =+SUM('Blueberry Budget Y6 '!U$70) -> 5952 | O17: 0.3571037411 | P17: =+SUM('Blueberry Budget Y7'!U$66) -> 5952 | Q17: 0.395376511 | R17: 20812.16 | S17: 0.2834473208
A18: Post-harvest | B18: 0 | C18: 0 | D18: 0 | E18: 0 | F18: 0 | G18: 0 | H18: =+SUM('Blueberry Budget Y3'!U$65,'Blueberry Budget Y3'!U$68,'Blueberry Budget Y3'!U$69,'Blueberry Budget Y3'!U$70) -> 1519.933333 | I18: 0.3727720519 | J18: =SUM('Blueberry Budget Y4'!U$69,'Blueberry Budget Y4'!U$72,'Blueberry Budget Y4'!U$73,'Blueberry Budget Y4'!U$74) -> 3606.6 | K18: 0.3583766748 | L18: =SUM('Blueberry Budget Y5'!U$65,'Blueberry Budget Y5'!U$68,'Blueberry Budget Y5'!U$69,'Blueberry Budget Y5'!U$70) -> 5672.4 | M18: 0.4392752254 | N18: =+SUM('Blueberry Budget Y6 '!U$69,'Blueberry Budget Y6 '!U$72,'Blueberry Budget Y6 '!U$73,'Blueberry Budget Y6 '!U$74) -> 6736.6 | O18: 0.4041775978 | P18: =+SUM('Blueberry Budget Y7'!U$65,'Blueberry Budget Y7'!U$68,'Blueberry Budget Y7'!U$69,'Blueberry Budget Y7'!U$70) -> 6736.6 | Q18: 0.4474955316 | R18: 24272.13333 | S18: 0.3305697806
A19: Financial | B19: =+'Blueberry Budget Y0'!U$29 -> 192.5276055 | C19: 0.02826036964 | D19: =+'Blueberry Budget Y1 '!U$69 -> 129.7450186 | E19: 0.02626932808 | F19: =+'Blueberry Budget Y2 '!U$73 -> 67.92643319 | G19: 0.02344017444 | H19: =SUM('Blueberry Budget Y3'!U$72) -> 86.45412277 | I19: 0.02120335151 | J19: ='Blueberry Budget Y4'!U$76 -> 266.4756222 | K19: 0.02647885748 | L19: =SUM('Blueberry Budget Y5'!U$72) -> 353.5487061 | M19: 0.0273790966 | N19: =+SUM('Blueberry Budget Y6 '!U$76) -> 466.5881222 | O19: 0.02799401277 | P19: =+SUM('Blueberry Budget Y7'!U$72) -> 418.4249561 | Q19: 0.02779492595 | R19: 1981.690587 | S19: 0.02698926433
A20: Operator/Unpaid family labor | B20: =+'Blueberry Budget Y0'!U$30 -> 28.6682 | C20: 0.004208092272 | D20: =+'Blueberry Budget Y1 '!U$70 -> 183.5801 | E20: 0.0371692565 | F20: =+'Blueberry Budget Y2 '!U$74 -> 178.7445 | G20: 0.06168147013 | H20: =+SUM('Blueberry Budget Y3'!U$73) -> 322.949 | I20: 0.07920502745 | J20: =SUM('Blueberry Budget Y4'!U$77) -> 344.5365 | K20: 0.0342355252 | L20: =SUM('Blueberry Budget Y5'!U$73) -> 344.5365 | M20: 0.0266811841 | N20: =+SUM('Blueberry Budget Y6 '!U$77) -> 344.5365 | O20: 0.02067124884 | P20: =+SUM('Blueberry Budget Y7'!U$73) -> 344.5365 | Q20: 0.02288670015 | R20: 2092.0878 | S20: 0.02849279853
A21: Total Costs | B21: =SUM(B3:B20) -> 6812.635786 | C21: 1 | D21: =SUM(D3:D20) -> 4939.030728 | E21: 1 | F21: =SUM(F3:F20) -> 2897.863809 | G21: 1 | H21: =SUM(H3:H20) -> 4077.380065 | I21: 1 | J21: =SUM(J3:J20) -> 10063.713 | K21: 1 | L21: =SUM(L3:L20) -> 12913.08882 | M21: 1 | N21: =SUM(N3:N20) -> 16667.4255 | O21: 1 | P21: =SUM(P3:P20) -> 15054.00507 | Q21: 1 | R21: 73425.14277 | S21: 1

Sheet Blueberry Budget Y0
B2: Blueberry Enterprise Budget Year 0
X3: Budget Year 0
B4: Operation / Operating Input | C4: Size/ Unit | D4: Power Unit Size | F4: # | G4: Perf Rate | H4: Times Over | I4: Month | J4: Power Unit Cost | N4: Equipment Cost | P4: Alloc Labor | R4: Operating / Durable Input | U4: Total Costs
J5: R & M | K5: Fuel | L5: Direct | M5: Fixed | N5: Direct | O5: Fixed | P5: Hours | Q5: Cost | R5: Amount | S5: Price | T5: Cost | X5: Items | Z5: Unit | AA5: Price | AB5: Quantity | AC5: Amount | AD5: Your Farm
B7: Disk Harrow | C7: 6ft | D7: MFWD 50hp | F7: 4 | G7: =+Equipment!I$19 -> 0.33 | H7: 2 | I7: June | J7: =(Equipment!M$19)*H7 -> 0.561 | K7: =Equipment!$K$19*H7 -> 3.90126 | L7: =J7+K7 -> 4.46226 | M7: =+H7*Equipment!P$19 -> 3.7092 | N7: =+H7*Equipment!L$19 -> 0.4 | O7: =+H7*Equipment!O$19 -> 0.94 | P7: =G7*H7 -> 0.66 | Q7: =P7*Labor_Fuel_Interest!$C$11 -> 11.3982 | U7: =T7+Q7+O7+N7+M7+L7 -> 20.90966 | V7: =(L7+N7+Q7+T7)/H7 -> 8.13023 | X7: Direct Expenses
B8: Hand Labor | C8: hour | H8: 2 | I8: June | P8: 0.6 | Q8: =P8*Labor_Fuel_Interest!$C$12 -> 7.44 | U8: =T8+Q8+O8+N8+M8+L8 -> 7.44 | V8: =(L8+N8+Q8+T8)/H8 -> 3.72 | X8: Fertilizer
B9: Soil Test | C9: each | R9: 2 | S9: =+'Soil test'!D$12 -> 15 | T9: =S9*R9 -> 30 | U9: 30 | V9: =(L9+N9+Q9+T9)/H8 -> 15 | X9: 10-10-10 | Z9: lb | AA9: =+S$12 -> 0.2165625 | AB9: =+R$12 -> 800 | AC9: =+AB$9*AA$9 -> 173.25
B10: Soil Test Probe | C10: each | R10: 1 | S10: =+'Soil test'!D$9 -> 95.9075 | T10: 95.9075 | U10: 95.9075 | V10: =(L10+N10+Q10+T10)/H8 -> 47.95375 | X10: Sulfur | Z10: lb | AA10: =+S$11 -> 0.36 | AB10: =+R$11 -> 650 | AC10: =+AA$10*AB$10 -> 234
B11: Apply elementar sulfur | C11: lb | D11: MFWD 50hp | F11: 4 | G11: =Equipment!I$22 -> 0.235 | H11: 1 | I11: June | J11: =+H11*Equipment!M$22 -> 0.19975 | K11: =+H11*Equipment!K$22 -> 1.389085 | L11: =+J11+K11 -> 1.588835 | M11: =+H11*Equipment!P$22 -> 1.3207 | N11: =+H11*Equipment!L$22 -> 2.67 | O11: =+H11*Equipment!O$22 -> 10.49 | P11: =+G11*H11 -> 0.235 | Q11: =+P11*Labor_Fuel_Interest!$C$11 -> 4.05845 | R11: 650 | S11: =+'Chemical & Fertilizer Costs'!F$23 -> 0.36 | T11: =+R11*S11 -> 234 | U11: 254.127985 | V11: =(L11+N11+Q11+T11)/H11 -> 242.317285 | X11: Soil Test | Z11: each | AA11: =S$9 -> 15 | AB11: =R$9 -> 2 | AC11: =AB$11*AA$11 -> 30
B12: Apply Fertilizer (10-10-10) | C12: lb | D12: MFWD 50hp | F12: 4 | G12: =Equipment!I$22 -> 0.235 | H12: 1 | I12: June | J12: =+H12*Equipment!M$22 -> 0.19975 | K12: =+H12*Equipment!K$22 -> 1.389085 | L12: =+J12+K12 -> 1.588835 | M12: =+H12*Equipment!P$22 -> 1.3207 | N12: =+H12*Equipment!L$22 -> 2.67 | O12: =+H12*Equipment!O$22 -> 10.49 | P12: =+G12*H12 -> 0.235 | Q12: =+P12*Labor_Fuel_Interest!$C$11 -> 4.05845 | R12: 800 | S12: =+'Chemical & Fertilizer Costs'!F$22 -> 0.2165625 | T12: =+S12*R12 -> 173.25 | U12: 193.377985 | V12: =(L12+N12+Q12+T12)/H12 -> 181.567285 | X12: Soil Test Probe | Z12: each | AA12: =S$10 -> 95.9075 | AB12: =R$10 -> 1 | AC12: =AB$12*AA$12 -> 95.9075
B13: Mark of Rows | H13: 1 | I13: June | X13: Weed Control
B14: Hand Labor | C14: hour | P14: 0.16 | Q14: =P14*Labor_Fuel_Interest!$C$12 -> 1.984 | U14: =T14+Q14+O14+N14+M14+L14 -> 1.984 | V14: =(L14+N14+Q14+T14)/H13 -> 1.984 | X14: Mulch | Z14: cu yd | AA14: =S$20 -> 19.83333333 | AB14: =R$20 -> 269 | AC14: =AB$14*AA$14 -> 5335.166667
B15: Sub - Soiler | C15: 2 shank | D15: MFWD 50hp | F15: 4 | G15: =+Equipment!I$43 -> 0.404 | H15: 1 | I15: June | J15: =+Equipment!M$43*H15 -> 0.3434 | K15: =+Equipment!K$43*H15 -> 2.388044 | L15: =J15+K15 -> 2.731444 | M15: =+Equipment!P$43*H15 -> 2.27048 | N15: =+Equipment!L$43*H15 -> 1.13 | O15: =+Equipment!O$43*H15 -> 2.67 | P15: =+G15*H15 -> 0.404 | Q15: =P15*Labor_Fuel_Interest!$C$11 -> 6.97708 | U15: =T15+Q15+O15+N15+M15+L15 -> 15.779004 | V15: =(L15+N15+Q15+T15)/H15 -> 10.838524 | X15: Grass seed | Z15: lb | AA15: =+S$26 -> 2.59485 | AB15: =+R$26 -> 10 | AC15: =+AA$15*AB$15 -> 25.9485
B16: Front End Loader | C16: .5 yd | D16: MFWD 50hp | F16: 4 | G16: =+Equipment!I$23 -> 0.6 | H16: 1 | I16: June | J16: =+H16*Equipment!M$23 -> 0.51 | K16: =+H16*Equipment!K$23 -> 3.5466 | L16: =J16+K16 -> 4.0566 | M16: =+H16*Equipment!P$23 -> 3.372 | N16: =+H16*Equipment!L$23 -> 1.04 | O16: =H16*Equipment!O$23 -> 4.6 | P16: =G16*H16 -> 0.6 | Q16: =P16*Labor_Fuel_Interest!$C$11 -> 10.362 | U16: =T16+Q16+O16+N16+M16+L16 -> 23.4306 | V16: =(L16+N16+Q16+T16)/H16 -> 15.4586 | X16: Operator Labor
B17: Incorporate Mulch | H17: 1 | I17: June | X17: Tractors | Z17: hour | AA17: =Labor_Fuel_Interest!$C$11 -> 17.27 | AB17: =+P$7+P$11+P$12+P$15+P$16+P$18+P$21+P$22+P$24 -> 5.87486 | AC17: =AB$17*AA$17 -> 101.4588322
B18: Trailer Utility | C18: 10ft | D18: MFWD 50hp | F18: 4 | G18: =+Equipment!I$47 -> 0.6 | J18: =+H17*Equipment!M$47 -> 0.51 | K18: =+Equipment!K$47*H17 -> 3.5466 | L18: =J18+K18 -> 4.0566 | M18: =+Equipment!P$47*H17 -> 3.372 | N18: =+Equipment!L$47*H17 -> 0.09 | O18: =+Equipment!O$47*H17 -> 0.31 | P18: =G18*H17 -> 0.6 | Q18: =P18*Labor_Fuel_Interest!$C$11 -> 10.362 | U18: =T18+Q18+O18+N18+M18+L18 -> 18.1906 | V18: =(L18+N18+Q18+T18)/H$17 -> 14.5086 | X18: Hand Labor
B19: Hand Labor | C19: hour | I19: June | P19: 16 | Q19: =P19*Labor_Fuel_Interest!$C$12 -> 198.4 | U19: 198.4 | V19: =(L19+N19+Q19+T19)/H$17 -> 198.4 | X19: Special Labor | Z19: hour | AA19: =Labor_Fuel_Interest!$C$12 -> 12.4 | AB19: =+P$8+P$14+P$19+P$25 -> 16.94 | AC19: =AB$19*AA$19 -> 210.056
B20: Mulch | C20: cu yd | R20: 269 | S20: =+'Mulch cost'!D$10 -> 19.83333333 | T20: =R20*S20 -> 5335.166667 | U20: =T20+Q20+O20+N20+M20+L20 -> 5335.166667 | V20: =(L20+N20+Q20+T20)/H$17 -> 5335.166667 | X20: Diesel Fuel
B21: Rotary Tiller | C21: 5ft | D21: MFWD 50hp | F21: 4 | G21: =+Equipment!I$30 -> 0.97 | H21: 2 | I21: June | J21: =+H21*Equipment!M$30 -> 1.649 | K21: =+Equipment!K$30*H21 -> 11.46734 | L21: =J21+K21 -> 13.11634 | M21: =+Equipment!P$30*H21 -> 10.9028 | N21: =+H21*Equipment!L$30 -> 3.76 | O21: =+Equipment!O$30*H21 -> 5.72 | P21: =G21*H21 -> 1.94 | Q21: =P21*Labor_Fuel_Interest!$C$11 -> 33.5038 | U21: 67.00294 | V21: =(L21+N21+Q21+T21)/H21 -> 25.19007 | X21: Tractors | Z21: gal | AA21: =Labor_Fuel_Interest!$E$4 -> 2.3 | AB21: =K$28/Labor_Fuel_Interest!$E$4 -> 15.0983902 | AC21: =AA$21*AB$21 -> 34.72629746
B22: Bd Shaper (Blue B.) | C22: bed 8ftctr | D22: MFWD 50hp | F22: 4 | G22: =+Equipment!I$7 -> 0.808 | H22: 1 | I22: June | J22: =+H22*Equipment!M$7 -> 0.6868 | K22: =+H22*Equipment!K$7 -> 4.776088 | L22: 5.462888 | M22: =+H22*Equipment!P$7 -> 0.6868 | N22: =+H22*Equipment!L$7 -> 1.66 | O22: =H22*Equipment!O$7 -> 4.71 | P22: 0.808 | Q22: =P22*Labor_Fuel_Interest!$C$11 -> 13.95416 | U22: 26.473848 | V22: =(L22+N22+Q22+T22)/H22 -> 21.077048 | X22: Repair & Maintenance
B23: Seed Between Rows | H23: 1 | I23: June | X23: Implements | Z23: acre | AA23: =N$28 -> 15.37 | AB23: 1 | AC23: =AB$23*AA$23 -> 15.37
B24: Grain Drill | C24: 6ft | D24: MFWD 50hp | F24: 4 | G24: =+Equipment!I$24 -> 0.39286 | I24: June | J24: =+H23*Equipment!M$24 -> 0.333931 | K24: =+H23*Equipment!K$24 -> 2.32219546 | L24: =+J24+K24 -> 2.65612646 | M24: =+H23*Equipment!P$24 -> 2.2078732 | N24: =+H23*Equipment!L$24 -> 1.95 | O24: =+H23*Equipment!O$24 -> 3.47 | P24: =+G24*H23 -> 0.39286 | Q24: =P24*Labor_Fuel_Interest!$C$11 -> 6.7846922 | U24: =T24+Q24+O24+N24+M24+L24 -> 17.06869186 | V24: =(L24+N24+Q24+T24)/H$23 -> 11.39081866 | X24: Tractors | Z24: acre | AA24: =J$28 -> 4.993631 | AB24: 1 | AC24: =AB$24*AA$24 -> 4.993631
B25: Hand Labor | C25: hour | P25: 0.18 | Q25: =P25*Labor_Fuel_Interest!$C$12 -> 2.232 | U25: =T25+Q25+O25+N25+M25+L25 -> 2.232 | V25: =(L25+N25+Q25+T25)/H$23 -> 2.232 | X25: Irrigation set-up | Z25: acre | AA25: =+U$27 -> 258 | AB25: 1 | AC25: =+AA$25*AB$25 -> 258
B26: Grass Seed | C26: lb | R26: 10 | S26: =+'Grass seed'!E$10 -> 2.59485 | T26: =R26*S26 -> 25.9485 | U26: 25.9485 | V26: 25.9485 | X26: Interest on OP. CAP. | Z26: acre | AA26: =U$29 -> 192.5276055 | AB26: 1 | AC26: =AB$26*AA$26 -> 192.5276055
B27: Irrigation set-up | C27: acre | U27: 258 | V27: =SUM(V7:V26) -> 6160.883377 | X27: Total Direct Expenses | AC27: =SUM(AC$7:AC$26) -> 6711.405033 | AD27: =SUM(AD7:AD26) -> 0
B28: Totals | J28: =SUM(J7:J26) -> 4.993631 | K28: 34.72629746 | L28: 39.71992846 | M28: 29.1625532 | N28: 15.37 | O28: 43.4 | P28: 22.81486 | Q28: 311.5148322 | T28: =SUM(T7:T26) -> 5894.272667 | U28: =SUM(U7:U27) -> 6591.439981
B29: Interest on Operating Captial | U29: =+(V$27*Labor_Fuel_Interest!C$16)/2 -> 192.5276055 | X29: Fixed Expenses
B30: Operator and Unpaid family labor | P30: 1.66 | Q30: =+P30*Labor_Fuel_Interest!C$11 -> 28.6682 | U30: =+Q30 -> 28.6682 | X30: Implements | Z30: acre | AA30: =O$28 -> 43.4 | AB30: 1 | AC30: =AB$30*AA$30 -> 43.4
B31: Total Specified Cost | U31: =SUM(U28:U30) -> 6812.635786 | X31: Tractors | Z31: acre | AA31: =M$28 -> 29.1625532 | AB31: 1 | AC31: =AB$31*AA$31 -> 29.1625532
X33: Total Fixed Expenses | AC33: =SUM(AC$30:AC$31) -> 72.5625532 | AD33: =SUM(AD30:AD31) -> 0
X35: Operator and Unpaid family labor | Z35: hour | AA35: =Labor_Fuel_Interest!$C$11 -> 17.27 | AB35: =+P$30 -> 1.66 | AC35: =AB$35*AA$35 -> 28.6682
X37: Total Specified Expenses | AC37: =AC$33+AC$27+AC$35 -> 6812.635786 | AD37: =AD33+AD27 -> 0
X200: Budget Year 0
X202: Items | Z202: Unit | AA202: Price | AB202: Quantity | AC202: Amount | AD202: Your Farm
X204: Direct Expenses
X205: Fertilizer
X206: 10-10-10 | Z206: lb | AA206: =+S$12 -> 0.2165625 | AB206: =+R$12 -> 800 | AC206: =+AB$9*AA$9 -> 173.25
X207: Sulfur | Z207: lb | AA207: =+S$11 -> 0.36 | AB207: =+R$11 -> 650 | AC207: =+AA$10*AB$10 -> 234
X208: Soil Test | Z208: each | AA208: =S$9 -> 15 | AB208: =R$9 -> 2 | AC208: =AB$11*AA$11 -> 30
X209: Soil Test Probe | Z209: each | AA209: =S$10 -> 95.9075 | AB209: =R$10 -> 1 | AC209: =AB$12*AA$12 -> 95.9075
X210: Weed Control
X211: Mulch | Z211: cu yd | AA211: =S$20 -> 19.83333333 | AB211: =R$20 -> 269 | AC211: =AB$14*AA$14 -> 5335.166667
X212: Grass seed | Z212: lb | AA212: =+S$26 -> 2.59485 | AB212: =+R$26 -> 10 | AC212: =+AA$15*AB$15 -> 25.9485
X213: Operator Labor
X214: Tractors | Z214: hour | AA214: =Labor_Fuel_Interest!$C$11 -> 17.27 | AB214: =+P$7+P$11+P$12+P$15+P$16+P$18+P$21+P$22+P$24 -> 5.87486 | AC214: =AB$17*AA$17 -> 101.4588322
X215: Hand Labor
X216: Special Labor | Z216: hour | AA216: =Labor_Fuel_Interest!$C$12 -> 12.4 | AB216: =+P$8+P$14+P$19+P$25 -> 16.94 | AC216: =AB$19*AA$19 -> 210.056
X217: Diesel Fuel
X218: Tractors | Z218: gal | AA218: =Labor_Fuel_Interest!$E$4 -> 2.3 | AB218: =K$28/Labor_Fuel_Interest!$E$4 -> 15.0983902 | AC218: =AA$21*AB$21 -> 34.72629746
X219: Repair & Maintenance
X220: Implements | Z220: acre | AA220: =N$28 -> 15.37 | AB220: 1 | AC220: =AB$23*AA$23 -> 15.37
X221: Tractors | Z221: acre | AA221: =J$28 -> 4.993631 | AB221: 1 | AC221: =AB$24*AA$24 -> 4.993631
X222: Irrigation set-up | Z222: acre | AA222: =+U$27 -> 258 | AB222: 1 | AC222: =+AA$25*AB$25 -> 258
X223: Interest on OP. CAP. | Z223: acre | AA223: =U$29 -> 192.5276055 | AB223: 1 | AC223: =AB$26*AA$26 -> 192.5276055
X224: Total Direct Expenses | AC224: =SUM(AC$7:AC$26) -> 6711.405033 | AD224: =SUM(AD204:AD223) -> 0
X226: Fixed Expenses
X227: Implements | Z227: acre | AA227: =O$28 -> 43.4 | AB227: 1 | AC227: =AB$30*AA$30 -> 43.4
X228: Tractors | Z228: acre | AA228: =M$28 -> 29.1625532 | AB228: 1 | AC228: =AB$31*AA$31 -> 29.1625532
X230: Total Fixed Expenses | AC230: =SUM(AC$30:AC$31) -> 72.5625532 | AD230: =SUM(AD227:AD228) -> 0
X232: Operator and Unpaid family labor | Z232: hour | AA232: =Labor_Fuel_Interest!$C$11 -> 17.27 | AB232: =+P$30 -> 1.66 | AC232: =AB$35*AA$35 -> 28.6682
X234: Total Specified Expenses | AC234: =AC$33+AC$27+AC$35 -> 6812.635786 | AD234: =AD230+AD224 -> 0

Sheet Blueberry Budget Y1
B2: Blueberry Enterprise Budget Year 1 | X2: Budget Year 1
B4: Operation / Operating Input | C4: Size/ Unit | D4: Power Unit Size | F4: # | G4: Perf Rate | H4: Times Over | I4: Month | J4: Power Unit Cost | N4: Equipment Cost | P4: Alloc Labor | R4: Operating / Durable Input | U4: Total Costs | X4: Items | Z4: Unit | AA4: Price | AB4: Quantity | AC4: Amount | AD4: Your Farm
J5: R & M | K5: Fuel | L5: Direct | M5: Fixed | N5: Direct | O5: Fixed | P5: Hours | Q5: Cost | R5: Amount | S5: Price | T5: Cost
X6: Direct Expenses
B7: Soil Test Hand Labor | C7: hour | H7: 1 | I7: March | P7: =+H7*0.6 -> 0.6 | Q7: =P7*Labor_Fuel_Interest!$C$12 -> 7.44 | U7: =T7+Q7+O7+N7+M7+L7 -> 7.44 | V7: =+(L7+N7+Q7+T7)/H7 -> 7.44 | X7: Blueberry plants | Z7: each | AA7: =+S$12 -> 4.5 | AB7: =+R$12 -> 726 | AC7: =+AA$7*AB$7 -> 3267
B8: Soil Test | C8: each | R8: 1 | S8: =+'Soil test'!D$12 -> 15 | T8: =S8*R8 -> 15 | U8: 15 | V8: =+(L8+N8+Q8+T8)/H7 -> 15 | X8: Fertilizer
B9: Planting | H9: 1 | I9: March | X9: Ammonium Sulfate | Z9: lb | AA9: =+S$20 -> 0.3745 | AB9: =+SUM(R$20,R$32,R$43) -> 120 | AC9: =+AA$9*AB$9 -> 44.94
B10: Trailer BB Plants | C10: 10ft | D10: MFWD 50hp | F10: 4 | G10: =+Equipment!I$45 -> 2 | J10: =(Equipment!$M$45)*H9 -> 1.7 | K10: =(Equipment!$K$45*H9) -> 11.822 | L10: =J10+K10 -> 13.522 | M10: =(Equipment!$P$45*H9) -> 11.24 | N10: =+H9*Equipment!L$45 -> 0.31 | O10: =+H9*Equipment!O$45 -> 1.18 | P10: =G10*H9 -> 2 | Q10: =P10*Labor_Fuel_Interest!$C$11 -> 34.54 | U10: =T10+Q10+O10+N10+M10+L10 -> 60.792 | V10: =+(L10+N10+Q10+T10)/H$9 -> 48.372 | X10: Soil Test | Z10: each | AA10: =+S$8 -> 15 | AB10: =+R$8 -> 1 | AC10: =+AA$10*AB$10 -> 15
B11: Hand Labor | C11: hour | P11: 24 | Q11: =P11*Labor_Fuel_Interest!$C$12 -> 297.6 | U11: =T11+Q11+O11+N11+M11+L11 -> 297.6 | V11: =+(L11+N11+Q11+T11)/H$9 -> 297.6 | X11: Weed control
B12: Blueberry Plts | C12: each | R12: =+IF('General Budget Assumptions'!C$3="6'x12'",605, 726) -> 726 | S12: =+'Plant Costs '!H$18 -> 4.5 | T12: =S12*R12 -> 3267 | U12: 3267 | V12: =+(L12+N12+Q12+T12)/H$9 -> 3267 | X12: Chemicals
B13: Pruner (Hand) and remove fruit buds | C13: each | P13: 6 | Q13: =+P13*Labor_Fuel_Interest!C$12 -> 74.4 | R13: 1 | S13: 45 | T13: =S13*R13 -> 45 | U13: 119.4 | V13: =+(L13+N13+Q13+T13)/H$9 -> 119.4 | X13: Serenade ASO | Z13: qt | AA13: =+S$25 -> 9.95375 | AB13: =+SUM(R$25,R$48) -> 6 | AC13: =+AA$13*AB$13 -> 59.7225
B14: Irrigate & Check | H14: 2 | I14: Apr | X14: Entrust SC | Z14: oz | AA14: =+S$23 -> 14.13645833 | AB14: =+SUM(R$23,R$46) -> 10 | AC14: =AB$14*AA$14 -> 141.3645833
B15: Irrigation Labor | C15: hour | P15: =0.5*H14 -> 1 | Q15: =P15*Labor_Fuel_Interest!$C$12 -> 12.4 | U15: =T15+Q15+O15+N15+M15+L15 -> 12.4 | V15: =+(L15+N15+Q15+T15)/H$14 -> 6.2 | X15: Pristine | Z15: oz | AA15: =+S$24 -> 3.179354167 | AB15: =+SUM(R$24,R$47) -> 0 | AC15: =AB$15*AA$15 -> 0
B16: Mow Between Rows | H16: 2 | I16: Apr | X16: Switch 62.5 WG | Z16: oz | AA16: =+S$35 -> 5.544642857 | AB16: =+SUM(R$35,R$55) -> 0 | AC16: =+AA$16*AB$16 -> 0
B17: Rotary Cutter | C17: 7ft | D17: MFWD 50hp | F17: 8 | G17: =+Equipment!I$29 -> 0.169 | J17: =+H16*Equipment!M$29 -> 0.4394 | K17: =+H16*Equipment!K$29 -> 1.997918 | L17: =SUM(J17,K17) -> 2.437318 | M17: =+H16*Equipment!P$29 -> 2.90004 | N17: =+H16*Equipment!L$29 -> 1.28 | O17: =+H16*Equipment!O$29 -> 0.9 | P17: =G17*H16 -> 0.338 | Q17: =P17*Labor_Fuel_Interest!$C$11 -> 5.83726 | U17: =T17+Q17+O17+N17+M17+L17 -> 13.354618 | V17: =+(L17+N17+Q17+T17)/H$16 -> 4.777289 | X17: Assail 30 SG | Z17: oz | AA17: =+S$36 -> 4.466015625 | AB17: =+SUM(R$36,R$56) -> 0 | AC17: =+AA$17*AB$17 -> 0
B18: Fertilizing | H18: 1 | I18: Apr | X18: Pruner | Z18: each | AA18: =S$13 -> 45 | AB18: =R$13 -> 1 | AC18: =AB$18*AA$18 -> 45
B19: Side Dresser | C19: 1R 3ft | D19: MFWD 50hp | F19: 8 | G19: =+Equipment!I$32 -> 0.846 | J19: =+H18*Equipment!M$32 -> 1.0998 | K19: =+H18*Equipment!K$32 -> 5.000706 | L19: =J19+K19 -> 6.100506 | M19: =+H18*Equipment!P$32 -> 7.25868 | N19: =+H18*Equipment!L$32 -> 2.33 | O19: =+H18*Equipment!O$32 -> 9.14 | P19: =G19*H18 -> 0.846 | Q19: =P19*Labor_Fuel_Interest!$C$11 -> 14.61042 | U19: =T19+Q19+O19+N19+M19+L19 -> 39.439606 | V19: =+(L19+N19+Q19+T19)/H$18 -> 23.040926 | X19: Operator Labor
B20: Ammonium sulfate | C20: lb | R20: 40 | S20: =+'Chemical & Fertilizer Costs'!F$24 -> 0.3745 | T20: =R20*S20 -> 14.98 | U20: =T20+Q20+O20+N20+M20+L20 -> 14.98 | V20: =+(L20+N20+Q20+T20)/H$18 -> 14.98 | X20: Tractors/Utility vehicles | Z20: hour | AA20: =Labor_Fuel_Interest!$C$11 -> 17.27 | AB20: =+SUM(P$10,P$17,P$19,P$22,P$29,P$31,P$34,P$40,P$42,P$45,P$52,P$54,P$60,P$64) -> 7.066 | AC20: =AB$20*AA$20 -> 122.02982
B21: Spray # 1 | H21: =IF('General Budget Assumptions'!$C$4="moderate",2,1) -> 1 | I21: Apr | X21: Hand Labor
B22: Sprayer - Utility | C22: 4ft | D22: 4*4 | F22: 11 | G22: =+Equipment!I$38 -> 0.25 | J22: =+H21*Equipment!M$38 -> 0.24 | K22: =+H21*Equipment!K$38 -> 0.33 | L22: =J22+K22 -> 0.57 | M22: =+H21*Equipment!P$38 -> 1.6225 | N22: =+H21*Equipment!L$38 -> 0.02 | O22: =+H21*Equipment!O$38 -> 0.17 | P22: =G22*H21 -> 0.25 | Q22: =P22*Labor_Fuel_Interest!$C$11 -> 4.3175 | U22: =T22+Q22+O22+N22+M22+L22 -> 6.7 | V22: =+(L22+N22+Q22+T22)/H$21 -> 4.9075 | X22: Special Labor | Z22: hour | AA22: =Labor_Fuel_Interest!$C$12 -> 12.4 | AB22: =SUM(P$7,P$11,P$13) -> 30.6 | AC22: =AB$22*AA$22 -> 379.44
B23: Entrust SC | C23: oz | R23: =+'Chemical & Fertilizer Costs'!F$36 -> 5 | S23: =+'Chemical & Fertilizer Costs'!H$7 -> 14.13645833 | T23: =R23*S23 -> 70.68229167 | U23: =T23+Q23+O23+N23+M23+L23 -> 70.68229167 | V23: =+(L23+N23+Q23+T23)/H$21 -> 70.68229167 | X23: Irrigation Labor
B24: Pristine | C24: oz | R24: =IF('General Budget Assumptions'!$C$4="Low",,'Chemical & Fertilizer Costs'!$F$40) -> 0 | S24: ='Chemical & Fertilizer Costs'!$H$8 -> 3.179354167 | T24: 0 | U24: 0 | V24: =+(L24+N24+Q24+T24)/H$21 -> 0 | X24: Special Labor | Z24: hour | AA24: =Labor_Fuel_Interest!C$12 -> 12.4 | AB24: =+SUM(P$15,P$27,P$38,P$50,P$58,P$62,P$66) -> 11.5 | AC24: =AB$24*AA$24 -> 142.6
B25: Serenade ASO | C25: qt | R25: =IF('General Budget Assumptions'!$C$4="Low",'Chemical & Fertilizer Costs'!$F$31,) -> 3 | S25: ='Chemical & Fertilizer Costs'!H$6 -> 9.95375 | T25: =R25*S25 -> 29.86125 | U25: 29.86125 | V25: =+(L25+N25+Q25+T25)/H$21 -> 29.86125 | X25: Diesel Fuel
B26: Irrigate & Check | H26: 3 | I26: May | X26: Tractors | Z26: gal | AA26: =Labor_Fuel_Interest!$E$4 -> 2.3 | AB26: =+SUM(K$10,K$17,K$19,K$29,K$31,K$40,K$42,K$52,K$60,K$64)/AA$26 -> 16.87462 | AC26: =AA$26*AB$26 -> 38.811626
B27: Irrigation Labor | C27: hour | P27: =0.5*H26 -> 1.5 | Q27: =P27*Labor_Fuel_Interest!$C$12 -> 18.6 | U27: =T27+Q27+O27+N27+M27+L27 -> 18.6 | V27: =+(L27+N27+Q27+T27)/H$26 -> 6.2 | X27: Gasoline
B28: Mow Between Rows | H28: 2 | I28: May | X28: Utility vehicles | Z28: gal | AA28: =Labor_Fuel_Interest!$E$5 -> 2.2 | AB28: =+SUM(K$22,K$34,K$45,K$54)/AA$28 -> 0.3 | AC28: =AB$28*AA$28 -> 0.66
B29: Rotary Cutter | C29: 7ft | D29: MFWD 50hp | F29: 8 | G29: =+Equipment!I$29 -> 0.169 | J29: =+H28*Equipment!M$29 -> 0.4394 | K29: =+H28*Equipment!K$29 -> 1.997918 | L29: =SUM(J29,K29) -> 2.437318 | M29: =+H28*Equipment!P$29 -> 2.90004 | N29: =+H28*Equipment!L$29 -> 1.28 | O29: =+H28*Equipment!O$29 -> 0.9 | P29: =G29*H28 -> 0.338 | Q29: =P29*Labor_Fuel_Interest!$C$11 -> 5.83726 | U29: =T29+Q29+O29+N29+M29+L29 -> 13.354618 | V29: =+(L29+N29+Q29+T29)/H$28 -> 4.777289 | X29: Repair & Maintenance
B30: Fertilizing | H30: 1 | I30: May | X30: Implements | Z30: acre | AA30: =+N$68 -> 15.02 | AB30: 1 | AC30: =AB$30*AA$30 -> 15.02
B31: Side Dresser | C31: 1R 3ft | D31: MFWD 50hp | F31: 8 | G31: =+Equipment!I$32 -> 0.846 | J31: =+H30*Equipment!M$32 -> 1.0998 | K31: =+H30*Equipment!K$32 -> 5.000706 | L31: =J31+K31 -> 6.100506 | M31: =+H30*Equipment!P$32 -> 7.25868 | N31: =+H30*Equipment!L$32 -> 2.33 | O31: =+H30*Equipment!O$32 -> 9.14 | P31: =G31*H30 -> 0.846 | Q31: =P31*Labor_Fuel_Interest!$C$11 -> 14.61042 | U31: =T31+Q31+O31+N31+M31+L31 -> 39.439606 | V31: =+(L31+N31+Q31+T31)/H$30 -> 23.040926 | X31: Tractors | Z31: acre | AA31: =J$68 -> 8.1158 | AB31: 1 | AC31: =AB$31*AA$31 -> 8.1158
B32: Ammonium sulfate | C32: lb | R32: 40 | S32: =+'Chemical & Fertilizer Costs'!F$24 -> 0.3745 | T32: =R32*S32 -> 14.98 | U32: =T32+Q32+O32+N32+M32+L32 -> 14.98 | V32: =+(L32+N32+Q32+T32)/H$30 -> 14.98 | X32: Irrigation Setup | Z32: acre | AA32: =U$67 -> 258 | AB32: 1 | AC32: =AB$32*AA$32 -> 258
B33: Spray # 2 | H33: =IF('General Budget Assumptions'!$C$4="Moderate",1,) -> 0 | I33: May | X33: Interest on OP. CAP. | Z33: acre | AA33: =+U$69 -> 129.7450186 | AB33: 1 | AC33: =AB$33*AA$33 -> 129.7450186
B34: Sprayer - Utility | C34: 4ft | D34: 4*4 | F34: 11 | G34: =+Equipment!I$38 -> 0.25 | J34: =+H33*Equipment!M$38 -> 0 | K34: =+H33*Equipment!K$38 -> 0 | L34: =J34+K34 -> 0 | M34: =+H33*Equipment!P$38 -> 0 | N34: =+H33*Equipment!L$38 -> 0 | O34: =+H33*Equipment!O$38 -> 0 | P34: =G34*H33 -> 0 | Q34: =P34*Labor_Fuel_Interest!C11 -> 0 | U34: =T34+Q34+O34+N34+M34+L34 -> 0 | V34: =+(L34+N34+Q34+T34)/1 -> 0 | X34: Total Direct Expenses | AC34: =SUM(AC$7:AC$33) -> 4667.449348 | AD34: =+SUM(AD6:AD33) -> 0
B35: Switch 62.5 | C35: oz | R35: =IF('General Budget Assumptions'!$C$4="Moderate",'Chemical & Fertilizer Costs'!F$45,) -> 0 | S35: ='Chemical & Fertilizer Costs'!H$9 -> 5.544642857 | T35: =R35*S35 -> 0 | U35: 0 | V35: =+(L35+N35+Q35+T35)/1 -> 0
B36: Assail 30 SG | C36: oz | R36: =IF('General Budget Assumptions'!$C$4="Moderate",'Chemical & Fertilizer Costs'!F$50,) -> 0 | S36: ='Chemical & Fertilizer Costs'!H$10 -> 4.466015625 | T36: 0 | U36: 0 | V36: =+(L36+N36+Q36+T36)/1 -> 0 | X36: Fixed Expenses
B37: Irrigate & Check | H37: 4 | I37: June | X37: Implements | Z37: acre | AA37: =O$68 -> 34.34 | AB37: 1 | AC37: =AB$37*AA$37 -> 34.34
B38: Irrigation Labor | C38: hour | P38: =0.5*H37 -> 2 | Q38: =P38*Labor_Fuel_Interest!$C$12 -> 24.8 | U38: =T38+Q38+O38+N38+M38+L38 -> 24.8 | V38: =+(L38+N38+Q38+T38)/H$37 -> 6.2 | X38: Tractors | Z38: acre | AA38: =M$68 -> 53.66128 | AB38: 1 | AC38: =AB$38*AA$38 -> 53.66128
B39: Mow Between Rows | H39: 2 | I39: June
B40: Rotary Cutter | C40: 7ft | D40: MFWD 50hp | F40: 8 | G40: =+Equipment!I$29 -> 0.169 | J40: =+H39*Equipment!M$29 -> 0.4394 | K40: =+H39*Equipment!K$29 -> 1.997918 | L40: =SUM(J40,K40) -> 2.437318 | M40: =+H39*Equipment!P$29 -> 2.90004 | N40: =+H39*Equipment!L$29 -> 1.28 | O40: =+H39*Equipment!O$29 -> 0.9 | P40: =G40*H39 -> 0.338 | Q40: =P40*Labor_Fuel_Interest!C$11 -> 5.83726 | U40: =T40+Q40+O40+N40+M40+L40 -> 13.354618 | V40: =+(L40+N40+Q40+T40)/H$39 -> 4.777289 | X40: Total Fixed Expenses | AC40: =SUM(AC$37:AC$38) -> 88.00128 | AD40: =+SUM(AD37:AD38) -> 0
B41: Fertilizing | H41: 1 | I41: June
B42: Side Dresser | C42: 1R 3ft | D42: MFWD 50hp | F42: 8 | G42: =+Equipment!I$32 -> 0.846 | J42: =+H41*Equipment!M$32 -> 1.0998 | K42: =+H41*Equipment!K$32 -> 5.000706 | L42: =J42+K42 -> 6.100506 | M42: =+H41*Equipment!P$32 -> 7.25868 | N42: =+H41*Equipment!L$32 -> 2.33 | O42: =+H41*Equipment!O$32 -> 9.14 | P42: =G42*H41 -> 0.846 | Q42: =P42*Labor_Fuel_Interest!$C$11 -> 14.61042 | U42: =T42+Q42+O42+N42+M42+L42 -> 39.439606 | V42: =+(L42+N42+Q42+T42)/H$41 -> 23.040926 | X42: Operator and Unpaid family labor | Z42: hour | AA42: =Labor_Fuel_Interest!$C$11 -> 17.27 | AB42: =+P$70 -> 10.63 | AC42: =AB$42*AA$42 -> 183.5801
B43: Ammonium sulfate | C43: lb | R43: 40 | S43: =+'Chemical & Fertilizer Costs'!F$24 -> 0.3745 | T43: =R43*S43 -> 14.98 | U43: =T43+Q43+O43+N43+M43+L43 -> 14.98 | V43: =+(L43+N43+Q43+T43)/H$41 -> 14.98
B44: Spray # 3 | H44: =IF('General Budget Assumptions'!$C$4="moderate",2,1) -> 1 | I44: June | X44: Total Specified Expenses | AC44: =+AC$34+AC$40+AC$42 -> 4939.030728 | AD44: =+SUM(AD34,AD40) -> 0
B45: Sprayer - Utility | C45: 4ft | D45: 4*4 | F45: 11 | G45: =+Equipment!I$38 -> 0.25 | J45: =(Equipment!M$38)*H44 -> 0.24 | K45: =H44*Equipment!K$38 -> 0.33 | L45: =J45+K45 -> 0.57 | M45: =+H44*Equipment!P$38 -> 1.6225 | N45: =+H44*Equipment!L$38 -> 0.02 | O45: =+H44*Equipment!O$38 -> 0.17 | P45: =G45*H44 -> 0.25 | Q45: =P45*Labor_Fuel_Interest!$C$11 -> 4.3175 | U45: =T45+Q45+O45+N45+M45+L45 -> 6.7 | V45: =+(L45+N45+Q45+T45)/H$44 -> 4.9075
B46: Entrust SC | C46: oz | R46: =+'Chemical & Fertilizer Costs'!F$36 -> 5 | S46: =+'Chemical & Fertilizer Costs'!H$7 -> 14.13645833 | T46: =R46*S46 -> 70.68229167 | U46: =T46+Q46+O46+N46+M46+L46 -> 70.68229167 | V46: =+(L46+N46+Q46+T46)/H$44 -> 70.68229167
B47: Pristine | C47: oz | R47: =IF('General Budget Assumptions'!$C$4="Low",,'Chemical & Fertilizer Costs'!$F$40) -> 0 | S47: ='Chemical & Fertilizer Costs'!$H$8 -> 3.179354167 | T47: 0 | U47: 0 | V47: 0
B48: Serenade ASO | C48: qt | R48: =IF('General Budget Assumptions'!$C$4="Low",'Chemical & Fertilizer Costs'!$F$31,) -> 3 | S48: ='Chemical & Fertilizer Costs'!H$6 -> 9.95375 | T48: =R48*S48 -> 29.86125 | U48: 29.86125 | V48: 29.86125
B49: Irrigate & Check | H49: 4 | I49: July
B50: Irrigation Labor | C50: hour | P50: =+H49*0.5 -> 2 | Q50: =P50*Labor_Fuel_Interest!$C$12 -> 24.8 | U50: =T50+Q50+O50+N50+M50+L50 -> 24.8 | V50: =+(L50+N50+Q50+T50)/H$49 -> 6.2
B51: Mow Between Rows | H51: 2 | I51: July
B52: Rotary Cutter | C52: 7ft | D52: MFWD 50hp | F52: 8 | G52: =+Equipment!I$29 -> 0.169 | J52: =+H51*Equipment!M$29 -> 0.4394 | K52: =+H51*Equipment!K$29 -> 1.997918 | L52: =SUM(J52,K52) -> 2.437318 | M52: =+H51*Equipment!P$29 -> 2.90004 | N52: =+H51*Equipment!L$29 -> 1.28 | O52: =+H51*Equipment!O$29 -> 0.9 | P52: =G52*H51 -> 0.338 | Q52: =P52*Labor_Fuel_Interest!C$11 -> 5.83726 | U52: =T52+Q52+O52+N52+M52+L52 -> 13.354618 | V52: =+(L52+N52+Q52+T52)/H$51 -> 4.777289
B53: Spray # 4 | H53: =IF('General Budget Assumptions'!$C$4="Moderate",1,) -> 0 | I53: July
B54: Sprayer - Utility | C54: 4ft | D54: 4*4 | F54: 11 | G54: =+Equipment!I$38 -> 0.25 | J54: =(Equipment!M$38)*H53 -> 0 | K54: =H53*Equipment!K$38 -> 0 | L54: =J54+K54 -> 0 | M54: =+H53*Equipment!P$38 -> 0 | N54: =+H53*Equipment!L$38 -> 0 | O54: =+H53*Equipment!O$38 -> 0 | P54: =G54*H53 -> 0 | Q54: =P54*Labor_Fuel_Interest!$C$11 -> 0 | U54: =T54+Q54+O54+N54+M54+L54 -> 0 | V54: =+(L54+N54+Q54+T54)/1 -> 0
B55: Switch 62.5 | C55: oz | R55: =IF('General Budget Assumptions'!$C$4="Moderate",'Chemical & Fertilizer Costs'!F$45,) -> 0 | S55: ='Chemical & Fertilizer Costs'!H$9 -> 5.544642857 | T55: =R55*S55 -> 0 | U55: =T55+Q55+O55+N55+M55+L55 -> 0 | V55: =+(L55+N55+Q55+T55)/1 -> 0
B56: Assail 30 SG | C56: oz | R56: =IF('General Budget Assumptions'!$C$4="Moderate",'Chemical & Fertilizer Costs'!F$50,) -> 0 | S56: ='Chemical & Fertilizer Costs'!H$10 -> 4.466015625 | T56: 0 | U56: 0 | V56: =+(L56+N56+Q56+T56)/1 -> 0
B57: Irrigate & Check | H57: 4 | I57: Aug | Y57: -
B58: Irrigation Labor | C58: hour | P58: =+H57*0.5 -> 2 | Q58: =P58*Labor_Fuel_Interest!$C$12 -> 24.8 | U58: =T58+Q58+O58+N58+M58+L58 -> 24.8 | V58: =+(L58+N58+Q58+T58)/H$57 -> 6.2
B59: Mow Between Rows | H59: 2 | I59: Aug
B60: Rotary Cutter | C60: 7ft | D60: MFWD 50hp | F60: 8 | G60: =+Equipment!I$29 -> 0.169 | J60: =+H59*Equipment!M$29 -> 0.4394 | K60: =+H59*Equipment!K$29 -> 1.997918 | L60: =SUM(J60,K60) -> 2.437318 | M60: =+H59*Equipment!P$29 -> 2.90004 | N60: =+H59*Equipment!L$29 -> 1.28 | O60: =+H59*Equipment!O$29 -> 0.9 | P60: =G60*H59 -> 0.338 | Q60: =P60*Labor_Fuel_Interest!C$11 -> 5.83726 | U60: =T60+Q60+O60+N60+M60+L60 -> 13.354618 | V60: =+(L60+N60+Q60+T60)/H$59 -> 4.777289
B61: Irrigate & Check | H61: 3 | I61: Sept
B62: Irrigation Labor | C62: hour | P62: =+H61*0.5 -> 1.5 | Q62: =P62*Labor_Fuel_Interest!$C$12 -> 18.6 | U62: =T62+Q62+O62+N62+M62+L62 -> 18.6 | V62: =+(L62+N62+Q62+T62)/H$61 -> 6.2
B63: Mow Between Rows | H63: 2 | I63: Sept
B64: Rotary Cutter | C64: 7ft | D64: MFWD 50hp | F64: 8 | G64: =+Equipment!I$29 -> 0.169 | J64: =+H63*Equipment!M$29 -> 0.4394 | K64: =+H63*Equipment!K$29 -> 1.997918 | L64: =SUM(J64,K64) -> 2.437318 | M64: =+H63*Equipment!P$29 -> 2.90004 | N64: =+H63*Equipment!L$29 -> 1.28 | O64: =+H63*Equipment!O$29 -> 0.9 | P64: =G64*H63 -> 0.338 | Q64: =P64*Labor_Fuel_Interest!C$11 -> 5.83726 | U64: =T64+Q64+O64+N64+M64+L64 -> 13.354618 | V64: =+(L64+N64+Q64+T64)/H$63 -> 4.777289
B65: Irrigate & Check | H65: 3 | I65: Oct
B66: Irrigation Labor | C66: hour | P66: =+H65*0.5 -> 1.5 | Q66: =P66*Labor_Fuel_Interest!$C$12 -> 18.6 | U66: =T66+Q66+O66+N66+M66+L66 -> 18.6 | V66: =+(L66+N66+Q66+T66)/H$65 -> 6.2
B67: Irrigation Setup | C67: acre | I67: Jan | U67: 258 | V67: =SUM(V7:V66) -> 4151.840595
B68: Totals | J68: =SUM(J7:J67) -> 8.1158 | K68: 39.471626 | L68: 47.587426 | M68: 53.66128 | N68: 15.02 | O68: 34.34 | P68: 49.166 | Q68: =SUM(Q9:Q67) -> 636.62982 | T68: =SUM(T7:T67) -> 3573.027083 | U68: =SUM(U7:U67) -> 4625.705609
B69: Interest on Operating Captial | U69: =+(V$67*Labor_Fuel_Interest!C$16)/2 -> 129.7450186
B70: Operator and Unpaid family labor | P70: 10.63 | Q70: =+P70*Labor_Fuel_Interest!C$11 -> 183.5801 | U70: =+Q70 -> 183.5801
B71: Total Specified Cost | U71: =SUM(U68:U70) -> 4939.030728
X200: Budget Year 1
X202: Items | Z202: Unit | AA202: Price | AB202: Quantity | AC202: Amount | AD202: Your Farm
X204: Direct Expenses
X205: Blueberry plants | Z205: each | AA205: =+S$12 -> 4.5 | AB205: =+R$12 -> 726 | AC205: =+AA$7*AB$7 -> 3267
X206: Fertilizer
X207: Ammonium Sulfate | Z207: lb | AA207: =+S$20 -> 0.3745 | AB207: =+SUM(R$20,R$32,R$43) -> 120 | AC207: =+AA$9*AB$9 -> 44.94
X208: Soil Test | Z208: each | AA208: =+S$8 -> 15 | AB208: =+R$8 -> 1 | AC208: =+AA$10*AB$10 -> 15
X209: Weed control
X210: Chemicals
X211: Serenade ASO | Z211: qt | AA211: =+S$25 -> 9.95375 | AB211: =+SUM(R$25,R$48) -> 6 | AC211: =+AA$13*AB$13 -> 59.7225
X212: Entrust SC | Z212: oz | AA212: =+S$23 -> 14.13645833 | AB212: =+SUM(R$23,R$46) -> 10 | AC212: =AB$14*AA$14 -> 141.3645833
X213: Pristine | Z213: oz | AA213: =+S$24 -> 3.179354167 | AB213: =+SUM(R$24,R$47) -> 0 | AC213: =AB$15*AA$15 -> 0
X214: Switch 62.5 WG | Z214: oz | AA214: =+S$35 -> 5.544642857 | AB214: =+SUM(R$35,R$55) -> 0 | AC214: =+AA$16*AB$16 -> 0
X215: Assail 30 SG | Z215: oz | AA215: =+S$36 -> 4.466015625 | AB215: =+SUM(R$36,R$56) -> 0 | AC215: =+AA$17*AB$17 -> 0
X216: Pruner | Z216: each | AA216: =S$13 -> 45 | AB216: =R$13 -> 1 | AC216: =AB$18*AA$18 -> 45
X217: Operator Labor
X218: Tractors/Utility vehicles | Z218: hour | AA218: =Labor_Fuel_Interest!$C$11 -> 17.27 | AB218: =+SUM(P$10,P$17,P$19,P$22,P$29,P$31,P$34,P$40,P$42,P$45,P$52,P$54,P$60,P$64) -> 7.066 | AC218: =AB$20*AA$20 -> 122.02982
X219: Hand Labor
X220: Special Labor | Z220: hour | AA220: =Labor_Fuel_Interest!$C$12 -> 12.4 | AB220: =SUM(P$7,P$11,P$13) -> 30.6 | AC220: =AB$22*AA$22 -> 379.44
X221: Irrigation Labor
X222: Special Labor | Z222: hour | AA222: =Labor_Fuel_Interest!C$12 -> 12.4 | AB222: =+SUM(P$15,P$27,P$38,P$50,P$58,P$62,P$66) -> 11.5 | AC222: =AB$24*AA$24 -> 142.6
X223: Diesel Fuel
X224: Tractors | Z224: gal | AA224: =Labor_Fuel_Interest!$E$4 -> 2.3 | AB224: =+SUM(K$10,K$17,K$19,K$29,K$31,K$40,K$42,K$52,K$60,K$64)/AA$26 -> 16.87462 | AC224: =AA$26*AB$26 -> 38.811626
X225: Gasoline
X226: Utility vehicles | Z226: gal | AA226: =Labor_Fuel_Interest!$E$5 -> 2.2 | AB226: =+SUM(K$22,K$34,K$45,K$54)/AA$28 -> 0.3 | AC226: =AB$28*AA$28 -> 0.66
X227: Repair & Maintenance
X228: Implements | Z228: acre | AA228: =+N$68 -> 15.02 | AB228: 1 | AC228: =AB$30*AA$30 -> 15.02
X229: Tractors | Z229: acre | AA229: =J$68 -> 8.1158 | AB229: 1 | AC229: =AB$31*AA$31 -> 8.1158
X230: Irrigation Setup | Z230: acre | AA230: =U$67 -> 258 | AB230: 1 | AC230: =AB$32*AA$32 -> 258
X231: Interest on OP. CAP. | Z231: acre | AA231: =+U$69 -> 129.7450186 | AB231: 1 | AC231: =AB$33*AA$33 -> 129.7450186
X232: Total Direct Expenses | AC232: =SUM(AC$7:AC$33) -> 4667.449348 | AD232: =+SUM(AD204:AD231) -> 0
X234: Fixed Expenses
X235: Implements | Z235: acre | AA235: =O$68 -> 34.34 | AB235: 1 | AC235: =AB$37*AA$37 -> 34.34
X236: Tractors | Z236: acre | AA236: =M$68 -> 53.66128 | AB236: 1 | AC236: =AB$38*AA$38 -> 53.66128
X238: Total Fixed Expenses | AC238: =SUM(AC$37:AC$38) -> 88.00128 | AD238: =+SUM(AD235:AD236) -> 0
X240: Operator and Unpaid family labor | Z240: hour | AA240: =Labor_Fuel_Interest!$C$11 -> 17.27 | AB240: =+P$70 -> 10.63 | AC240: =AB$42*AA$42 -> 183.5801
X242: Total Specified Expenses | AC242: =+AC$34+AC$40+AC$42 -> 4939.030728 | AD242: =+SUM(AD232,AD238) -> 0

Sheet Blueberry Budget Y2
B2: Blueberry Enterprise Budget Year 2 | X2: Budget Year 2
B4: Operation / Operating Input | C4: Size/ Unit | D4: Power Unit Size | F4: # | G4: Perf Rate | H4: Times Over | I4: Month | J4: Power Unit Cost | N4: Equipment Cost | P4: Alloc Labor | R4: Operating / Durable Input | U4: Total Costs | X4: Items | Z4: Unit | AA4: Price | AB4: Quantity | AC4: Amount | AD4: Your Farm
J5: R & M | K5: Fuel | L5: Direct | M5: Fixed | N5: Direct | O5: Fixed | P5: Hours | Q5: Cost | R5: Amount | S5: Price | T5: Cost
X6: Direct Expenses
B7: Soil Test Hand Labor | C7: hour | H7: 1 | I7: March | P7: =+H7*0.6 -> 0.6 | Q7: =P7*Labor_Fuel_Interest!$C$12 -> 7.44 | U7: =T7+Q7+O7+N7+M7+L7 -> 7.44 | V7: =+(L7+N7+Q7+T7)/H7 -> 7.44 | X7: Blueberry plants | Z7: each | AA7: =+S$12 -> 4.5 | AB7: =+R$12 -> 15 | AC7: =+AA$7*AB$7 -> 67.5
B8: Soil Test | C8: each | R8: 1 | S8: =+'Soil test'!D$12 -> 15 | T8: =S8*R8 -> 15 | U8: 15 | V8: =+(L8+N8+Q8+T8)/H7 -> 15 | X8: Fertilizer
B9: Replanting | H9: 1 | I9: March | X9: Ammonium Sulfate | Z9: lb | AA9: =+S$24 -> 0.3745 | AB9: =+SUM(R$24,R$36,R$47) -> 60 | AC9: =+AA$9*AB$9 -> 22.47
B10: Trailer BB Plants | C10: 10ft | D10: MFWD 50hp | F10: 4 | G10: =+Equipment!I45 -> 2 | J10: =(Equipment!$M$45)*H9 -> 1.7 | K10: =(Equipment!$K$45*H9) -> 11.822 | L10: =J10+K10 -> 13.522 | M10: =(Equipment!$P$45*H9) -> 11.24 | N10: =+H9*Equipment!$L$45 -> 0.31 | O10: =+H9*Equipment!O$45 -> 1.18 | P10: =G10*H9 -> 2 | Q10: =P10*Labor_Fuel_Interest!$C$11 -> 34.54 | U10: =T10+Q10+O10+N10+M10+L10 -> 60.792 | V10: =+(L10+N10+Q10+T10)/H$9 -> 48.372 | X10: Soil Test | Z10: each | AA10: =+S$8 -> 15 | AB10: =+R$8 -> 1 | AC10: =+AA$10*AB$10 -> 15
B11: Hand Labor | C11: hour | P11: 2 | Q11: =P11*Labor_Fuel_Interest!$C$12 -> 24.8 | U11: =T11+Q11+O11+N11+M11+L11 -> 24.8 | V11: =+(L11+N11+Q11+T11)/H$9 -> 24.8 | X11: Weed control
B12: Blueberry Plts | C12: each | R12: 15 | S12: =+'Plant Costs '!H18 -> 4.5 | T12: =S12*R12 -> 67.5 | U12: 67.5 | V12: 67.5 | X12: Mulch | Z12: cu yd | AA12: =+S$17 -> 19.83333333 | AB12: =+R$17 -> 68 | AC12: =+AA$12*AB$12 -> 1348.666667
B13: Pruner (Hand) and remove fruit buds | C13: each | H13: 1 | I13: March | P13: 6 | Q13: =+P13*Labor_Fuel_Interest!C$12 -> 74.4 | U13: 74.4 | V13: =+(L13+N13+Q13+T13)/H$13 -> 74.4 | X13: Chemicals
B14: Incorporate Mulch | H14: 1 | I14: March | X14: Serenade ASO | Z14: qt | AA14: =+S$29 -> 9.95375 | AB14: =+SUM(R$29,R$52) -> 6 | AC14: =+AA$14*AB$14 -> 59.7225
B15: Trailer Utility | C15: 10ft | D15: MFWD 50hp | F15: 4 | G15: =+Equipment!I$47 -> 0.6 | J15: =+H14*Equipment!M$47 -> 0.51 | K15: =+Equipment!K$47*H14 -> 3.5466 | L15: =J15+K15 -> 4.0566 | M15: =+Equipment!P$47*H14 -> 3.372 | N15: =+Equipment!L$47*H14 -> 0.09 | O15: =+Equipment!O$47*H14 -> 0.31 | P15: =G15*H14 -> 0.6 | Q15: =P15*Labor_Fuel_Interest!$C$11 -> 10.362 | U15: =T15+Q15+O15+N15+M15+L15 -> 18.1906 | V15: =+(L15+N15+Q15+T15)/H$14 -> 14.5086 | X15: Entrust SC | Z15: oz | AA15: =+S$27 -> 14.13645833 | AB15: =+SUM(R$27,R$50) -> 10 | AC15: =AB$15*AA$15 -> 141.3645833
B16: Hand Labor | C16: hour | P16: 16 | Q16: =P16*Labor_Fuel_Interest!$C$12 -> 198.4 | U16: =T16+Q16+O16+N16+M16+L16 -> 198.4 | V16: =+(L16+N16+Q16+T16)/H$14 -> 198.4 | X16: Pristine | Z16: oz | AA16: =+S$28 -> 3.179354167 | AB16: =+SUM(R$28,R$51) -> 0 | AC16: =AB$16*AA$16 -> 0
B17: Mulch | C17: cu yd | R17: 68 | S17: =+'Mulch cost'!D$10 -> 19.83333333 | T17: =R17*S17 -> 1348.666667 | U17: =T17+Q17+O17+N17+M17+L17 -> 1348.666667 | V17: 1348.666667 | X17: Switch 62.5 WG | Z17: oz | AA17: =+S$39 -> 5.544642857 | AB17: =+SUM(R$39,R$59) -> 0 | AC17: =+AA$17*AB$17 -> 0
B18: Irrigate & Check | H18: 2 | I18: Apr | X18: Assail 30 SG | Z18: oz | AA18: =+S$40 -> 4.466015625 | AB18: =+SUM(R$40,R$60) -> 0 | AC18: =+AA$18*AB$18 -> 0
B19: Irrigation Labor | C19: hour | P19: =0.5*H18 -> 1 | Q19: =P19*Labor_Fuel_Interest!$C$12 -> 12.4 | U19: =T19+Q19+O19+N19+M19+L19 -> 12.4 | V19: =+(L19+N19+Q19+T19)/H$18 -> 6.2 | X19: Operator Labor
B20: Mow Between Rows | H20: 2 | I20: Apr | X20: Tractors/Utility vehicles | Z20: hour | AA20: =Labor_Fuel_Interest!$C$11 -> 17.27 | AB20: =+SUM(P$10,P$21,P$23,P$26,P$33,P$35,P$38,P$44,P$46,P$49,P$56,P$58,P$64,P$68,P$15) -> 7.666 | AC20: =AB$20*AA$20 -> 132.39182
B21: Rotary Cutter | C21: 7ft | D21: MFWD 50hp | F21: 8 | G21: =+Equipment!I$29 -> 0.169 | J21: =+H20*Equipment!M$29 -> 0.4394 | K21: =+H20*Equipment!K$29 -> 1.997918 | L21: =SUM(J21,K21) -> 2.437318 | M21: =+H20*Equipment!P$29 -> 2.90004 | N21: =+H20*Equipment!L$29 -> 1.28 | O21: =+H20*Equipment!O$29 -> 0.9 | P21: =G21*H20 -> 0.338 | Q21: =P21*Labor_Fuel_Interest!$C$11 -> 5.83726 | U21: =T21+Q21+O21+N21+M21+L21 -> 13.354618 | V21: =+(L21+N21+Q21+T21)/H$20 -> 4.777289 | X21: Hand Labor
B22: Fertilizing | H22: 1 | I22: Apr | X22: Special Labor | Z22: hour | AA22: =Labor_Fuel_Interest!$C$12 -> 12.4 | AB22: =SUM(P$7,P$11,P$13,P$16) -> 24.6 | AC22: =AB$22*AA$22 -> 305.04
B23: Side Dresser | C23: 1R 3ft | D23: MFWD 50hp | F23: 8 | G23: =+Equipment!I$32 -> 0.846 | J23: =+H22*Equipment!M$32 -> 1.0998 | K23: =+H22*Equipment!K$32 -> 5.000706 | L23: =J23+K23 -> 6.100506 | M23: =+H22*Equipment!P$32 -> 7.25868 | N23: =+H22*Equipment!L$32 -> 2.33 | O23: =+H22*Equipment!O$32 -> 9.14 | P23: =G23*H22 -> 0.846 | Q23: =P23*Labor_Fuel_Interest!$C$11 -> 14.61042 | U23: =T23+Q23+O23+N23+M23+L23 -> 39.439606 | V23: =+(L23+N23+Q23+T23)/H$22 -> 23.040926 | X23: Irrigation Labor
B24: Ammonium sulfate | C24: lb | R24: 20 | S24: =+'Chemical & Fertilizer Costs'!F$24 -> 0.3745 | T24: =R24*S24 -> 7.49 | U24: =T24+Q24+O24+N24+M24+L24 -> 7.49 | V24: =+(L24+N24+Q24+T24)/H$22 -> 7.49 | X24: Special Labor | Z24: hour | AA24: =Labor_Fuel_Interest!C$12 -> 12.4 | AB24: =+SUM(P$19,P$31,P$42,P$54,P$62,P$66,P$70) -> 11.5 | AC24: =AB$24*AA$24 -> 142.6
B25: Spray # 1 | H25: =IF('General Budget Assumptions'!$C$4="moderate",2,1) -> 1 | I25: Apr | X25: Diesel Fuel
B26: Sprayer - Utility | C26: 4ft | D26: 4*4 | F26: 11 | G26: =+Equipment!I$38 -> 0.25 | J26: =+H25*Equipment!M$38 -> 0.24 | K26: =+H25*Equipment!K$38 -> 0.33 | L26: =J26+K26 -> 0.57 | M26: =+H25*Equipment!P$38 -> 1.6225 | N26: =+H25*Equipment!L$38 -> 0.02 | O26: =+H25*Equipment!O$38 -> 0.17 | P26: =G26*H25 -> 0.25 | Q26: =P26*Labor_Fuel_Interest!$C$11 -> 4.3175 | U26: =T26+Q26+O26+N26+M26+L26 -> 6.7 | V26: =+(L26+N26+Q26+T26)/H$25 -> 4.9075 | X26: Tractors | Z26: gal | AA26: =Labor_Fuel_Interest!$E$4 -> 2.3 | AB26: =+SUM(K$10,K$21,K$23,K$33,K$35,K$44,K$46,K$56,K$64,K$68,K$15)/AA26 -> 18.41662 | AC26: =AA$26*AB$26 -> 42.358226
B27: Entrust SC | C27: oz | R27: =+'Chemical & Fertilizer Costs'!F$36 -> 5 | S27: =+'Chemical & Fertilizer Costs'!H$7 -> 14.13645833 | T27: =R27*S27 -> 70.68229167 | U27: =T27+Q27+O27+N27+M27+L27 -> 70.68229167 | V27: =+(L27+N27+Q27+T27)/H$25 -> 70.68229167 | X27: Gasoline
B28: Pristine | C28: oz | R28: =IF('General Budget Assumptions'!$C$4="Low",,'Chemical & Fertilizer Costs'!$F$40) -> 0 | S28: ='Chemical & Fertilizer Costs'!$H$8 -> 3.179354167 | T28: 0 | U28: 0 | V28: =+(L28+N28+Q28+T28)/H$25 -> 0 | X28: Utility vehicles | Z28: gal | AA28: =Labor_Fuel_Interest!$E$5 -> 2.2 | AB28: =+SUM(K$26,K$38,K$49,K$58)/AA28 -> 0.3 | AC28: =AB$28*AA$28 -> 0.66
B29: Serenade ASO | C29: qt | R29: =IF('General Budget Assumptions'!$C$4="Low",'Chemical & Fertilizer Costs'!$F$31,) -> 3 | S29: ='Chemical & Fertilizer Costs'!H$6 -> 9.95375 | T29: =R29*S29 -> 29.86125 | U29: 29.86125 | V29: =+(L29+N29+Q29+T29)/H$25 -> 29.86125 | X29: Repair & Maintenance
B30: Irrigate & Check | H30: 3 | I30: May | X30: Implements | Z30: acre | AA30: =+N$72 -> 15.11 | AB30: 1 | AC30: =AB$30*AA$30 -> 15.11
B31: Irrigation Labor | C31: hour | P31: =0.5*H30 -> 1.5 | Q31: =P31*Labor_Fuel_Interest!$C$12 -> 18.6 | U31: =T31+Q31+O31+N31+M31+L31 -> 18.6 | V31: =+(L31+N31+Q31+T31)/H$30 -> 6.2 | X31: Tractors | Z31: acre | AA31: =J$72 -> 8.6258 | AB31: 1 | AC31: =AB$31*AA$31 -> 8.6258
B32: Mow Between Rows | H32: 2 | I32: May | X32: Irrigation Setup | Z32: acre | AA32: =U$71 -> 258 | AB32: 1 | AC32: =AB$32*AA$32 -> 258
B33: Rotary Cutter | C33: 7ft | D33: MFWD 50hp | F33: 8 | G33: =+Equipment!I29 -> 0.169 | J33: =+H32*Equipment!M$29 -> 0.4394 | K33: =+H32*Equipment!K$29 -> 1.997918 | L33: =SUM(J33,K33) -> 2.437318 | M33: =+H32*Equipment!P$29 -> 2.90004 | N33: =+H32*Equipment!L$29 -> 1.28 | O33: =+H32*Equipment!O$29 -> 0.9 | P33: =G33*H32 -> 0.338 | Q33: =P33*Labor_Fuel_Interest!$C$11 -> 5.83726 | U33: =T33+Q33+O33+N33+M33+L33 -> 13.354618 | V33: =+(L33+N33+Q33+T33)/H$32 -> 4.777289 | X33: Interest on OP. CAP. | Z33: acre | AA33: =+U$73 -> 67.92643319 | AB33: 1 | AC33: =AB$33*AA$33 -> 67.92643319
B34: Fertilizing | H34: 1 | I34: May | X34: Total Direct Expenses | AC34: =SUM(AC$7:AC$33) -> 2627.436029 | AD34: =+SUM(AD6:AD33) -> 0
B35: Side Dresser | C35: 1R 3ft | D35: MFWD 50hp | F35: 8 | G35: =+Equipment!I$32 -> 0.846 | J35: =+H34*Equipment!M$32 -> 1.0998 | K35: =+H34*Equipment!K$32 -> 5.000706 | L35: =J35+K35 -> 6.100506 | M35: =+H34*Equipment!P$32 -> 7.25868 | N35: =+H34*Equipment!L$32 -> 2.33 | O35: =+H34*Equipment!O$32 -> 9.14 | P35: =G35*H34 -> 0.846 | Q35: =P35*Labor_Fuel_Interest!$C$11 -> 14.61042 | U35: =T35+Q35+O35+N35+M35+L35 -> 39.439606 | V35: =+(L35+N35+Q35+T35)/H$34 -> 23.040926
B36: Ammonium sulfate | C36: lb | R36: 20 | S36: =+'Chemical & Fertilizer Costs'!F$24 -> 0.3745 | T36: =R36*S36 -> 7.49 | U36: 7.49 | V36: =+(L36+N36+Q36+T36)/H$34 -> 7.49 | X36: Fixed Expenses
B37: Spray # 2 | H37: =IF('General Budget Assumptions'!$C$4="Moderate",1,) -> 0 | I37: May | X37: Implements | Z37: acre | AA37: =O$72 -> 34.65 | AB37: 1 | AC37: =AB$37*AA$37 -> 34.65
B38: Sprayer - Utility | C38: 4ft | D38: 4*4 | F38: 11 | G38: =+Equipment!I38 -> 0.25 | J38: =+H37*Equipment!M38 -> 0 | K38: =+H37*Equipment!K38 -> 0 | L38: =J38+K38 -> 0 | M38: =+H37*Equipment!P38 -> 0 | N38: =+H37*Equipment!L38 -> 0 | O38: =+H37*Equipment!O38 -> 0 | P38: =G38*H37 -> 0 | Q38: =P38*Labor_Fuel_Interest!C11 -> 0 | U38: =T38+Q38+O38+N38+M38+L38 -> 0 | V38: =+(L38+N38+Q38+T38)/1 -> 0 | X38: Tractors | Z38: acre | AA38: =M$72 -> 57.03328 | AB38: 1 | AC38: =AB$38*AA$38 -> 57.03328
B39: Switch 62.5 | C39: oz | R39: =IF('General Budget Assumptions'!$C$4="Moderate",'Chemical & Fertilizer Costs'!F$45,) -> 0 | S39: ='Chemical & Fertilizer Costs'!H$9 -> 5.544642857 | T39: =R39*S39 -> 0 | U39: 0 | V39: =+(L39+N39+Q39+T39)/1 -> 0
B40: Assail 30 SG | C40: oz | R40: =IF('General Budget Assumptions'!$C$4="Moderate",'Chemical & Fertilizer Costs'!F$50,) -> 0 | S40: ='Chemical & Fertilizer Costs'!H$10 -> 4.466015625 | T40: 0 | U40: 0 | V40: =+(L40+N40+Q40+T40)/1 -> 0 | X40: Total Fixed Expenses | AC40: =SUM(AC$37:AC$38) -> 91.68328 | AD40: =+SUM(AD37:AD38) -> 0
B41: Irrigate & Check | H41: 4 | I41: June
B42: Irrigation Labor | C42: hour | P42: =0.5*H41 -> 2 | Q42: =P42*Labor_Fuel_Interest!$C$12 -> 24.8 | U42: =T42+Q42+O42+N42+M42+L42 -> 24.8 | V42: =+(L42+N42+Q42+T42)/H$41 -> 6.2 | X42: Operator and Unpaid family labor | Z42: hour | AA42: =Labor_Fuel_Interest!$C$11 -> 17.27 | AB42: =+P$74 -> 10.35 | AC42: =AB$42*AA$42 -> 178.7445
B43: Mow Between Rows | H43: 2 | I43: June
B44: Rotary Cutter | C44: 7ft | D44: MFWD 50hp | F44: 8 | G44: =+Equipment!I$29 -> 0.169 | J44: =+H43*Equipment!M$29 -> 0.4394 | K44: =+H43*Equipment!K$29 -> 1.997918 | L44: =SUM(J44,K44) -> 2.437318 | M44: =+H43*Equipment!P$29 -> 2.90004 | N44: =+H43*Equipment!L$29 -> 1.28 | O44: =+H43*Equipment!O$29 -> 0.9 | P44: =G44*H43 -> 0.338 | Q44: =P44*Labor_Fuel_Interest!C$11 -> 5.83726 | U44: =T44+Q44+O44+N44+M44+L44 -> 13.354618 | V44: =+(L44+N44+Q44+T44)/H$43 -> 4.777289 | X44: Total Specified Expenses | AC44: =+AC$34+AC$40+AC$42 -> 2897.863809 | AD44: =+SUM(AD34,AD40) -> 0
B45: Fertilizing | H45: 1 | I45: June
B46: Side Dresser | C46: 1R 3ft | D46: MFWD 50hp | F46: 8 | G46: =+Equipment!I$32 -> 0.846 | J46: =+H45*Equipment!M$32 -> 1.0998 | K46: =+H45*Equipment!K$32 -> 5.000706 | L46: =J46+K46 -> 6.100506 | M46: =+H45*Equipment!P$32 -> 7.25868 | N46: =+H45*Equipment!L$32 -> 2.33 | O46: =+H45*Equipment!O$32 -> 9.14 | P46: =G46*H45 -> 0.846 | Q46: =P46*Labor_Fuel_Interest!$C$11 -> 14.61042 | U46: =T46+Q46+O46+N46+M46+L46 -> 39.439606 | V46: =+(L46+N46+Q46+T46)/H$34 -> 23.040926
B47: Ammonium sulfate | C47: lb | R47: 20 | S47: =+'Chemical & Fertilizer Costs'!F$24 -> 0.3745 | T47: =R47*S47 -> 7.49 | U47: 7.49 | V47: =+(L47+N47+Q47+T47)/H$34 -> 7.49
B48: Spray # 3 | H48: =IF('General Budget Assumptions'!$C$4="moderate",2,1) -> 1 | I48: June
B49: Sprayer - Utility | C49: 4ft | D49: 4*4 | F49: 11 | G49: =+Equipment!I$38 -> 0.25 | J49: =(Equipment!M$38)*H48 -> 0.24 | K49: =H48*Equipment!K$38 -> 0.33 | L49: =J49+K49 -> 0.57 | M49: =+H48*Equipment!P$38 -> 1.6225 | N49: =+H48*Equipment!L$38 -> 0.02 | O49: =+H48*Equipment!O$38 -> 0.17 | P49: =G49*H48 -> 0.25 | Q49: =P49*Labor_Fuel_Interest!$C$11 -> 4.3175 | U49: =T49+Q49+O49+N49+M49+L49 -> 6.7 | V49: =+(L49+N49+Q49+T49)/H$48 -> 4.9075
B50: Entrust SC | C50: oz | R50: =+'Chemical & Fertilizer Costs'!F$36 -> 5 | S50: =+'Chemical & Fertilizer Costs'!H$7 -> 14.13645833 | T50: =R50*S50 -> 70.68229167 | U50: =T50+Q50+O50+N50+M50+L50 -> 70.68229167 | V50: =+(L50+N50+Q50+T50)/H$48 -> 70.68229167
B51: Pristine | C51: oz | R51: =IF('General Budget Assumptions'!$C$4="Low",,'Chemical & Fertilizer Costs'!$F$40) -> 0 | S51: ='Chemical & Fertilizer Costs'!$H$8 -> 3.179354167 | T51: 0 | U51: 0 | V51: =+(L51+N51+Q51+T51)/H$48 -> 0
B52: Serenade ASO | C52: qt | R52: =IF('General Budget Assumptions'!$C$4="Low",'Chemical & Fertilizer Costs'!$F$31,) -> 3 | S52: ='Chemical & Fertilizer Costs'!H$6 -> 9.95375 | T52: =R52*S52 -> 29.86125 | U52: 29.86125 | V52: =+(L52+N52+Q52+T52)/H$48 -> 29.86125
B53: Irrigate & Check | H53: 4 | I53: July
B54: Irrigation Labor | C54: hour | P54: =+H53*0.5 -> 2 | Q54: =P54*Labor_Fuel_Interest!$C$12 -> 24.8 | U54: =T54+Q54+O54+N54+M54+L54 -> 24.8 | V54: =+(L54+N54+Q54+T54)/H$53 -> 6.2
B55: Mow Between Rows | H55: 2 | I55: July
B56: Rotary Cutter | C56: 7ft | D56: MFWD 50hp | F56: 8 | G56: =+Equipment!I$29 -> 0.169 | J56: =+H55*Equipment!M$29 -> 0.4394 | K56: =+H55*Equipment!K$29 -> 1.997918 | L56: =SUM(J56,K56) -> 2.437318 | M56: =+H55*Equipment!P$29 -> 2.90004 | N56: =+H55*Equipment!L$29 -> 1.28 | O56: =+H55*Equipment!O$29 -> 0.9 | P56: =G56*H55 -> 0.338 | Q56: =P56*Labor_Fuel_Interest!C$11 -> 5.83726 | U56: =T56+Q56+O56+N56+M56+L56 -> 13.354618 | V56: =+(L56+N56+Q56+T56)/H$55 -> 4.777289
B57: Spray # 4 | H57: =IF('General Budget Assumptions'!$C$4="Moderate",1,) -> 0 | I57: July | Y57: -
B58: Sprayer - Utility | C58: 4ft | D58: 4*4 | F58: 11 | G58: =+Equipment!I$38 -> 0.25 | J58: =(Equipment!M$38)*H57 -> 0 | K58: =H57*Equipment!K$38 -> 0 | L58: =J58+K58 -> 0 | M58: =+H57*Equipment!P$38 -> 0 | N58: =+H57*Equipment!L$38 -> 0 | O58: =+H57*Equipment!O$38 -> 0 | P58: =G58*H57 -> 0 | Q58: =P58*Labor_Fuel_Interest!$C$11 -> 0 | U58: =T58+Q58+O58+N58+M58+L58 -> 0 | V58: =+(L58+N58+Q58+T58)/1 -> 0
B59: Switch 62.5 | C59: oz | R59: =IF('General Budget Assumptions'!$C$4="Moderate",'Chemical & Fertilizer Costs'!F$45,) -> 0 | S59: ='Chemical & Fertilizer Costs'!H$9 -> 5.544642857 | T59: =R59*S59 -> 0 | U59: =T59+Q59+O59+N59+M59+L59 -> 0 | V59: =+(L59+N59+Q59+T59)/1 -> 0
B60: Assail 30 SG | C60: oz | R60: =IF('General Budget Assumptions'!$C$4="Moderate",'Chemical & Fertilizer Costs'!F$50,) -> 0 | S60: ='Chemical & Fertilizer Costs'!H$10 -> 4.466015625 | T60: 0 | U60: 0 | V60: =+(L60+N60+Q60+T60)/1 -> 0
B61: Irrigate & Check | H61: 4 | I61: Aug
B62: Irrigation Labor | C62: hour | P62: =+H61*0.5 -> 2 | Q62: =P62*Labor_Fuel_Interest!$C$12 -> 24.8 | U62: =T62+Q62+O62+N62+M62+L62 -> 24.8 | V62: =+(L62+N62+Q62+T62)/H$61 -> 6.2
B63: Mow Between Rows | H63: 2 | I63: Aug
B64: Rotary Cutter | C64: 7ft | D64: MFWD 50hp | F64: 8 | G64: =+Equipment!I$29 -> 0.169 | J64: =+H63*Equipment!M$29 -> 0.4394 | K64: =+H63*Equipment!K$29 -> 1.997918 | L64: =SUM(J64,K64) -> 2.437318 | M64: =+H63*Equipment!P$29 -> 2.90004 | N64: =+H63*Equipment!L$29 -> 1.28 | O64: =+H63*Equipment!O$29 -> 0.9 | P64: =G64*H63 -> 0.338 | Q64: =P64*Labor_Fuel_Interest!C$11 -> 5.83726 | U64: =T64+Q64+O64+N64+M64+L64 -> 13.354618 | V64: =+(L64+N64+Q64+T64)/H$63 -> 4.777289
B65: Irrigate & Check | H65: 3 | I65: Sept
B66: Irrigation Labor | C66: hour | P66: =+H65*0.5 -> 1.5 | Q66: =P66*Labor_Fuel_Interest!$C$12 -> 18.6 | U66: =T66+Q66+O66+N66+M66+L66 -> 18.6 | V66: =+(L66+N66+Q66+T66)/H$65 -> 6.2
B67: Mow Between Rows | H67: 2 | I67: Sept
B68: Rotary Cutter | C68: 7ft | D68: MFWD 50hp | F68: 8 | G68: =+Equipment!I$29 -> 0.169 | J68: =+H67*Equipment!M$29 -> 0.4394 | K68: =+H67*Equipment!K$29 -> 1.997918 | L68: =SUM(J68,K68) -> 2.437318 | M68: =+H67*Equipment!P$29 -> 2.90004 | N68: =+H67*Equipment!L$29 -> 1.28 | O68: =+H67*Equipment!O$29 -> 0.9 | P68: =G68*H67 -> 0.338 | Q68: =P68*Labor_Fuel_Interest!C$11 -> 5.83726 | U68: =T68+Q68+O68+N68+M68+L68 -> 13.354618 | V68: =+(L68+N68+Q68+T68)/H$67 -> 4.777289
B69: Irrigate & Check | H69: 3 | I69: Oct
B70: Irrigation Labor | C70: hour | P70: =+H69*0.5 -> 1.5 | Q70: =P70*Labor_Fuel_Interest!$C$12 -> 18.6 | U70: =T70+Q70+O70+N70+M70+L70 -> 18.6 | V70: =+(L70+N70+Q70+T70)/H$69 -> 6.2
B71: Irrigation Setup | C71: acre | I71: Jan | U71: 258 | V71: =SUM(V7:V70) -> 2173.645862
B72: Totals | J72: =SUM(J7:J71) -> 8.6258 | K72: 43.018226 | L72: 51.644026 | M72: 57.03328 | N72: 15.11 | O72: 34.65 | P72: 43.766 | Q72: 580.03182 | T72: =SUM(T7:T71) -> 1654.72375 | U72: =SUM(U7:U71) -> 2651.192876
B73: Interest on Operating Captial | U73: =+(V$71*Labor_Fuel_Interest!C$16)/2 -> 67.92643319
B74: Operator and Unpaid family labor | P74: 10.35 | Q74: =+P74*Labor_Fuel_Interest!C$11 -> 178.7445 | U74: =+Q74 -> 178.7445
B75: Total Specified Cost | U75: =SUM(U72:U74) -> 2897.863809
X200: Budget Year 2
X202: Items | Z202: Unit | AA202: Price | AB202: Quantity | AC202: Amount | AD202: Your Farm
X204: Direct Expenses
X205: Blueberry plants | Z205: each | AA205: =+S$12 -> 4.5 | AB205: =+R$12 -> 15 | AC205: =+AA$7*AB$7 -> 67.5
X206: Fertilizer
X207: Ammonium Sulfate | Z207: lb | AA207: =+S$24 -> 0.3745 | AB207: =+SUM(R$24,R$36,R$47) -> 60 | AC207: =+AA$9*AB$9 -> 22.47
X208: Soil Test | Z208: each | AA208: =+S$8 -> 15 | AB208: =+R$8 -> 1 | AC208: =+AA$10*AB$10 -> 15
X209: Weed control
X210: Mulch | Z210: cu yd | AA210: =+S$17 -> 19.83333333 | AB210: =+R$17 -> 68 | AC210: =+AA$12*AB$12 -> 1348.666667
X211: Chemicals
X212: Serenade ASO | Z212: qt | AA212: =+S$29 -> 9.95375 | AB212: =+SUM(R$29,R$52) -> 6 | AC212: =+AA$14*AB$14 -> 59.7225
X213: Entrust SC | Z213: oz | AA213: =+S$27 -> 14.13645833 | AB213: =+SUM(R$27,R$50) -> 10 | AC213: =AB$15*AA$15 -> 141.3645833
X214: Pristine | Z214: oz | AA214: =+S$28 -> 3.179354167 | AB214: =+SUM(R$28,R$51) -> 0 | AC214: =AB$16*AA$16 -> 0
X215: Switch 62.5 WG | Z215: oz | AA215: =+S$39 -> 5.544642857 | AB215: =+SUM(R$39,R$59) -> 0 | AC215: =+AA$17*AB$17 -> 0
X216: Assail 30 SG | Z216: oz | AA216: =+S$40 -> 4.466015625 | AB216: =+SUM(R$40,R$60) -> 0 | AC216: =+AA$18*AB$18 -> 0
X217: Operator Labor
X218: Tractors/Utility vehicles | Z218: hour | AA218: =Labor_Fuel_Interest!$C$11 -> 17.27 | AB218: =+SUM(P$10,P$21,P$23,P$26,P$33,P$35,P$38,P$44,P$46,P$49,P$56,P$58,P$64,P$68,P$15) -> 7.666 | AC218: =AB$20*AA$20 -> 132.39182
X219: Hand Labor
X220: Special Labor | Z220: hour | AA220: =Labor_Fuel_Interest!$C$12 -> 12.4 | AB220: =SUM(P$7,P$11,P$13,P$16) -> 24.6 | AC220: =AB$22*AA$22 -> 305.04
X221: Irrigation Labor
X222: Special Labor | Z222: hour | AA222: =Labor_Fuel_Interest!C$12 -> 12.4 | AB222: =+SUM(P$19,P$31,P$42,P$54,P$62,P$66,P$70) -> 11.5 | AC222: =AB$24*AA$24 -> 142.6
X223: Diesel Fuel
X224: Tractors | Z224: gal | AA224: =Labor_Fuel_Interest!$E$4 -> 2.3 | AB224: =+SUM(K$10,K$21,K$23,K$33,K$35,K$44,K$46,K$56,K$64,K$68,K$15)/AA224 -> 18.41662 | AC224: =AA$26*AB$26 -> 42.358226
X225: Gasoline
X226: Utility vehicles | Z226: gal | AA226: =Labor_Fuel_Interest!$E$5 -> 2.2 | AB226: =+SUM(K$26,K$38,K$49,K$58)/AA226 -> 0.3 | AC226: =AB$28*AA$28 -> 0.66
X227: Repair & Maintenance
X228: Implements | Z228: acre | AA228: =+N$72 -> 15.11 | AB228: 1 | AC228: =AB$30*AA$30 -> 15.11
X229: Tractors | Z229: acre | AA229: =J$72 -> 8.6258 | AB229: 1 | AC229: =AB$31*AA$31 -> 8.6258
X230: Irrigation Setup | Z230: acre | AA230: =U$71 -> 258 | AB230: 1 | AC230: =AB$32*AA$32 -> 258
X231: Interest on OP. CAP. | Z231: acre | AA231: =+U$73 -> 67.92643319 | AB231: 1 | AC231: =AB$33*AA$33 -> 67.92643319
X232: Total Direct Expenses | AC232: =SUM(AC$7:AC$33) -> 2627.436029 | AD232: =+SUM(AD204:AD231) -> 0
X234: Fixed Expenses
X235: Implements | Z235: acre | AA235: =O$72 -> 34.65 | AB235: 1 | AC235: =AB$37*AA$37 -> 34.65
X236: Tractors | Z236: acre | AA236: =M$72 -> 57.03328 | AB236: 1 | AC236: =AB$38*AA$38 -> 57.03328
X238: Total Fixed Expenses | AC238: =SUM(AC$37:AC$38) -> 91.68328 | AD238: =+SUM(AD235:AD236) -> 0
X240: Operator and Unpaid family labor | Z240: hour | AA240: =Labor_Fuel_Interest!$C$11 -> 17.27 | AB240: =+P$74 -> 10.35 | AC240: =AB$42*AA$42 -> 178.7445
X242: Total Specified Expenses | AC242: =+AC$34+AC$40+AC$42 -> 2897.863809 | AD242: =+SUM(AD232,AD238) -> 0

Sheet Blueberry Budget Y3
B2: Blueberry Enterprise Budget Year 3 | X2: Budget Year 3
B4: Operation / Operating Input | C4: Size/ Unit | D4: Power Unit Size | F4: # | G4: Perf Rate | H4: Times Over | I4: Month | J4: Power Unit Cost | N4: Equipment Cost | P4: Alloc Labor | R4: Operating / Durable Input | U4: Total Costs | X4: Items | Z4: Unit | AA4: Price | AB4: Quantity | AC4: Amount | AD4: Your Farm
J5: R & M | K5: Fuel | L5: Direct | M5: Fixed | N5: Direct | O5: Fixed | P5: Hours | Q5: Cost | R5: Amount | S5: Price | T5: Cost
X6: Direct Expenses
B7: Soil Test Hand Labor | C7: hour | H7: 1 | I7: March | P7: =+H7*0.6 -> 0.6 | Q7: =P7*Labor_Fuel_Interest!$C$12 -> 7.44 | U7: =T7+Q7+O7+N7+M7+L7 -> 7.44 | V7: =+(L7+N7+Q7+T7)/H7 -> 7.44 | X7: Fertilizer
B8: Soil Test | C8: each | R8: 1 | S8: =+'Soil test'!D$12 -> 15 | T8: =S8*R8 -> 15 | U8: 15 | V8: =+(L8+N8+Q8+T8)/H7 -> 15 | X8: Ammonium Sulfate | Z8: lb | AA8: =+S$16 -> 0.3745 | AB8: =+R$28+R$16+R$39 -> 60 | AC8: =+AA$8*AB$8 -> 22.47
B9: Pruner (Hand) | C9: each | H9: 1 | I9: March | P9: =+IF('General Budget Assumptions'!C$3="6'x12'",20,24) -> 24 | Q9: =+P9*Labor_Fuel_Interest!C$12 -> 297.6 | U9: =T9+Q9+O9+N9+M9+L9 -> 297.6 | V9: =+(L9+N9+Q9+T9)/H9 -> 297.6 | X9: Soil Test | Z9: each | AA9: =+S$8 -> 15 | AB9: =+R$8 -> 1 | AC9: =+AA$9*AB$9 -> 15
B10: Irrigate & Check | H10: 2 | I10: Apr | X10: Weed control
B11: Irrigation Labor | C11: hour | P11: =0.5*H10 -> 1 | Q11: =P11*Labor_Fuel_Interest!$C$12 -> 12.4 | U11: =T11+Q11+O11+N11+M11+L11 -> 12.4 | V11: =+(L11+N11+Q11+T11)/H$10 -> 6.2 | X11: Chemicals
B12: Mow Between Rows | H12: 2 | I12: Apr | X12: Serenade ASO | Z12: qt | AA12: =+S$21 -> 9.95375 | AB12: =+SUM(R$21,R$44) -> 6 | AC12: =+AA$12*AB$12 -> 59.7225
B13: Rotary Cutter | C13: 7ft | D13: MFWD 50hp | F13: 8 | G13: =+Equipment!I$29 -> 0.169 | J13: =+H12*Equipment!M$29 -> 0.4394 | K13: =+H12*Equipment!K$29 -> 1.997918 | L13: =SUM(J13,K13) -> 2.437318 | M13: =+H12*Equipment!P$29 -> 2.90004 | N13: =+H12*Equipment!L$29 -> 1.28 | O13: =+H12*Equipment!O$29 -> 0.9 | P13: =G13*H12 -> 0.338 | Q13: =P13*Labor_Fuel_Interest!$C$11 -> 5.83726 | U13: =T13+Q13+O13+N13+M13+L13 -> 13.354618 | V13: =+(L13+N13+Q13+T13)/H$12 -> 4.777289 | X13: Entrust SC | Z13: oz | AA13: =+S$19 -> 14.13645833 | AB13: =+SUM(R$19,R$42) -> 10 | AC13: =AB$13*AA$13 -> 141.3645833
B14: Fertilizing | H14: 1 | I14: Apr | X14: Pristine | Z14: oz | AA14: =+S$20 -> 3.179354167 | AB14: =+SUM(R$20,R$43) -> 0 | AC14: =AB$14*AA$14 -> 0
B15: Side Dresser | C15: 1R 3ft | D15: MFWD 50hp | F15: 8 | G15: =+Equipment!I$32 -> 0.846 | J15: =+H14*Equipment!M$32 -> 1.0998 | K15: =+H14*Equipment!K$32 -> 5.000706 | L15: =J15+K15 -> 6.100506 | M15: =+H14*Equipment!P$32 -> 7.25868 | N15: =+H14*Equipment!L$32 -> 2.33 | O15: =+H14*Equipment!O$32 -> 9.14 | P15: =G15*H14 -> 0.846 | Q15: =P15*Labor_Fuel_Interest!$C$11 -> 14.61042 | U15: =T15+Q15+O15+N15+M15+L15 -> 39.439606 | V15: =+(L15+N15+Q15+T15)/H$26 -> 23.040926 | X15: Switch 62.5 WG | Z15: oz | AA15: =+S$31 -> 5.544642857 | AB15: =+SUM(R$31,R$51) -> 0 | AC15: =+AA$15*AB$15 -> 0
B16: Ammonium sulfate | C16: lb | R16: 20 | S16: =+'Chemical & Fertilizer Costs'!F$24 -> 0.3745 | T16: =R16*S16 -> 7.49 | U16: 7.49 | V16: =+(L16+N16+Q16+T16)/H$26 -> 7.49 | X16: Assail 30 SG | Z16: oz | AA16: =+S$32 -> 4.466015625 | AB16: =+SUM(R$32,R$52) -> 0 | AC16: =+AA$16*AB$16 -> 0
B17: Spray # 1 | H17: =IF('General Budget Assumptions'!$C$4="moderate",2,1) -> 1 | I17: Apr | X17: Operator Labor
B18: Sprayer - Utility | C18: 4ft | D18: 4*4 | F18: 11 | G18: =+Equipment!I$38 -> 0.25 | J18: =+H17*Equipment!M$38 -> 0.24 | K18: =+H17*Equipment!K$38 -> 0.33 | L18: =J18+K18 -> 0.57 | M18: =+H17*Equipment!P$38 -> 1.6225 | N18: =+H17*Equipment!L$38 -> 0.02 | O18: =+H17*Equipment!O$38 -> 0.17 | P18: =G18*H17 -> 0.25 | Q18: =P18*Labor_Fuel_Interest!$C$11 -> 4.3175 | U18: =T18+Q18+O18+N18+M18+L18 -> 6.7 | V18: =+(L18+N18+Q18+T18)/H$17 -> 4.9075 | X18: Tractors/Utility vehicles | Z18: hour | AA18: =Labor_Fuel_Interest!$C$11 -> 17.27 | AB18: =+SUM(P$13,P$18,P$25,P$27,P$30,P$36,P$41,P$48,P$50,P$56,P$60,P$15,P$38) -> 5.066 | AC18: =AB$18*AA$18 -> 87.48982
B19: Entrust SC | C19: oz | R19: =+'Chemical & Fertilizer Costs'!F$36 -> 5 | S19: =+'Chemical & Fertilizer Costs'!H$7 -> 14.13645833 | T19: =R19*S19 -> 70.68229167 | U19: =T19+Q19+O19+N19+M19+L19 -> 70.68229167 | V19: =+(L19+N19+Q19+T19)/H$17 -> 70.68229167 | X19: Hand Labor
B20: Pristine | C20: oz | R20: =IF('General Budget Assumptions'!$C$4="Low",,'Chemical & Fertilizer Costs'!$F$40) -> 0 | S20: ='Chemical & Fertilizer Costs'!$H$8 -> 3.179354167 | T20: 0 | U20: 0 | V20: =+(L20+N20+Q20+T20)/H$17 -> 0 | X20: Special Labor | Z20: hour | AA20: =Labor_Fuel_Interest!$C$12 -> 12.4 | AB20: =SUM(P$7,P$9,P$66) -> 104.6 | AC20: =AB$20*AA$20 -> 1297.04
B21: Serenade ASO | C21: qt | R21: =IF('General Budget Assumptions'!$C$4="Low",'Chemical & Fertilizer Costs'!$F$31,) -> 3 | S21: ='Chemical & Fertilizer Costs'!H$6 -> 9.95375 | T21: =R21*S21 -> 29.86125 | U21: 29.86125 | V21: =+(L21+N21+Q21+T21)/H$17 -> 29.86125 | X21: Irrigation Labor
B22: Irrigate & Check | H22: 3 | I22: May | X22: Special Labor | Z22: hour | AA22: =Labor_Fuel_Interest!C$12 -> 12.4 | AB22: =+SUM(P$11,P$23,P$34,P$46,P$54,P$58,P$62) -> 11.5 | AC22: =AB$22*AA$22 -> 142.6
B23: Irrigation Labor | C23: hour | P23: =0.5*H22 -> 1.5 | Q23: =P23*Labor_Fuel_Interest!$C$12 -> 18.6 | U23: =T23+Q23+O23+N23+M23+L23 -> 18.6 | V23: =+(L23+N23+Q23+T23)/H$22 -> 6.2 | X23: Diesel Fuel
B24: Mow Between Rows | H24: 2 | I24: May | X24: Tractors | Z24: gal | AA24: =Labor_Fuel_Interest!$E$4 -> 2.3 | AB24: =+SUM(K$13,K$25,K$27,K$36,K$48,K$56,K$60,K$15,K$38)/AA$24 -> 11.73462 | AC24: =AA$24*AB$24 -> 26.989626
B25: Rotary Cutter | C25: 7ft | D25: MFWD 50hp | F25: 8 | G25: =+Equipment!I$29 -> 0.169 | J25: =+H24*Equipment!M$29 -> 0.4394 | K25: =+H24*Equipment!K$29 -> 1.997918 | L25: =SUM(J25,K25) -> 2.437318 | M25: =+H24*Equipment!P$29 -> 2.90004 | N25: =+H24*Equipment!L$29 -> 1.28 | O25: =+H24*Equipment!O$29 -> 0.9 | P25: =G25*H24 -> 0.338 | Q25: =P25*Labor_Fuel_Interest!$C$11 -> 5.83726 | U25: =T25+Q25+O25+N25+M25+L25 -> 13.354618 | V25: =+(L25+N25+Q25+T25)/H$24 -> 4.777289 | X25: Gasoline
B26: Fertilizing | H26: 1 | I26: May | X26: Utility vehicles | Z26: gal | AA26: =Labor_Fuel_Interest!$E$5 -> 2.2 | AB26: =+SUM(K$18,K$30,K$41,K$50)/AA$26 -> 0.3 | AC26: =AB$26*AA$26 -> 0.66
B27: Side Dresser | C27: 1R 3ft | D27: MFWD 50hp | F27: 8 | G27: =+Equipment!I$32 -> 0.846 | J27: =+H26*Equipment!M$32 -> 1.0998 | K27: =+H26*Equipment!K$32 -> 5.000706 | L27: =J27+K27 -> 6.100506 | M27: =+H26*Equipment!P$32 -> 7.25868 | N27: =+H26*Equipment!L$32 -> 2.33 | O27: =+H26*Equipment!O$32 -> 9.14 | P27: =G27*H26 -> 0.846 | Q27: =P27*Labor_Fuel_Interest!$C$11 -> 14.61042 | U27: =T27+Q27+O27+N27+M27+L27 -> 39.439606 | V27: =+(L27+N27+Q27+T27)/H$26 -> 23.040926 | X27: Repair & Maintenance
B28: Ammonium sulfate | C28: lb | R28: 20 | S28: =+'Chemical & Fertilizer Costs'!F$24 -> 0.3745 | T28: =R28*S28 -> 7.49 | U28: 7.49 | V28: =+(L28+N28+Q28+T28)/H$26 -> 7.49 | X28: Implements | Z28: acre | AA28: =+N$71 -> 14.71 | AB28: 1 | AC28: =AB$28*AA$28 -> 14.71
B29: Spray # 2 | H29: =IF('General Budget Assumptions'!$C$4="Moderate",1,) -> 0 | I29: May | X29: Tractors | Z29: acre | AA29: =J$71 -> 6.4158 | AB29: 1 | AC29: =AB$29*AA$29 -> 6.4158
B30: Sprayer - Utility | C30: 4ft | D30: 4*4 | F30: 11 | G30: =+Equipment!I$38 -> 0.25 | J30: =+H29*Equipment!M$38 -> 0 | K30: =+H29*Equipment!K$38 -> 0 | L30: =J30+K30 -> 0 | M30: =+H29*Equipment!P$38 -> 0 | N30: =+H29*Equipment!L$38 -> 0 | O30: =+H29*Equipment!O$38 -> 0 | P30: =G30*H29 -> 0 | Q30: =P30*Labor_Fuel_Interest!C11 -> 0 | U30: =T30+Q30+O30+N30+M30+L30 -> 0 | V30: =+(L30+N30+Q30+T30)/1 -> 0 | X30: Post-harvest Expenses
B31: Switch 62.5 | C31: oz | R31: =IF('General Budget Assumptions'!$C$4="Moderate",'Chemical & Fertilizer Costs'!F$45,) -> 0 | S31: ='Chemical & Fertilizer Costs'!H$9 -> 5.544642857 | T31: =R31*S31 -> 0 | U31: 0 | V31: =+(L31+N31+Q31+T31)/1 -> 0 | X31: Plastic clamshell containers | Z31: each | AA31: =+S$65 -> 0.16 | AB31: =+R$65 -> 2000 | AC31: =+AB$31*AA$31 -> 320
B32: Assail 30 SG | C32: oz | R32: =IF('General Budget Assumptions'!$C$4="Moderate",'Chemical & Fertilizer Costs'!F$50,) -> 0 | S32: ='Chemical & Fertilizer Costs'!H$10 -> 4.466015625 | T32: 0 | U32: 0 | V32: =+(L32+N32+Q32+T32)/1 -> 0 | X32: Electricity | Z32: days | AA32: =+R$69 -> 30 | AB32: =+S$69 -> 1.22 | AC32: =+AA$32*AB$32 -> 36.6
B33: Irrigate & Check | H33: 4 | I33: June | X33: Marketing (10% of gross revenue) | Z33: acre | AA33: =+S$70 -> 723.3333333 | AB33: 1 | AC33: =+AA$33*AB$33 -> 723.3333333
B34: Irrigation Labor | C34: hour | P34: =0.5*H33 -> 2 | Q34: =P34*Labor_Fuel_Interest!$C$12 -> 24.8 | U34: =T34+Q34+O34+N34+M34+L34 -> 24.8 | V34: =+(L34+N34+Q34+T34)/H$33 -> 6.2 | X34: Irrigation Setup | Z34: acre | AA34: =U$63 -> 258 | AB34: 1 | AC34: =AB$34*AA$34 -> 258
B35: Mow Between Rows | H35: 2 | I35: June | X35: Interest on OP. CAP. | Z35: acre | AA35: =+U$72 -> 86.45412277 | AB35: 1 | AC35: =AB$35*AA$35 -> 86.45412277
B36: Rotary Cutter | C36: 7ft | D36: MFWD 50hp | F36: 8 | G36: =+Equipment!I$29 -> 0.169 | J36: =+H35*Equipment!M$29 -> 0.4394 | K36: =+H35*Equipment!K$29 -> 1.997918 | L36: =SUM(J36,K36) -> 2.437318 | M36: =+H35*Equipment!P$29 -> 2.90004 | N36: =+H35*Equipment!L$29 -> 1.28 | O36: =+H35*Equipment!O$29 -> 0.9 | P36: =G36*H35 -> 0.338 | Q36: =P36*Labor_Fuel_Interest!C$11 -> 5.83726 | U36: =T36+Q36+O36+N36+M36+L36 -> 13.354618 | V36: =+(L36+N36+Q36+T36)/H$35 -> 4.777289 | X36: Total Direct Expenses | AC36: =SUM(AC$7:AC$35) -> 3238.849785 | AD36: =+SUM(AD6:AD35) -> 0
B37: Fertilizing | H37: 1 | I37: June
B38: Side Dresser | C38: 1R 3ft | D38: MFWD 50hp | F38: 8 | G38: =+Equipment!I$32 -> 0.846 | J38: =+H37*Equipment!M$32 -> 1.0998 | K38: =+H37*Equipment!K$32 -> 5.000706 | L38: =J38+K38 -> 6.100506 | M38: =+H37*Equipment!P$32 -> 7.25868 | N38: =+H37*Equipment!L$32 -> 2.33 | O38: =+H37*Equipment!O$32 -> 9.14 | P38: =G38*H37 -> 0.846 | Q38: =P38*Labor_Fuel_Interest!$C$11 -> 14.61042 | U38: =T38+Q38+O38+N38+M38+L38 -> 39.439606 | V38: =+(L38+N38+Q38+T38)/H$26 -> 23.040926 | X38: Fixed Expenses
B39: Ammonium sulfate | C39: lb | R39: 20 | S39: =+'Chemical & Fertilizer Costs'!F$24 -> 0.3745 | T39: =R39*S39 -> 7.49 | U39: 7.49 | V39: =+(L39+N39+Q39+T39)/H$26 -> 7.49 | X39: Implements/Refrigerator | Z39: acre | AA39: =O$71+T$68 -> 473.16 | AB39: 1 | AC39: =AB$39*AA$39 -> 473.16
B40: Spray # 3 | H40: =IF('General Budget Assumptions'!$C$4="moderate",2,1) -> 1 | I40: June | X40: Tractors | Z40: acre | AA40: =M$71 -> 42.42128 | AB40: 1 | AC40: =AB$40*AA$40 -> 42.42128
B41: Sprayer - Utility | C41: 4ft | D41: 4*4 | F41: 11 | G41: =+Equipment!I$38 -> 0.25 | J41: =(Equipment!M$38)*H40 -> 0.24 | K41: =H40*Equipment!K$38 -> 0.33 | L41: =J41+K41 -> 0.57 | M41: =+H40*Equipment!P$38 -> 1.6225 | N41: =+H40*Equipment!L$38 -> 0.02 | O41: =+H40*Equipment!O$38 -> 0.17 | P41: =G41*H40 -> 0.25 | Q41: =P41*Labor_Fuel_Interest!$C$11 -> 4.3175 | U41: =T41+Q41+O41+N41+M41+L41 -> 6.7 | V41: =+(L41+N41+Q41+T41)/H$40 -> 4.9075
B42: Entrust SC | C42: oz | R42: =+'Chemical & Fertilizer Costs'!F$36 -> 5 | S42: =+'Chemical & Fertilizer Costs'!H$7 -> 14.13645833 | T42: =R42*S42 -> 70.68229167 | U42: =T42+Q42+O42+N42+M42+L42 -> 70.68229167 | V42: =+(L42+N42+Q42+T42)/H$40 -> 70.68229167 | X42: Total Fixed Expenses | AC42: =SUM(AC$39:AC$40) -> 515.58128 | AD42: =+SUM(AD39:AD40) -> 0
B43: Pristine | C43: oz | R43: =IF('General Budget Assumptions'!$C$4="Low",,'Chemical & Fertilizer Costs'!$F$40) -> 0 | S43: ='Chemical & Fertilizer Costs'!$H$8 -> 3.179354167 | T43: 0 | U43: 0 | V43: =+(L43+N43+Q43+T43)/H$40 -> 0
B44: Serenade ASO | C44: qt | R44: =IF('General Budget Assumptions'!$C$4="Low",'Chemical & Fertilizer Costs'!$F$31,) -> 3 | S44: ='Chemical & Fertilizer Costs'!H$6 -> 9.95375 | T44: =R44*S44 -> 29.86125 | U44: 29.86125 | V44: =+(L44+N44+Q44+T44)/H$40 -> 29.86125 | X44: Operator and Unpaid family labor | Z44: hour | AA44: =Labor_Fuel_Interest!$C$11 -> 17.27 | AB44: =+P$73 -> 18.7 | AC44: =AB$44*AA$44 -> 322.949
B45: Irrigate & Check | H45: 4 | I45: July
B46: Irrigation Labor | C46: hour | P46: =+H45*0.5 -> 2 | Q46: =P46*Labor_Fuel_Interest!$C$12 -> 24.8 | U46: =T46+Q46+O46+N46+M46+L46 -> 24.8 | V46: =+(L46+N46+Q46+T46)/H$45 -> 6.2 | X46: Total Specified Expenses | AC46: =+AC$36+AC$42+AC$44 -> 4077.380065 | AD46: =+SUM(AD36,AD42) -> 0
B47: Mow Between Rows | H47: 2 | I47: July
B48: Rotary Cutter | C48: 7ft | D48: MFWD 50hp | F48: 8 | G48: =+Equipment!I$29 -> 0.169 | J48: =+H47*Equipment!M$29 -> 0.4394 | K48: =+H47*Equipment!K$29 -> 1.997918 | L48: =SUM(J48,K48) -> 2.437318 | M48: =+H47*Equipment!P$29 -> 2.90004 | N48: =+H47*Equipment!L$29 -> 1.28 | O48: =+H47*Equipment!O$29 -> 0.9 | P48: =G48*H47 -> 0.338 | Q48: =P48*Labor_Fuel_Interest!C$11 -> 5.83726 | U48: =T48+Q48+O48+N48+M48+L48 -> 13.354618 | V48: =+(L48+N48+Q48+T48)/H$47 -> 4.777289
B49: Spray # 4 | H49: =IF('General Budget Assumptions'!$C$4="Moderate",1,) -> 0 | I49: July
B50: Sprayer - Utility | C50: 4ft | D50: 4*4 | F50: 11 | G50: =+Equipment!I$38 -> 0.25 | J50: =(Equipment!M$38)*H49 -> 0 | K50: =H49*Equipment!K$38 -> 0 | L50: =J50+K50 -> 0 | M50: =+H49*Equipment!P$38 -> 0 | N50: =+H49*Equipment!L$38 -> 0 | O50: =+H49*Equipment!O$38 -> 0 | P50: =G50*H49 -> 0 | Q50: =P50*Labor_Fuel_Interest!$C$11 -> 0 | U50: =T50+Q50+O50+N50+M50+L50 -> 0 | V50: =+(L50+N50+Q50+T50)/1 -> 0
B51: Switch 62.5 | C51: oz | R51: =IF('General Budget Assumptions'!$C$4="Moderate",'Chemical & Fertilizer Costs'!F$45,) -> 0 | S51: ='Chemical & Fertilizer Costs'!H$9 -> 5.544642857 | T51: =R51*S51 -> 0 | U51: =T51+Q51+O51+N51+M51+L51 -> 0 | V51: =+(L51+N51+Q51+T51)/1 -> 0
B52: Assail 30 SG | C52: oz | R52: =IF('General Budget Assumptions'!$C$4="Moderate",'Chemical & Fertilizer Costs'!F$50,) -> 0 | S52: ='Chemical & Fertilizer Costs'!H$10 -> 4.466015625 | T52: 0 | U52: 0 | V52: =+(L52+N52+Q52+T52)/1 -> 0
B53: Irrigate & Check | H53: 4 | I53: Aug
B54: Irrigation Labor | C54: hour | P54: =+H53*0.5 -> 2 | Q54: =P54*Labor_Fuel_Interest!$C$12 -> 24.8 | U54: =T54+Q54+O54+N54+M54+L54 -> 24.8 | V54: =+(L54+N54+Q54+T54)/H$53 -> 6.2
B55: Mow Between Rows | H55: 2 | I55: Aug
B56: Rotary Cutter | C56: 7ft | D56: MFWD 50hp | F56: 8 | G56: =+Equipment!I$29 -> 0.169 | J56: =+H55*Equipment!M$29 -> 0.4394 | K56: =+H55*Equipment!K$29 -> 1.997918 | L56: =SUM(J56,K56) -> 2.437318 | M56: =+H55*Equipment!P$29 -> 2.90004 | N56: =+H55*Equipment!L$29 -> 1.28 | O56: =+H55*Equipment!O$29 -> 0.9 | P56: =G56*H55 -> 0.338 | Q56: =P56*Labor_Fuel_Interest!C$11 -> 5.83726 | U56: =T56+Q56+O56+N56+M56+L56 -> 13.354618 | V56: =+(L56+N56+Q56+T56)/H$55 -> 4.777289
B57: Irrigate & Check | H57: 3 | I57: Sept
B58: Irrigation Labor | C58: hour | P58: =+H57*0.5 -> 1.5 | Q58: =P58*Labor_Fuel_Interest!$C$12 -> 18.6 | U58: =T58+Q58+O58+N58+M58+L58 -> 18.6 | V58: =+(L58+N58+Q58+T58)/H$57 -> 6.2
B59: Mow Between Rows | H59: 2 | I59: Sept | Y59: -
B60: Rotary Cutter | C60: 7ft | D60: MFWD 50hp | F60: 8 | G60: =+Equipment!I$29 -> 0.169 | J60: =+H59*Equipment!M$29 -> 0.4394 | K60: =+H59*Equipment!K$29 -> 1.997918 | L60: =SUM(J60,K60) -> 2.437318 | M60: =+H59*Equipment!P$29 -> 2.90004 | N60: =+H59*Equipment!L$29 -> 1.28 | O60: =+H59*Equipment!O$29 -> 0.9 | P60: =G60*H59 -> 0.338 | Q60: =P60*Labor_Fuel_Interest!C$11 -> 5.83726 | U60: =T60+Q60+O60+N60+M60+L60 -> 13.354618 | V60: =+(L60+N60+Q60+T60)/H$59 -> 4.777289
B61: Irrigate & Check | H61: 3 | I61: Oct
B62: Irrigation Labor | C62: hour | P62: =+H61*0.5 -> 1.5 | Q62: =P62*Labor_Fuel_Interest!$C$12 -> 18.6 | U62: =T62+Q62+O62+N62+M62+L62 -> 18.6 | V62: =+(L62+N62+Q62+T62)/H$61 -> 6.2
B63: Irrigation Setup | C63: acre | I63: Jan | U63: 258
B64: Harvest and Post-harvest Costs
B65: Plastic clamshell containers | C65: each | R65: =+IF('General Budget Assumptions'!C$5="100% Ready_Picked_Retail",Yield!B$7, IF('General Budget Assumptions'!C$5="50%PYO 50%Ready_Picked",(Yield!B$7*0.5),(Yield!B$7*0.25))) -> 2000 | S65: 0.16 | T65: =+R65*S65 -> 320 | U65: =T65+Q65+O65+N65+M65+L65 -> 320 | V65: =+(L65+N65+Q65+T65)/1 -> 320
B66: Harvest (labor for picking) | C66: hours | P66: =+IF('General Budget Assumptions'!C$5="100% Ready_Picked_Retail",80, IF('General Budget Assumptions'!C$5="50%PYO 50%Ready_Picked",(80*0.5),(80*0.25))) -> 80 | Q66: =P66*Labor_Fuel_Interest!$C$12 -> 992 | U66: =T66+Q66+O66+N66+M66+L66 -> 992 | V66: =+(L66+N66+Q66+T66)/1 -> 992
B67: Refrigeration
B68: Refrigerator fix cost | C68: acre | R68: 1 | S68: 440 | T68: =+R68*S68 -> 440 | U68: =T68+Q68+O68+N68+M68+L68 -> 440
B69: Electricity | C69: days | R69: 30 | S69: 1.22 | T69: =+R69*S69 -> 36.6 | U69: =T69+Q69+O69+N69+M69+L69 -> 36.6 | V69: =+(L69+N69+Q69+T69)/1 -> 36.6
B70: Marketing (10% of gross revenue) | C70: acre | R70: 1 | S70: =+IF('General Budget Assumptions'!C$5="100% Ready_Picked_Retail",(Yield!B$7*'Blueberry prices'!C$9),IF('General Budget Assumptions'!C$5="50%PYO 50%Ready_Picked", ((0.5*Yield!B$7*'Blueberry prices'!B$9)+(0.5*Yield!B$7*'Blueberry prices'!C$9)), ((0.75*Yield!B$7*'Blueberry prices'!B$9)+(0.25*Yield!B$7*'Blueberry prices'!C$9))))*0.1 -> 723.3333333 | T70: =+R70*S70 -> 723.3333333 | U70: =T70+Q70+O70+N70+M70+L70 -> 723.3333333 | V70: =+(L70+N70+Q70+T70)/1 -> 723.3333333
B71: Totals | J71: =SUM(J7:J70) -> 6.4158 | K71: 27.649626 | L71: 34.065426 | M71: 42.42128 | N71: 14.71 | O71: 33.16 | P71: 121.166 | Q71: 1527.12982 | T71: =SUM(T7:T70) -> 1758.490417 | U71: =SUM(U7:U70) -> 3667.976943 | V71: =SUM(V7:V70) -> 2766.531929
B72: Interest on Operating Captial | U72: =+(V71*Labor_Fuel_Interest!C$16)/2 -> 86.45412277
B73: Operator and Unpaid family labor | P73: 18.7 | Q73: =+P73*Labor_Fuel_Interest!C$11 -> 322.949 | U73: =+Q73 -> 322.949
B74: Total Specified Cost | U74: =SUM(U71:U73) -> 4077.380065
X200: Budget Year 3
X202: Items | Z202: Unit | AA202: Price | AB202: Quantity | AC202: Amount | AD202: Your Farm
X204: Direct Expenses
X205: Fertilizer
X206: Ammonium Sulfate | Z206: lb | AA206: =+S$16 -> 0.3745 | AB206: =+R$28+R$16+R$39 -> 60 | AC206: =+AA$8*AB$8 -> 22.47
X207: Soil Test | Z207: each | AA207: =+S$8 -> 15 | AB207: =+R$8 -> 1 | AC207: =+AA$9*AB$9 -> 15
X208: Weed control
X209: Chemicals
X210: Serenade ASO | Z210: qt | AA210: =+S$21 -> 9.95375 | AB210: =+SUM(R$21,R$44) -> 6 | AC210: =+AA$12*AB$12 -> 59.7225
X211: Entrust SC | Z211: oz | AA211: =+S$19 -> 14.13645833 | AB211: =+SUM(R$19,R$42) -> 10 | AC211: =AB$13*AA$13 -> 141.3645833
X212: Pristine | Z212: oz | AA212: =+S$20 -> 3.179354167 | AB212: =+SUM(R$20,R$43) -> 0 | AC212: =AB$14*AA$14 -> 0
X213: Switch 62.5 WG | Z213: oz | AA213: =+S$31 -> 5.544642857 | AB213: =+SUM(R$31,R$51) -> 0 | AC213: =+AA$15*AB$15 -> 0
X214: Assail 30 SG | Z214: oz | AA214: =+S$32 -> 4.466015625 | AB214: =+SUM(R$32,R$52) -> 0 | AC214: =+AA$16*AB$16 -> 0
X215: Operator Labor
X216: Tractors/Utility vehicles | Z216: hour | AA216: =Labor_Fuel_Interest!$C$11 -> 17.27 | AB216: =+SUM(P$13,P$18,P$25,P$27,P$30,P$36,P$41,P$48,P$50,P$56,P$60,P$15,P$38) -> 5.066 | AC216: =AB$18*AA$18 -> 87.48982
X217: Hand Labor
X218: Special Labor | Z218: hour | AA218: =Labor_Fuel_Interest!$C$12 -> 12.4 | AB218: =SUM(P$7,P$9,P$66) -> 104.6 | AC218: =AB$20*AA$20 -> 1297.04
X219: Irrigation Labor
X220: Special Labor | Z220: hour | AA220: =Labor_Fuel_Interest!C$12 -> 12.4 | AB220: =+SUM(P$11,P$23,P$34,P$46,P$54,P$58,P$62) -> 11.5 | AC220: =AB$22*AA$22 -> 142.6
X221: Diesel Fuel
X222: Tractors | Z222: gal | AA222: =Labor_Fuel_Interest!$E$4 -> 2.3 | AB222: =+SUM(K$13,K$25,K$27,K$36,K$48,K$56,K$60,K$15,K$38)/AA$24 -> 11.73462 | AC222: =AA$24*AB$24 -> 26.989626
X223: Gasoline
X224: Utility vehicles | Z224: gal | AA224: =Labor_Fuel_Interest!$E$5 -> 2.2 | AB224: =+SUM(K$18,K$30,K$41,K$50)/AA$26 -> 0.3 | AC224: =AB$26*AA$26 -> 0.66
X225: Repair & Maintenance
X226: Implements | Z226: acre | AA226: =+N$71 -> 14.71 | AB226: 1 | AC226: =AB$28*AA$28 -> 14.71
X227: Tractors | Z227: acre | AA227: =J$71 -> 6.4158 | AB227: 1 | AC227: =AB$29*AA$29 -> 6.4158
X228: Post-harvest Expenses
X229: Plastic clamshell containers | Z229: each | AA229: =+S$65 -> 0.16 | AB229: =+R$65 -> 2000 | AC229: =+AB$31*AA$31 -> 320
X230: Electricity | Z230: days | AA230: =+R$69 -> 30 | AB230: =+S$69 -> 1.22 | AC230: =+AA$32*AB$32 -> 36.6
X231: Marketing (10% of gross revenue) | Z231: acre | AA231: =+S$70 -> 723.3333333 | AB231: 1 | AC231: =+AA$33*AB$33 -> 723.3333333
X232: Irrigation Setup | Z232: acre | AA232: =U$63 -> 258 | AB232: 1 | AC232: =AB$34*AA$34 -> 258
X233: Interest on OP. CAP. | Z233: acre | AA233: =+U$72 -> 86.45412277 | AB233: 1 | AC233: =AB$35*AA$35 -> 86.45412277
X234: Total Direct Expenses | AC234: =SUM(AC$7:AC$35) -> 3238.849785 | AD234: =+SUM(AD204:AD233) -> 0
X236: Fixed Expenses
X237: Implements/Refrigerator | Z237: acre | AA237: =O$71+T$68 -> 473.16 | AB237: 1 | AC237: =AB$39*AA$39 -> 473.16
X238: Tractors | Z238: acre | AA238: =M$71 -> 42.42128 | AB238: 1 | AC238: =AB$40*AA$40 -> 42.42128
X240: Total Fixed Expenses | AC240: =SUM(AC$39:AC$40) -> 515.58128 | AD240: =+SUM(AD237:AD238) -> 0
X242: Operator and Unpaid family labor | Z242: hour | AA242: =Labor_Fuel_Interest!$C$11 -> 17.27 | AB242: =+P$73 -> 18.7 | AC242: =AB$44*AA$44 -> 322.949
X244: Total Specified Expenses | AC244: =+AC$36+AC$42+AC$44 -> 4077.380065 | AD244: =+SUM(AD234,AD240) -> 0

Sheet Blueberry Budget Y4
B2: Blueberry Enterprise Budget Year 4 | X2: Budget Year 4
B4: Operation / Operating Input | C4: Size/ Unit | D4: Power Unit Size | F4: # | G4: Perf Rate | H4: Times Over | I4: Month | J4: Power Unit Cost | N4: Equipment Cost | P4: Alloc Labor | R4: Operating / Durable Input | U4: Total Costs | X4: Items | Z4: Unit | AA4: Price | AB4: Quantity | AC4: Amount | AD4: Your Farm
J5: R & M | K5: Fuel | L5: Direct | M5: Fixed | N5: Direct | O5: Fixed | P5: Hours | Q5: Cost | R5: Amount | S5: Price | T5: Cost
X6: Direct Expenses
B7: Soil Test Hand Labor | C7: hour | H7: 1 | I7: March | P7: =+H7*0.6 -> 0.6 | Q7: =P7*Labor_Fuel_Interest!$C$12 -> 7.44 | U7: =T7+Q7+O7+N7+M7+L7 -> 7.44 | V7: =+(L7+N7+Q7+T7)/H7 -> 7.44 | X7: Fertilizer
B8: Soil Test | C8: each | R8: 1 | S8: =+'Soil test'!D12 -> 15 | T8: =S8*R8 -> 15 | U8: 15 | V8: =+(L8+N8+Q8+T8)/H7 -> 15 | X8: Ammonium Sulfate | Z8: lb | AA8: =+S$20 -> 0.3745 | AB8: =+R$32+R$20+R$43 -> 60 | AC8: =+AA$8*AB$8 -> 22.47
B9: Pruner (Hand) | C9: each | H9: 1 | I9: March | P9: =+IF('General Budget Assumptions'!C$3="6'x12'",30,36) -> 36 | Q9: =+P9*Labor_Fuel_Interest!C$12 -> 446.4 | U9: 446.4 | V9: =+(L9+N9+Q9+T9)/H9 -> 446.4 | X9: Soil Test | Z9: each | AA9: =+S$8 -> 15 | AB9: =+R$8 -> 1 | AC9: =+AA$9*AB$9 -> 15
B10: Incorporate Mulch | H10: 1 | I10: March | X10: Weed control
B11: Trailer Utility | C11: 10ft | D11: MFWD 50hp | F11: 4 | G11: =+Equipment!I$47 -> 0.6 | J11: =+H10*Equipment!M$47 -> 0.51 | K11: =+Equipment!K$47*H10 -> 3.5466 | L11: =J11+K11 -> 4.0566 | M11: =+Equipment!P$47*H10 -> 3.372 | N11: =+Equipment!L$47*H10 -> 0.09 | O11: =+Equipment!O$47*H10 -> 0.31 | P11: =G11*H10 -> 0.6 | Q11: =P11*Labor_Fuel_Interest!$C$11 -> 10.362 | U11: =T11+Q11+O11+N11+M11+L11 -> 18.1906 | V11: =+(L11+N11+Q11+T11)/H$10 -> 14.5086 | X11: Mulch | Z11: cu yd | AA11: =+S$13 -> 19.83333333 | AB11: =+R$13 -> 68 | AC11: =+AB$11*AA$11 -> 1348.666667
B12: Hand Labor | C12: hour | P12: 16 | Q12: =P12*Labor_Fuel_Interest!$C$12 -> 198.4 | U12: 198.4 | V12: =+(L12+N12+Q12+T12)/H$10 -> 198.4 | X12: Chemicals
B13: Mulch | C13: cu yd | R13: 68 | S13: =+'Mulch cost'!D$10 -> 19.83333333 | T13: =R13*S13 -> 1348.666667 | U13: =T13+Q13+O13+N13+M13+L13 -> 1348.666667 | V13: =+(L13+N13+Q13+T13)/H$10 -> 1348.666667 | X13: Serenade ASO | Z13: qt | AA13: =+S$25 -> 9.95375 | AB13: =+SUM(R$25,R$48) -> 6 | AC13: =+AA$13*AB$13 -> 59.7225
B14: Irrigate & Check | H14: 2 | I14: Apr | X14: Entrust SC | Z14: oz | AA14: =+S$23 -> 14.13645833 | AB14: =+SUM(R$23,R$46) -> 10 | AC14: =AB$14*AA$14 -> 141.3645833
B15: Irrigation Labor | C15: hour | P15: =0.5*H14 -> 1 | Q15: =P15*Labor_Fuel_Interest!$C$12 -> 12.4 | U15: =T15+Q15+O15+N15+M15+L15 -> 12.4 | V15: =+(L15+N15+Q15+T15)/H$14 -> 6.2 | X15: Pristine | Z15: oz | AA15: =+S$24 -> 3.179354167 | AB15: =+SUM(R$24,R$47) -> 0 | AC15: =AB$15*AA$15 -> 0
B16: Mow Between Rows | H16: 2 | I16: Apr | X16: Switch 62.5 WG | Z16: oz | AA16: =+S$35 -> 5.544642857 | AB16: =+SUM(R$35,R$55) -> 0 | AC16: =+AA$16*AB$16 -> 0
B17: Rotary Cutter | C17: 7ft | D17: MFWD 50hp | F17: 8 | G17: =+Equipment!I29 -> 0.169 | J17: =+H16*Equipment!M29 -> 0.4394 | K17: =+H16*Equipment!K29 -> 1.997918 | L17: =SUM(J17,K17) -> 2.437318 | M17: =+H16*Equipment!P29 -> 2.90004 | N17: =+H16*Equipment!L29 -> 1.28 | O17: =+H16*Equipment!O29 -> 0.9 | P17: =G17*H16 -> 0.338 | Q17: =P17*Labor_Fuel_Interest!$C$11 -> 5.83726 | U17: =T17+Q17+O17+N17+M17+L17 -> 13.354618 | V17: =+(L17+N17+Q17+T17)/H$16 -> 4.777289 | X17: Assail 30 SG | Z17: oz | AA17: =+S$36 -> 4.466015625 | AB17: =+SUM(R$36,R$56) -> 0 | AC17: =+AA$17*AB$17 -> 0
B18: Fertilizing | H18: 1 | I18: Apr | X18: Operator Labor
B19: Side Dresser | C19: 1R 3ft | D19: MFWD 50hp | F19: 8 | G19: =+Equipment!I$32 -> 0.846 | J19: =+H18*Equipment!M$32 -> 1.0998 | K19: =+H18*Equipment!K$32 -> 5.000706 | L19: =J19+K19 -> 6.100506 | M19: =+H18*Equipment!P$32 -> 7.25868 | N19: =+H18*Equipment!L$32 -> 2.33 | O19: =+H18*Equipment!O$32 -> 9.14 | P19: =G19*H18 -> 0.846 | Q19: =P19*Labor_Fuel_Interest!$C$11 -> 14.61042 | U19: =T19+Q19+O19+N19+M19+L19 -> 39.439606 | V19: =+(L19+N19+Q19+T19)/H$26 -> 7.680308667 | X19: Tractors/Utility vehicles | Z19: hour | AA19: =Labor_Fuel_Interest!$C$11 -> 17.27 | AB19: =+SUM(P$17,P$22,P$29,P$31,P$34,P$40,P$45,P$52,P$54,P$60,P$64,P$11,P$19,P$42) -> 5.666 | AC19: =AB$19*AA$19 -> 97.85182
B20: Ammonium sulfate | C20: lb | R20: 20 | S20: =+'Chemical & Fertilizer Costs'!F$24 -> 0.3745 | T20: =R20*S20 -> 7.49 | U20: 7.49 | V20: =+(L20+N20+Q20+T20)/H$26 -> 2.496666667 | X20: Hand Labor
B21: Spray # 1 | H21: =IF('General Budget Assumptions'!$C$4="moderate",2,1) -> 1 | I21: Apr | X21: Special Labor | Z21: hour | AA21: =Labor_Fuel_Interest!$C$12 -> 12.4 | AB21: =SUM(P$7,P$9,P$70,P$12) -> 292.6 | AC21: =AB$21*AA$21 -> 3628.24
B22: Sprayer - Utility | C22: 4ft | D22: 4*4 | F22: 11 | G22: =+Equipment!I$38 -> 0.25 | J22: =+H21*Equipment!M$38 -> 0.24 | K22: =+H21*Equipment!K$38 -> 0.33 | L22: =J22+K22 -> 0.57 | M22: =+H21*Equipment!P$38 -> 1.6225 | N22: =+H21*Equipment!L$38 -> 0.02 | O22: =+H21*Equipment!O$38 -> 0.17 | P22: =G22*H21 -> 0.25 | Q22: =P22*Labor_Fuel_Interest!$C$11 -> 4.3175 | U22: =T22+Q22+O22+N22+M22+L22 -> 6.7 | V22: =+(L22+N22+Q22+T22)/H$21 -> 4.9075 | X22: Irrigation Labor
B23: Entrust SC | C23: oz | R23: =+'Chemical & Fertilizer Costs'!F$36 -> 5 | S23: =+'Chemical & Fertilizer Costs'!H$7 -> 14.13645833 | T23: =R23*S23 -> 70.68229167 | U23: =T23+Q23+O23+N23+M23+L23 -> 70.68229167 | V23: =+(L23+N23+Q23+T23)/H$21 -> 70.68229167 | X23: Special Labor | Z23: hour | AA23: =Labor_Fuel_Interest!C$12 -> 12.4 | AB23: =+SUM(P$15,P$27,P$38,P$50,P$58,P$62,P$66) -> 11.5 | AC23: =AB$23*AA$23 -> 142.6
B24: Pristine | C24: oz | R24: =IF('General Budget Assumptions'!$C$4="Low",,'Chemical & Fertilizer Costs'!$F$40) -> 0 | S24: ='Chemical & Fertilizer Costs'!$H$8 -> 3.179354167 | T24: 0 | U24: 0 | V24: =+(L24+N24+Q24+T24)/H$21 -> 0 | X24: Diesel Fuel
B25: Serenade ASO | C25: qt | R25: =IF('General Budget Assumptions'!$C$4="Low",'Chemical & Fertilizer Costs'!$F$31,) -> 3 | S25: ='Chemical & Fertilizer Costs'!H$6 -> 9.95375 | T25: =R25*S25 -> 29.86125 | U25: 29.86125 | V25: =+(L25+N25+Q25+T25)/H$21 -> 29.86125 | X25: Tractors | Z25: gal | AA25: =Labor_Fuel_Interest!$E$4 -> 2.3 | AB25: =+SUM(K$17,K$29,K$31,K$40,K$52,K$60,K$64,K$11,K$19,K$42)/AA$25 -> 13.27662 | AC25: =AA$25*AB$25 -> 30.536226
B26: Irrigate & Check | H26: 3 | I26: May | X26: Gasoline
B27: Irrigation Labor | C27: hour | P27: =0.5*H26 -> 1.5 | Q27: =P27*Labor_Fuel_Interest!$C$12 -> 18.6 | U27: =T27+Q27+O27+N27+M27+L27 -> 18.6 | V27: =+(L27+N27+Q27+T27)/H$26 -> 6.2 | X27: Utility vehicles | Z27: gal | AA27: =Labor_Fuel_Interest!$E$5 -> 2.2 | AB27: =+SUM(K$22,K$34,K$45,K$54)/AA$27 -> 0.3 | AC27: =AB$27*AA$27 -> 0.66
B28: Mow Between Rows | H28: 2 | I28: May | X28: Repair & Maintenance
B29: Rotary Cutter | C29: 7ft | D29: MFWD 50hp | F29: 8 | G29: =+Equipment!I$29 -> 0.169 | J29: =+H28*Equipment!M$29 -> 0.4394 | K29: =+H28*Equipment!K$29 -> 1.997918 | L29: =SUM(J29,K29) -> 2.437318 | M29: =+H28*Equipment!P$29 -> 2.90004 | N29: =+H28*Equipment!L$29 -> 1.28 | O29: =+H28*Equipment!O$29 -> 0.9 | P29: =G29*H28 -> 0.338 | Q29: =P29*Labor_Fuel_Interest!$C$11 -> 5.83726 | U29: =T29+Q29+O29+N29+M29+L29 -> 13.354618 | V29: =+(L29+N29+Q29+T29)/H$28 -> 4.777289 | X29: Implements | Z29: acre | AA29: =+N$75 -> 14.8 | AB29: 1 | AC29: =AB$29*AA$29 -> 14.8
B30: Fertilizing | H30: 1 | I30: May | X30: Tractors | Z30: acre | AA30: =J$75 -> 6.9258 | AB30: 1 | AC30: =AB$30*AA$30 -> 6.9258
B31: Side Dresser | C31: 1R 3ft | D31: MFWD 50hp | F31: 8 | G31: =+Equipment!I$32 -> 0.846 | J31: =+H30*Equipment!M$32 -> 1.0998 | K31: =+H30*Equipment!K$32 -> 5.000706 | L31: =J31+K31 -> 6.100506 | M31: =+H30*Equipment!P$32 -> 7.25868 | N31: =+H30*Equipment!L$32 -> 2.33 | O31: =+H30*Equipment!O$32 -> 9.14 | P31: =G31*H30 -> 0.846 | Q31: =P31*Labor_Fuel_Interest!$C$11 -> 14.61042 | U31: =T31+Q31+O31+N31+M31+L31 -> 39.439606 | V31: =+(L31+N31+Q31+T31)/H$30 -> 23.040926 | X31: Post-harvest Expenses
B32: Ammonium sulfate | C32: lb | R32: 20 | S32: =+'Chemical & Fertilizer Costs'!F$24 -> 0.3745 | T32: =R32*S32 -> 7.49 | U32: 7.49 | V32: =+(L32+N32+Q32+T32)/H$30 -> 7.49 | X32: Plastic clamshell containers | Z32: each | AA32: =+S$69 -> 0.16 | AB32: =+R$69 -> 6000 | AC32: =+AB$32*AA$32 -> 960
B33: Spray # 2 | H33: =IF('General Budget Assumptions'!$C$4="Moderate",1,) -> 0 | I33: May | X33: Electricity | Z33: days | AA33: =+R$73 -> 30 | AB33: =+S$73 -> 1.22 | AC33: =+AA$33*AB$33 -> 36.6
B34: Sprayer - Utility | C34: 4ft | D34: 4*4 | F34: 11 | G34: =+Equipment!I$38 -> 0.25 | J34: =+H33*Equipment!M$38 -> 0 | K34: =+H33*Equipment!K$38 -> 0 | L34: =J34+K34 -> 0 | M34: =+H33*Equipment!P$38 -> 0 | N34: =+H33*Equipment!L$38 -> 0 | O34: =+H33*Equipment!O$38 -> 0 | P34: =G34*H33 -> 0 | Q34: =P34*Labor_Fuel_Interest!C11 -> 0 | U34: =T34+Q34+O34+N34+M34+L34 -> 0 | V34: =+(L34+N34+Q34+T34)/1 -> 0 | X34: Marketing (10% of gross revenue) | Z34: acre | AA34: =+S$74 -> 2170 | AB34: 1 | AC34: =+AA$34*AB$34 -> 2170
B35: Switch 62.5 | C35: oz | R35: =IF('General Budget Assumptions'!$C$4="Moderate",'Chemical & Fertilizer Costs'!F$45,) -> 0 | S35: ='Chemical & Fertilizer Costs'!H$9 -> 5.544642857 | T35: =R35*S35 -> 0 | U35: 0 | V35: =+(L35+N35+Q35+T35)/1 -> 0 | X35: Irrigation Setup | Z35: acre | AA35: =U$67 -> 258 | AB35: 1 | AC35: =AB$35*AA$35 -> 258
B36: Assail 30 SG | C36: oz | R36: =IF('General Budget Assumptions'!$C$4="Moderate",'Chemical & Fertilizer Costs'!F$50,) -> 0 | S36: ='Chemical & Fertilizer Costs'!H$10 -> 4.466015625 | T36: 0 | U36: 0 | V36: =+(L36+N36+Q36+T36)/1 -> 0 | X36: Interest on OP. CAP. | Z36: acre | AA36: =+U$76 -> 266.4756222 | AB36: 1 | AC36: =AB$36*AA$36 -> 266.4756222
B37: Irrigate & Check | H37: 4 | I37: June | X37: Total Direct Expenses | AC37: =SUM(AC$7:AC$36) -> 9199.913218 | AD37: =+SUM(AD6:AD36) -> 0
B38: Irrigation Labor | C38: hour | P38: =0.5*H37 -> 2 | Q38: =P38*Labor_Fuel_Interest!$C$12 -> 24.8 | U38: =T38+Q38+O38+N38+M38+L38 -> 24.8 | V38: =+(L38+N38+Q38+T38)/H$37 -> 6.2
B39: Mow Between Rows | H39: 2 | I39: June | X39: Fixed Expenses
B40: Rotary Cutter | C40: 7ft | D40: MFWD 50hp | F40: 8 | G40: =+Equipment!I$29 -> 0.169 | J40: =+H39*Equipment!M$29 -> 0.4394 | K40: =+H39*Equipment!K$29 -> 1.997918 | L40: =SUM(J40,K40) -> 2.437318 | M40: =+H39*Equipment!P$29 -> 2.90004 | N40: =+H39*Equipment!L$29 -> 1.28 | O40: =+H39*Equipment!O$29 -> 0.9 | P40: =G40*H39 -> 0.338 | Q40: =P40*Labor_Fuel_Interest!C$11 -> 5.83726 | U40: =T40+Q40+O40+N40+M40+L40 -> 13.354618 | V40: =+(L40+N40+Q40+T40)/H$39 -> 4.777289 | X40: Implements/Refrigerator | Z40: acre | AA40: =O$75+T$72 -> 473.47 | AB40: 1 | AC40: =AB$40*AA$40 -> 473.47
B41: Fertilizing | H41: 1 | I41: June | X41: Tractors | Z41: acre | AA41: =M$75 -> 45.79328 | AB41: 1 | AC41: =AB$41*AA$41 -> 45.79328
B42: Side Dresser | C42: 1R 3ft | D42: MFWD 50hp | F42: 8 | G42: =+Equipment!I$32 -> 0.846 | J42: =+H41*Equipment!M$32 -> 1.0998 | K42: =+H41*Equipment!K$32 -> 5.000706 | L42: =J42+K42 -> 6.100506 | M42: =+H41*Equipment!P$32 -> 7.25868 | N42: =+H41*Equipment!L$32 -> 2.33 | O42: =+H41*Equipment!O$32 -> 9.14 | P42: =G42*H41 -> 0.846 | Q42: =P42*Labor_Fuel_Interest!$C$11 -> 14.61042 | U42: =T42+Q42+O42+N42+M42+L42 -> 39.439606 | V42: =+(L42+N42+Q42+T42)/H$30 -> 23.040926
B43: Ammonium sulfate | C43: lb | R43: 20 | S43: =+'Chemical & Fertilizer Costs'!F$24 -> 0.3745 | T43: =R43*S43 -> 7.49 | U43: 7.49 | V43: =+(L43+N43+Q43+T43)/H$30 -> 7.49 | X43: Total Fixed Expenses | AC43: =SUM(AC$40:AC$41) -> 519.26328 | AD43: =+SUM(AD40:AD41) -> 0
B44: Spray # 3 | H44: =IF('General Budget Assumptions'!$C$4="moderate",2,1) -> 1 | I44: June
B45: Sprayer - Utility | C45: 4ft | D45: 4*4 | F45: 11 | G45: =+Equipment!I$38 -> 0.25 | J45: =(Equipment!M$38)*H44 -> 0.24 | K45: =H44*Equipment!K$38 -> 0.33 | L45: =J45+K45 -> 0.57 | M45: =+H44*Equipment!P$38 -> 1.6225 | N45: =+H44*Equipment!L$38 -> 0.02 | O45: =+H44*Equipment!O$38 -> 0.17 | P45: =G45*H44 -> 0.25 | Q45: =P45*Labor_Fuel_Interest!$C$11 -> 4.3175 | U45: =T45+Q45+O45+N45+M45+L45 -> 6.7 | V45: =+(L45+N45+Q45+T45)/H$44 -> 4.9075 | X45: Operator and Unpaid family labor | Z45: hour | AA45: =Labor_Fuel_Interest!$C$11 -> 17.27 | AB45: =+P$77 -> 19.95 | AC45: =AB$45*AA$45 -> 344.5365
B46: Entrust SC | C46: oz | R46: =+'Chemical & Fertilizer Costs'!F$36 -> 5 | S46: =+'Chemical & Fertilizer Costs'!H$7 -> 14.13645833 | T46: =R46*S46 -> 70.68229167 | U46: =T46+Q46+O46+N46+M46+L46 -> 70.68229167 | V46: =+(L46+N46+Q46+T46)/H$44 -> 70.68229167
B47: Pristine | C47: oz | R47: =IF('General Budget Assumptions'!$C$4="Low",,'Chemical & Fertilizer Costs'!$F$40) -> 0 | S47: ='Chemical & Fertilizer Costs'!$H$8 -> 3.179354167 | T47: 0 | U47: 0 | V47: =+(L47+N47+Q47+T47)/H$44 -> 0 | X47: Total Specified Expenses | AC47: =+AC$37+AC$43+AC$45 -> 10063.713 | AD47: =+SUM(AD37,AD43) -> 0
B48: Serenade ASO | C48: qt | R48: =IF('General Budget Assumptions'!$C$4="Low",'Chemical & Fertilizer Costs'!$F$31,) -> 3 | S48: ='Chemical & Fertilizer Costs'!H$6 -> 9.95375 | T48: =R48*S48 -> 29.86125 | U48: 29.86125 | V48: =+(L48+N48+Q48+T48)/H$44 -> 29.86125
B49: Irrigate & Check | H49: 4 | I49: July
B50: Irrigation Labor | C50: hour | P50: =+H49*0.5 -> 2 | Q50: =P50*Labor_Fuel_Interest!$C$12 -> 24.8 | U50: =T50+Q50+O50+N50+M50+L50 -> 24.8 | V50: =+(L50+N50+Q50+T50)/H$49 -> 6.2
B51: Mow Between Rows | H51: 2 | I51: July
B52: Rotary Cutter | C52: 7ft | D52: MFWD 50hp | F52: 8 | G52: =+Equipment!I$29 -> 0.169 | J52: =+H51*Equipment!M$29 -> 0.4394 | K52: =+H51*Equipment!K$29 -> 1.997918 | L52: =SUM(J52,K52) -> 2.437318 | M52: =+H51*Equipment!P$29 -> 2.90004 | N52: =+H51*Equipment!L$29 -> 1.28 | O52: =+H51*Equipment!O$29 -> 0.9 | P52: =G52*H51 -> 0.338 | Q52: =P52*Labor_Fuel_Interest!C$11 -> 5.83726 | U52: =T52+Q52+O52+N52+M52+L52 -> 13.354618 | V52: =+(L52+N52+Q52+T52)/H$51 -> 4.777289
B53: Spray # 4 | H53: =IF('General Budget Assumptions'!$C$4="Moderate",1,) -> 0 | I53: July
B54: Sprayer - Utility | C54: 4ft | D54: 4*4 | F54: 11 | G54: =+Equipment!I$38 -> 0.25 | J54: =(Equipment!M$38)*H53 -> 0 | K54: =H53*Equipment!K$38 -> 0 | L54: =J54+K54 -> 0 | M54: =+H53*Equipment!P$38 -> 0 | N54: =+H53*Equipment!L$38 -> 0 | O54: =+H53*Equipment!O$38 -> 0 | P54: =G54*H53 -> 0 | Q54: =P54*Labor_Fuel_Interest!$C$11 -> 0 | U54: =T54+Q54+O54+N54+M54+L54 -> 0 | V54: =+(L54+N54+Q54+T54)/1 -> 0
B55: Switch 62.5 | C55: oz | R55: =IF('General Budget Assumptions'!$C$4="Moderate",'Chemical & Fertilizer Costs'!F$45,) -> 0 | S55: ='Chemical & Fertilizer Costs'!H$9 -> 5.544642857 | T55: =R55*S55 -> 0 | U55: =T55+Q55+O55+N55+M55+L55 -> 0 | V55: =+(L55+N55+Q55+T55)/1 -> 0
B56: Assail 30 SG | C56: oz | R56: =IF('General Budget Assumptions'!$C$4="Moderate",'Chemical & Fertilizer Costs'!F$50,) -> 0 | S56: ='Chemical & Fertilizer Costs'!H$10 -> 4.466015625 | T56: 0 | U56: 0 | V56: =+(L56+N56+Q56+T56)/1 -> 0
B57: Irrigate & Check | H57: 4 | I57: Aug
B58: Irrigation Labor | C58: hour | P58: =+H57*0.5 -> 2 | Q58: =P58*Labor_Fuel_Interest!$C$12 -> 24.8 | U58: =T58+Q58+O58+N58+M58+L58 -> 24.8 | V58: =+(L58+N58+Q58+T58)/H$57 -> 6.2
B59: Mow Between Rows | H59: 2 | I59: Aug
B60: Rotary Cutter | C60: 7ft | D60: MFWD 50hp | F60: 8 | G60: =+Equipment!I$29 -> 0.169 | J60: =+H59*Equipment!M$29 -> 0.4394 | K60: =+H59*Equipment!K$29 -> 1.997918 | L60: =SUM(J60,K60) -> 2.437318 | M60: =+H59*Equipment!P$29 -> 2.90004 | N60: =+H59*Equipment!L$29 -> 1.28 | O60: =+H59*Equipment!O$29 -> 0.9 | P60: =G60*H59 -> 0.338 | Q60: =P60*Labor_Fuel_Interest!C$11 -> 5.83726 | U60: =T60+Q60+O60+N60+M60+L60 -> 13.354618 | V60: =+(L60+N60+Q60+T60)/H$59 -> 4.777289 | Y60: -
B61: Irrigate & Check | H61: 3 | I61: Sept
B62: Irrigation Labor | C62: hour | P62: =+H61*0.5 -> 1.5 | Q62: =P62*Labor_Fuel_Interest!$C$12 -> 18.6 | U62: =T62+Q62+O62+N62+M62+L62 -> 18.6 | V62: =+(L62+N62+Q62+T62)/H$61 -> 6.2
B63: Mow Between Rows | H63: 2 | I63: Sept
B64: Rotary Cutter | C64: 7ft | D64: MFWD 50hp | F64: 8 | G64: =+Equipment!I$29 -> 0.169 | J64: =+H63*Equipment!M$29 -> 0.4394 | K64: =+H63*Equipment!K$29 -> 1.997918 | L64: =SUM(J64,K64) -> 2.437318 | M64: =+H63*Equipment!P$29 -> 2.90004 | N64: =+H63*Equipment!L$29 -> 1.28 | O64: =+H63*Equipment!O$29 -> 0.9 | P64: =G64*H63 -> 0.338 | Q64: =P64*Labor_Fuel_Interest!C$11 -> 5.83726 | U64: =T64+Q64+O64+N64+M64+L64 -> 13.354618 | V64: =+(L64+N64+Q64+T64)/H$63 -> 4.777289
B65: Irrigate & Check | H65: 3 | I65: Oct
B66: Irrigation Labor | C66: hour | P66: =+H65*0.5 -> 1.5 | Q66: =P66*Labor_Fuel_Interest!$C$12 -> 18.6 | U66: =T66+Q66+O66+N66+M66+L66 -> 18.6 | V66: =+(L66+N66+Q66+T66)/H$65 -> 6.2
B67: Irrigation Setup | C67: acre | I67: Jan | U67: 258
B68: Harvest and Post-harvest Costs
B69: Plastic clamshell containers | C69: each | R69: =+IF('General Budget Assumptions'!C$5="100% Ready_Picked_Retail",Yield!B$8, IF('General Budget Assumptions'!C$5="50%PYO 50%Ready_Picked",(Yield!B$8*0.5),(Yield!B$8*0.25))) -> 6000 | S69: 0.16 | T69: =+R69*S69 -> 960 | U69: =T69+Q69+O69+N69+M69+L69 -> 960 | V69: =+(L69+N69+Q69+T69)/1 -> 960
B70: Harvest (labor for picking) | C70: hours | P70: =+IF('General Budget Assumptions'!C$5="100% Ready_Picked_Retail",240, IF('General Budget Assumptions'!C$5="50%PYO 50%Ready_Picked",(240*0.5),(240*0.25))) -> 240 | Q70: =P70*Labor_Fuel_Interest!$C$12 -> 2976 | U70: =T70+Q70+O70+N70+M70+L70 -> 2976 | V70: =+(L70+N70+Q70+T70)/1 -> 2976
B71: Refrigeration
B72: Refrigerator fix cost | C72: acre | R72: 1 | S72: 440 | T72: =+R72*S72 -> 440 | U72: =T72+Q72+O72+N72+M72+L72 -> 440
B73: Electricity | C73: days | R73: 30 | S73: 1.22 | T73: =+R73*S73 -> 36.6 | U73: =T73+Q73+O73+N73+M73+L73 -> 36.6 | V73: =+(L73+N73+Q73+T73)/1 -> 36.6
B74: Marketing (10% of gross revenue) | C74: acre | R74: 1 | S74: =+IF('General Budget Assumptions'!C$5="100% Ready_Picked_Retail",(Yield!B$8*'Blueberry prices'!C$9),IF('General Budget Assumptions'!C$5="50%PYO 50%Ready_Picked", ((0.5*Yield!B$8*'Blueberry prices'!B$9)+(0.5*Yield!B$8*'Blueberry prices'!C$9)), ((0.75*Yield!B$8*'Blueberry prices'!B$9)+(0.25*Yield!B$8*'Blueberry prices'!C$9))))*0.1 -> 2170 | T74: =+R74*S74 -> 2170 | U74: =T74+Q74+O74+N74+M74+L74 -> 2170 | V74: =+(L74+N74+Q74+T74)/1 -> 2170
B75: Totals | J75: =SUM(J7:J74) -> 6.9258 | K75: 31.196226 | L75: 38.122026 | M75: 45.79328 | N75: 14.8 | O75: 33.47 | P75: 309.766 | Q75: 3868.69182 | T75: =SUM(T7:T74) -> 5193.82375 | U75: =SUM(U7:U74) -> 9452.700876 | V75: =SUM(V7:V74) -> 8527.219911
B76: Interest on Operating Captial | U76: =+(V75*Labor_Fuel_Interest!C$16)/2 -> 266.4756222
B77: Operator and Unpaid family labor | P77: 19.95 | Q77: =+P77*Labor_Fuel_Interest!C$11 -> 344.5365 | U77: =+Q77 -> 344.5365
B78: Total Specified Cost | U78: =SUM(U75:U77) -> 10063.713
X200: Budget Year 4
X202: Items | Z202: Unit | AA202: Price | AB202: Quantity | AC202: Amount | AD202: Your Farm
X204: Direct Expenses
X205: Fertilizer
X206: Ammonium Sulfate | Z206: lb | AA206: =+S$20 -> 0.3745 | AB206: =+R$32+R$20+R$43 -> 60 | AC206: =+AA$8*AB$8 -> 22.47
X207: Soil Test | Z207: each | AA207: =+S$8 -> 15 | AB207: =+R$8 -> 1 | AC207: =+AA$9*AB$9 -> 15
X208: Weed control
X209: Mulch | Z209: cu yd | AA209: =+S$13 -> 19.83333333 | AB209: =+R$13 -> 68 | AC209: =+AB$11*AA$11 -> 1348.666667
X210: Chemicals
X211: Serenade ASO | Z211: qt | AA211: =+S$25 -> 9.95375 | AB211: =+SUM(R$25,R$48) -> 6 | AC211: =+AA$13*AB$13 -> 59.7225
X212: Entrust SC | Z212: oz | AA212: =+S$23 -> 14.13645833 | AB212: =+SUM(R$23,R$46) -> 10 | AC212: =AB$14*AA$14 -> 141.3645833
X213: Pristine | Z213: oz | AA213: =+S$24 -> 3.179354167 | AB213: =+SUM(R$24,R$47) -> 0 | AC213: =AB$15*AA$15 -> 0
X214: Switch 62.5 WG | Z214: oz | AA214: =+S$35 -> 5.544642857 | AB214: =+SUM(R$35,R$55) -> 0 | AC214: =+AA$16*AB$16 -> 0
X215: Assail 30 SG | Z215: oz | AA215: =+S$36 -> 4.466015625 | AB215: =+SUM(R$36,R$56) -> 0 | AC215: =+AA$17*AB$17 -> 0
X216: Operator Labor
X217: Tractors/Utility vehicles | Z217: hour | AA217: =Labor_Fuel_Interest!$C$11 -> 17.27 | AB217: =+SUM(P$17,P$22,P$29,P$31,P$34,P$40,P$45,P$52,P$54,P$60,P$64,P$11,P$19,P$42) -> 5.666 | AC217: =AB$19*AA$19 -> 97.85182
X218: Hand Labor
X219: Special Labor | Z219: hour | AA219: =Labor_Fuel_Interest!$C$12 -> 12.4 | AB219: =SUM(P$7,P$9,P$70,P$12) -> 292.6 | AC219: =AB$21*AA$21 -> 3628.24
X220: Irrigation Labor
X221: Special Labor | Z221: hour | AA221: =Labor_Fuel_Interest!C$12 -> 12.4 | AB221: =+SUM(P$15,P$27,P$38,P$50,P$58,P$62,P$66) -> 11.5 | AC221: =AB$23*AA$23 -> 142.6
X222: Diesel Fuel
X223: Tractors | Z223: gal | AA223: =Labor_Fuel_Interest!$E$4 -> 2.3 | AB223: =+SUM(K$17,K$29,K$31,K$40,K$52,K$60,K$64,K$11,K$19,K$42)/AA$25 -> 13.27662 | AC223: =AA$25*AB$25 -> 30.536226
X224: Gasoline
X225: Utility vehicles | Z225: gal | AA225: =Labor_Fuel_Interest!$E$5 -> 2.2 | AB225: =+SUM(K$22,K$34,K$45,K$54)/AA$27 -> 0.3 | AC225: =AB$27*AA$27 -> 0.66
X226: Repair & Maintenance
X227: Implements | Z227: acre | AA227: =+N$75 -> 14.8 | AB227: 1 | AC227: =AB$29*AA$29 -> 14.8
X228: Tractors | Z228: acre | AA228: =J$75 -> 6.9258 | AB228: 1 | AC228: =AB$30*AA$30 -> 6.9258
X229: Post-harvest Expenses
X230: Plastic clamshell containers | Z230: each | AA230: =+S$69 -> 0.16 | AB230: =+R$69 -> 6000 | AC230: =+AB$32*AA$32 -> 960
X231: Electricity | Z231: days | AA231: =+R$73 -> 30 | AB231: =+S$73 -> 1.22 | AC231: =+AA$33*AB$33 -> 36.6
X232: Marketing (10% of gross revenue) | Z232: acre | AA232: =+S$74 -> 2170 | AB232: 1 | AC232: =+AA$34*AB$34 -> 2170
X233: Irrigation Setup | Z233: acre | AA233: =U$67 -> 258 | AB233: 1 | AC233: =AB$35*AA$35 -> 258
X234: Interest on OP. CAP. | Z234: acre | AA234: =+U$76 -> 266.4756222 | AB234: 1 | AC234: =AB$36*AA$36 -> 266.4756222
X235: Total Direct Expenses | AC235: =SUM(AC$7:AC$36) -> 9199.913218 | AD235: =+SUM(AD204:AD234) -> 0
X237: Fixed Expenses
X238: Implements/Refrigerator | Z238: acre | AA238: =O$75+T$72 -> 473.47 | AB238: 1 | AC238: =AB$40*AA$40 -> 473.47
X239: Tractors | Z239: acre | AA239: =M$75 -> 45.79328 | AB239: 1 | AC239: =AB$41*AA$41 -> 45.79328
X241: Total Fixed Expenses | AC241: =SUM(AC$40:AC$41) -> 519.26328 | AD241: =+SUM(AD238:AD239) -> 0
X243: Operator and Unpaid family labor | Z243: hour | AA243: =Labor_Fuel_Interest!$C$11 -> 17.27 | AB243: =+P$77 -> 19.95 | AC243: =AB$45*AA$45 -> 344.5365
X245: Total Specified Expenses | AC245: =+AC$37+AC$43+AC$45 -> 10063.713 | AD245: =+SUM(AD235,AD241) -> 0

Sheet Blueberry Budget Y5
B2: Blueberry Enterprise Budget Year 5 | X2: Budget Year 5
B4: Operation / Operating Input | C4: Size/ Unit | D4: Power Unit Size | F4: # | G4: Perf Rate | H4: Times Over | I4: Month | J4: Power Unit Cost | N4: Equipment Cost | P4: Alloc Labor | R4: Operating / Durable Input | U4: Total Costs | X4: Items | Z4: Unit | AA4: Price | AB4: Quantity | AC4: Amount | AD4: Your Farm
J5: R & M | K5: Fuel | L5: Direct | M5: Fixed | N5: Direct | O5: Fixed | P5: Hours | Q5: Cost | R5: Amount | S5: Price | T5: Cost
X6: Direct Expenses
B7: Soil Test Hand Labor | C7: hour | H7: 1 | I7: March | P7: =+H7*0.6 -> 0.6 | Q7: =P7*Labor_Fuel_Interest!$C$12 -> 7.44 | U7: =T7+Q7+O7+N7+M7+L7 -> 7.44 | V7: =+(L7+N7+Q7+T7)/H7 -> 7.44 | X7: Fertilizer
B8: Soil Test | C8: each | R8: 1 | S8: =+'Soil test'!D$12 -> 15 | T8: =S8*R8 -> 15 | U8: 15 | V8: =+(L8+N8+Q8+T8)/H7 -> 15 | X8: Ammonium Sulfate | Z8: lb | AA8: =+S$16 -> 0.3745 | AB8: =+R$28+R$16+R$39 -> 60 | AC8: =+AA$8*AB$8 -> 22.47
B9: Pruner (Hand) | C9: each | H9: 1 | I9: March | P9: =+IF('General Budget Assumptions'!C$3="6'x12'",50,60) -> 60 | Q9: =+P9*Labor_Fuel_Interest!C$12 -> 744 | U9: 744 | V9: =+(L9+N9+Q9+T9)/H9 -> 744 | X9: Soil Test | Z9: each | AA9: =+S$8 -> 15 | AB9: =+R$8 -> 1 | AC9: =+AA$9*AB$9 -> 15
B10: Irrigate & Check | H10: 2 | I10: Apr | X10: Weed control
B11: Irrigation Labor | C11: hour | P11: =0.5*H10 -> 1 | Q11: =P11*Labor_Fuel_Interest!$C$12 -> 12.4 | U11: =T11+Q11+O11+N11+M11+L11 -> 12.4 | V11: =+(L11+N11+Q11+T11)/H$10 -> 6.2 | X11: Chemicals
B12: Mow Between Rows | H12: 2 | I12: Apr | X12: Serenade ASO | Z12: qt | AA12: =+S$21 -> 9.95375 | AB12: =+SUM(R$21,R$44) -> 6 | AC12: =+AA$12*AB$12 -> 59.7225
B13: Rotary Cutter | C13: 7ft | D13: MFWD 50hp | F13: 8 | G13: =+Equipment!I$29 -> 0.169 | J13: =+H12*Equipment!M$29 -> 0.4394 | K13: =+H12*Equipment!K$29 -> 1.997918 | L13: =SUM(J13,K13) -> 2.437318 | M13: =+H12*Equipment!P$29 -> 2.90004 | N13: =+H12*Equipment!L$29 -> 1.28 | O13: =+H12*Equipment!O$29 -> 0.9 | P13: =G13*H12 -> 0.338 | Q13: =P13*Labor_Fuel_Interest!$C$11 -> 5.83726 | U13: =T13+Q13+O13+N13+M13+L13 -> 13.354618 | V13: =+(L13+N13+Q13+T13)/H$12 -> 4.777289 | X13: Entrust SC | Z13: oz | AA13: =+S$19 -> 14.13645833 | AB13: =+SUM(R$19,R$42) -> 10 | AC13: =AB$13*AA$13 -> 141.3645833
B14: Fertilizing | H14: 1 | I14: Apr | X14: Pristine | Z14: oz | AA14: =+S$20 -> 3.179354167 | AB14: =+SUM(R$20,R$43) -> 0 | AC14: =AB$14*AA$14 -> 0
B15: Side Dresser | C15: 1R 3ft | D15: MFWD 50hp | F15: 8 | G15: =+Equipment!I$32 -> 0.846 | J15: =+H14*Equipment!M$32 -> 1.0998 | K15: =+H14*Equipment!K$32 -> 5.000706 | L15: =J15+K15 -> 6.100506 | M15: =+H14*Equipment!P$32 -> 7.25868 | N15: =+H14*Equipment!L$32 -> 2.33 | O15: =+H14*Equipment!O$32 -> 9.14 | P15: =G15*H14 -> 0.846 | Q15: =P15*Labor_Fuel_Interest!$C$11 -> 14.61042 | U15: =T15+Q15+O15+N15+M15+L15 -> 39.439606 | V15: =+(L15+N15+Q15+T15)/H$26 -> 23.040926 | X15: Switch 62.5 WG | Z15: oz | AA15: =+S$31 -> 5.544642857 | AB15: =+SUM(R$31,R$51) -> 0 | AC15: =+AA$15*AB$15 -> 0
B16: Ammonium sulfate | C16: lb | R16: 20 | S16: =+'Chemical & Fertilizer Costs'!F$24 -> 0.3745 | T16: =R16*S16 -> 7.49 | U16: 7.49 | V16: =+(L16+N16+Q16+T16)/H$26 -> 7.49 | X16: Assail 30 SG | Z16: oz | AA16: =+S$32 -> 4.466015625 | AB16: =+SUM(R$32,R$52) -> 0 | AC16: =+AA$16*AB$16 -> 0
B17: Spray # 1 | H17: =IF('General Budget Assumptions'!$C$4="moderate",2,1) -> 1 | I17: Apr | X17: Operator Labor
B18: Sprayer - Utility | C18: 4ft | D18: 4*4 | F18: 11 | G18: =+Equipment!I$38 -> 0.25 | J18: =+H17*Equipment!M$38 -> 0.24 | K18: =+H17*Equipment!K$38 -> 0.33 | L18: =J18+K18 -> 0.57 | M18: =+H17*Equipment!P$38 -> 1.6225 | N18: =+H17*Equipment!L$38 -> 0.02 | O18: =+H17*Equipment!O$38 -> 0.17 | P18: =G18*H17 -> 0.25 | Q18: =P18*Labor_Fuel_Interest!$C$11 -> 4.3175 | U18: =T18+Q18+O18+N18+M18+L18 -> 6.7 | V18: =+(L18+N18+Q18+T18)/H$17 -> 4.9075 | X18: Tractors/Utility vehicles | Z18: hour | AA18: =Labor_Fuel_Interest!$C$11 -> 17.27 | AB18: =+SUM(P$13,P$18,P$25,P$27,P$30,P$36,P$41,P$48,P$50,P$56,P$60,P$15,P$38) -> 5.066 | AC18: =AB$18*AA$18 -> 87.48982
B19: Entrust SC | C19: oz | R19: =+'Chemical & Fertilizer Costs'!F$36 -> 5 | S19: =+'Chemical & Fertilizer Costs'!H$7 -> 14.13645833 | T19: =R19*S19 -> 70.68229167 | U19: =T19+Q19+O19+N19+M19+L19 -> 70.68229167 | V19: =+(L19+N19+Q19+T19)/H$17 -> 70.68229167 | X19: Hand Labor
B20: Pristine | C20: oz | R20: =IF('General Budget Assumptions'!$C$4="Low",,'Chemical & Fertilizer Costs'!$F$40) -> 0 | S20: ='Chemical & Fertilizer Costs'!$H$8 -> 3.179354167 | T20: 0 | U20: 0 | V20: =+(L20+N20+Q20+T20)/H$17 -> 0 | X20: Special Labor | Z20: hour | AA20: =Labor_Fuel_Interest!$C$12 -> 12.4 | AB20: =SUM(P$7,P$9,P$66) -> 459 | AC20: =AB$20*AA$20 -> 5691.6
B21: Serenade ASO | C21: qt | R21: =IF('General Budget Assumptions'!$C$4="Low",'Chemical & Fertilizer Costs'!$F$31,) -> 3 | S21: ='Chemical & Fertilizer Costs'!H$6 -> 9.95375 | T21: =R21*S21 -> 29.86125 | U21: 29.86125 | V21: =+(L21+N21+Q21+T21)/H$17 -> 29.86125 | X21: Irrigation Labor
B22: Irrigate & Check | H22: 3 | I22: May | X22: Special Labor | Z22: hour | AA22: =Labor_Fuel_Interest!C$12 -> 12.4 | AB22: =+SUM(P$11,P$23,P$34,P$46,P$54,P$58,P$62) -> 11.5 | AC22: =AB$22*AA$22 -> 142.6
B23: Irrigation Labor | C23: hour | P23: =0.5*H22 -> 1.5 | Q23: =P23*Labor_Fuel_Interest!$C$12 -> 18.6 | U23: =T23+Q23+O23+N23+M23+L23 -> 18.6 | V23: =+(L23+N23+Q23+T23)/H$22 -> 6.2 | X23: Diesel Fuel
B24: Mow Between Rows | H24: 2 | I24: May | X24: Tractors | Z24: gal | AA24: =Labor_Fuel_Interest!$E$4 -> 2.3 | AB24: =+SUM(K$13,K$25,K$27,K$36,K$48,K$56,K$60,K$15,K$38)/AA$24 -> 11.73462 | AC24: =AA$24*AB$24 -> 26.989626
B25: Rotary Cutter | C25: 7ft | D25: MFWD 50hp | F25: 8 | G25: =+Equipment!I$29 -> 0.169 | J25: =+H24*Equipment!M$29 -> 0.4394 | K25: =+H24*Equipment!K$29 -> 1.997918 | L25: =SUM(J25,K25) -> 2.437318 | M25: =+H24*Equipment!P$29 -> 2.90004 | N25: =+H24*Equipment!L$29 -> 1.28 | O25: =+H24*Equipment!O$29 -> 0.9 | P25: =G25*H24 -> 0.338 | Q25: =P25*Labor_Fuel_Interest!$C$11 -> 5.83726 | U25: =T25+Q25+O25+N25+M25+L25 -> 13.354618 | V25: =+(L25+N25+Q25+T25)/H$24 -> 4.777289 | X25: Gasoline
B26: Fertilizing | H26: 1 | I26: May | X26: Utility vehicles | Z26: gal | AA26: =Labor_Fuel_Interest!$E$5 -> 2.2 | AB26: =+SUM(K$18,K$30,K$41,K$50)/AA$26 -> 0.3 | AC26: =AB$26*AA$26 -> 0.66
B27: Side Dresser | C27: 1R 3ft | D27: MFWD 50hp | F27: 8 | G27: =+Equipment!I$32 -> 0.846 | J27: =+H26*Equipment!M$32 -> 1.0998 | K27: =+H26*Equipment!K$32 -> 5.000706 | L27: =J27+K27 -> 6.100506 | M27: =+H26*Equipment!P$32 -> 7.25868 | N27: =+H26*Equipment!L$32 -> 2.33 | O27: =+H26*Equipment!O$32 -> 9.14 | P27: =G27*H26 -> 0.846 | Q27: =P27*Labor_Fuel_Interest!$C$11 -> 14.61042 | U27: =T27+Q27+O27+N27+M27+L27 -> 39.439606 | V27: =+(L27+N27+Q27+T27)/H$26 -> 23.040926 | X27: Repair & Maintenance
B28: Ammonium sulfate | C28: lb | R28: 20 | S28: =+'Chemical & Fertilizer Costs'!F$24 -> 0.3745 | T28: =R28*S28 -> 7.49 | U28: 7.49 | V28: =+(L28+N28+Q28+T28)/H$26 -> 7.49 | X28: Implements | Z28: acre | AA28: =+N$71 -> 14.71 | AB28: 1 | AC28: =AB$28*AA$28 -> 14.71
B29: Spray # 2 | H29: =IF('General Budget Assumptions'!$C$4="Moderate",1,) -> 0 | I29: May | X29: Tractors | Z29: acre | AA29: =J$71 -> 6.4158 | AB29: 1 | AC29: =AB$29*AA$29 -> 6.4158
B30: Sprayer - Utility | C30: 4ft | D30: 4*4 | F30: 11 | G30: =+Equipment!I$38 -> 0.25 | J30: =+H29*Equipment!M$38 -> 0 | K30: =+H29*Equipment!K$38 -> 0 | L30: =J30+K30 -> 0 | M30: =+H29*Equipment!P$38 -> 0 | N30: =+H29*Equipment!L$38 -> 0 | O30: =+H29*Equipment!O$38 -> 0 | P30: =G30*H29 -> 0 | Q30: =P30*Labor_Fuel_Interest!C11 -> 0 | U30: =T30+Q30+O30+N30+M30+L30 -> 0 | V30: =+(L30+N30+Q30+T30)/1 -> 0 | X30: Post-harvest Expenses
B31: Switch 62.5 | C31: oz | R31: =IF('General Budget Assumptions'!$C$4="Moderate",'Chemical & Fertilizer Costs'!F$45,) -> 0 | S31: ='Chemical & Fertilizer Costs'!H$9 -> 5.544642857 | T31: =R31*S31 -> 0 | U31: 0 | V31: =+(L31+N31+Q31+T31)/1 -> 0 | X31: Plastic clamshell containers | Z31: each | AA31: =+S$65 -> 0.16 | AB31: =+R$65 -> 9960 | AC31: =+AB$31*AA$31 -> 1593.6
B32: Assail 30 SG | C32: oz | R32: =IF('General Budget Assumptions'!$C$4="Moderate",'Chemical & Fertilizer Costs'!F$50,) -> 0 | S32: ='Chemical & Fertilizer Costs'!H$10 -> 4.466015625 | T32: 0 | U32: 0 | V32: =+(L32+N32+Q32+T32)/1 -> 0 | X32: Electricity | Z32: days | AA32: =+R$69 -> 30 | AB32: =+S$69 -> 1.22 | AC32: =+AA$32*AB$32 -> 36.6
B33: Irrigate & Check | H33: 4 | I33: June | X33: Marketing (10% of gross revenue) | Z33: acre | AA33: =+S$70 -> 3602.2 | AB33: 1 | AC33: =+AA$33*AB$33 -> 3602.2
B34: Irrigation Labor | C34: hour | P34: =0.5*H33 -> 2 | Q34: =P34*Labor_Fuel_Interest!$C$12 -> 24.8 | U34: =T34+Q34+O34+N34+M34+L34 -> 24.8 | V34: =+(L34+N34+Q34+T34)/H$33 -> 6.2 | X34: Irrigation Setup | Z34: acre | AA34: =U$63 -> 258 | AB34: 1 | AC34: =AB$34*AA$34 -> 258
B35: Mow Between Rows | H35: 2 | I35: June | X35: Interest on OP. CAP. | Z35: acre | AA35: =+U$72 -> 353.5487061 | AB35: 1 | AC35: =AB$35*AA$35 -> 353.5487061
B36: Rotary Cutter | C36: 7ft | D36: MFWD 50hp | F36: 8 | G36: =+Equipment!I$29 -> 0.169 | J36: =+H35*Equipment!M$29 -> 0.4394 | K36: =+H35*Equipment!K$29 -> 1.997918 | L36: =SUM(J36,K36) -> 2.437318 | M36: =+H35*Equipment!P$29 -> 2.90004 | N36: =+H35*Equipment!L$29 -> 1.28 | O36: =+H35*Equipment!O$29 -> 0.9 | P36: =G36*H35 -> 0.338 | Q36: =P36*Labor_Fuel_Interest!C$11 -> 5.83726 | U36: =T36+Q36+O36+N36+M36+L36 -> 13.354618 | V36: =+(L36+N36+Q36+T36)/H$35 -> 4.777289 | X36: Total Direct Expenses | AC36: =SUM(AC$7:AC$35) -> 12052.97104 | AD36: =+SUM(AD6:AD35) -> 0
B37: Fertilizing | H37: 1 | I37: June
B38: Side Dresser | C38: 1R 3ft | D38: MFWD 50hp | F38: 8 | G38: =+Equipment!I$32 -> 0.846 | J38: =+H37*Equipment!M$32 -> 1.0998 | K38: =+H37*Equipment!K$32 -> 5.000706 | L38: =J38+K38 -> 6.100506 | M38: =+H37*Equipment!P$32 -> 7.25868 | N38: =+H37*Equipment!L$32 -> 2.33 | O38: =+H37*Equipment!O$32 -> 9.14 | P38: =G38*H37 -> 0.846 | Q38: =P38*Labor_Fuel_Interest!$C$11 -> 14.61042 | U38: =T38+Q38+O38+N38+M38+L38 -> 39.439606 | V38: =+(L38+N38+Q38+T38)/H$26 -> 23.040926 | X38: Fixed Expenses
B39: Ammonium sulfate | C39: lb | R39: 20 | S39: =+'Chemical & Fertilizer Costs'!F$24 -> 0.3745 | T39: =R39*S39 -> 7.49 | U39: 7.49 | V39: =+(L39+N39+Q39+T39)/H$26 -> 7.49 | X39: Implements/Refrigerator | Z39: acre | AA39: =O$71+T$68 -> 473.16 | AB39: 1 | AC39: =AB$39*AA$39 -> 473.16
B40: Spray # 3 | H40: =IF('General Budget Assumptions'!$C$4="moderate",2,1) -> 1 | I40: June | X40: Tractors | Z40: acre | AA40: =M$71 -> 42.42128 | AB40: 1 | AC40: =AB$40*AA$40 -> 42.42128
B41: Sprayer - Utility | C41: 4ft | D41: 4*4 | F41: 11 | G41: =+Equipment!I$38 -> 0.25 | J41: =(Equipment!M$38)*H40 -> 0.24 | K41: =H40*Equipment!K$38 -> 0.33 | L41: =J41+K41 -> 0.57 | M41: =+H40*Equipment!P$38 -> 1.6225 | N41: =+H40*Equipment!L$38 -> 0.02 | O41: =+H40*Equipment!O$38 -> 0.17 | P41: =G41*H40 -> 0.25 | Q41: =P41*Labor_Fuel_Interest!$C$11 -> 4.3175 | U41: =T41+Q41+O41+N41+M41+L41 -> 6.7 | V41: =+(L41+N41+Q41+T41)/H$40 -> 4.9075
B42: Entrust SC | C42: oz | R42: =+'Chemical & Fertilizer Costs'!F$36 -> 5 | S42: =+'Chemical & Fertilizer Costs'!H$7 -> 14.13645833 | T42: =R42*S42 -> 70.68229167 | U42: =T42+Q42+O42+N42+M42+L42 -> 70.68229167 | V42: =+(L42+N42+Q42+T42)/H$40 -> 70.68229167 | X42: Total Fixed Expenses | AC42: =SUM(AC$39:AC$40) -> 515.58128 | AD42: =+SUM(AD39:AD40) -> 0
B43: Pristine | C43: oz | R43: =IF('General Budget Assumptions'!$C$4="Low",,'Chemical & Fertilizer Costs'!$F$40) -> 0 | S43: ='Chemical & Fertilizer Costs'!$H$8 -> 3.179354167 | T43: 0 | U43: 0 | V43: =+(L43+N43+Q43+T43)/H$40 -> 0
B44: Serenade ASO | C44: qt | R44: =IF('General Budget Assumptions'!$C$4="Low",'Chemical & Fertilizer Costs'!$F$31,) -> 3 | S44: ='Chemical & Fertilizer Costs'!H$6 -> 9.95375 | T44: =R44*S44 -> 29.86125 | U44: 29.86125 | V44: =+(L44+N44+Q44+T44)/H$40 -> 29.86125 | X44: Operator and Unpaid family labor | Z44: hour | AA44: =Labor_Fuel_Interest!$C$11 -> 17.27 | AB44: =+P$73 -> 19.95 | AC44: =AB$44*AA$44 -> 344.5365
B45: Irrigate & Check | H45: 4 | I45: July
B46: Irrigation Labor | C46: hour | P46: =+H45*0.5 -> 2 | Q46: =P46*Labor_Fuel_Interest!$C$12 -> 24.8 | U46: =T46+Q46+O46+N46+M46+L46 -> 24.8 | V46: =+(L46+N46+Q46+T46)/H$45 -> 6.2 | X46: Total Specified Expenses | AC46: =+AC$36+AC$42+AC$44 -> 12913.08882 | AD46: =+SUM(AD36,AD42) -> 0
B47: Mow Between Rows | H47: 2 | I47: July
B48: Rotary Cutter | C48: 7ft | D48: MFWD 50hp | F48: 8 | G48: =+Equipment!I$29 -> 0.169 | J48: =+H47*Equipment!M$29 -> 0.4394 | K48: =+H47*Equipment!K$29 -> 1.997918 | L48: =SUM(J48,K48) -> 2.437318 | M48: =+H47*Equipment!P$29 -> 2.90004 | N48: =+H47*Equipment!L$29 -> 1.28 | O48: =+H47*Equipment!O$29 -> 0.9 | P48: =G48*H47 -> 0.338 | Q48: =P48*Labor_Fuel_Interest!C$11 -> 5.83726 | U48: =T48+Q48+O48+N48+M48+L48 -> 13.354618 | V48: =+(L48+N48+Q48+T48)/H$47 -> 4.777289
B49: Spray # 4 | H49: =IF('General Budget Assumptions'!$C$4="Moderate",1,) -> 0 | I49: July
B50: Sprayer - Utility | C50: 4ft | D50: 4*4 | F50: 11 | G50: =+Equipment!I$38 -> 0.25 | J50: =(Equipment!M$38)*H49 -> 0 | K50: =H49*Equipment!K$38 -> 0 | L50: =J50+K50 -> 0 | M50: =+H49*Equipment!P$38 -> 0 | N50: =+H49*Equipment!L$38 -> 0 | O50: =+H49*Equipment!O$38 -> 0 | P50: =G50*H49 -> 0 | Q50: =P50*Labor_Fuel_Interest!$C$11 -> 0 | U50: =T50+Q50+O50+N50+M50+L50 -> 0 | V50: =+(L50+N50+Q50+T50)/1 -> 0
B51: Switch 62.5 | C51: oz | R51: =IF('General Budget Assumptions'!$C$4="Moderate",'Chemical & Fertilizer Costs'!F$45,) -> 0 | S51: ='Chemical & Fertilizer Costs'!H$9 -> 5.544642857 | T51: =R51*S51 -> 0 | U51: =T51+Q51+O51+N51+M51+L51 -> 0 | V51: =+(L51+N51+Q51+T51)/1 -> 0
B52: Assail 30 SG | C52: oz | R52: =IF('General Budget Assumptions'!$C$4="Moderate",'Chemical & Fertilizer Costs'!F$50,) -> 0 | S52: ='Chemical & Fertilizer Costs'!H$10 -> 4.466015625 | T52: 0 | U52: 0 | V52: =+(L52+N52+Q52+T52)/1 -> 0
B53: Irrigate & Check | H53: 4 | I53: Aug
B54: Irrigation Labor | C54: hour | P54: =+H53*0.5 -> 2 | Q54: =P54*Labor_Fuel_Interest!$C$12 -> 24.8 | U54: =T54+Q54+O54+N54+M54+L54 -> 24.8 | V54: =+(L54+N54+Q54+T54)/H$53 -> 6.2
B55: Mow Between Rows | H55: 2 | I55: Aug
B56: Rotary Cutter | C56: 7ft | D56: MFWD 50hp | F56: 8 | G56: =+Equipment!I$29 -> 0.169 | J56: =+H55*Equipment!M$29 -> 0.4394 | K56: =+H55*Equipment!K$29 -> 1.997918 | L56: =SUM(J56,K56) -> 2.437318 | M56: =+H55*Equipment!P$29 -> 2.90004 | N56: =+H55*Equipment!L$29 -> 1.28 | O56: =+H55*Equipment!O$29 -> 0.9 | P56: =G56*H55 -> 0.338 | Q56: =P56*Labor_Fuel_Interest!C$11 -> 5.83726 | U56: =T56+Q56+O56+N56+M56+L56 -> 13.354618 | V56: =+(L56+N56+Q56+T56)/H$55 -> 4.777289
B57: Irrigate & Check | H57: 3 | I57: Sept
B58: Irrigation Labor | C58: hour | P58: =+H57*0.5 -> 1.5 | Q58: =P58*Labor_Fuel_Interest!$C$12 -> 18.6 | U58: =T58+Q58+O58+N58+M58+L58 -> 18.6 | V58: =+(L58+N58+Q58+T58)/H$57 -> 6.2
B59: Mow Between Rows | H59: 2 | I59: Sept | Y59: -
B60: Rotary Cutter | C60: 7ft | D60: MFWD 50hp | F60: 8 | G60: =+Equipment!I$29 -> 0.169 | J60: =+H59*Equipment!M$29 -> 0.4394 | K60: =+H59*Equipment!K$29 -> 1.997918 | L60: =SUM(J60,K60) -> 2.437318 | M60: =+H59*Equipment!P$29 -> 2.90004 | N60: =+H59*Equipment!L$29 -> 1.28 | O60: =+H59*Equipment!O$29 -> 0.9 | P60: =G60*H59 -> 0.338 | Q60: =P60*Labor_Fuel_Interest!C$11 -> 5.83726 | U60: =T60+Q60+O60+N60+M60+L60 -> 13.354618 | V60: =+(L60+N60+Q60+T60)/H$59 -> 4.777289
B61: Irrigate & Check | H61: 3 | I61: Oct
B62: Irrigation Labor | C62: hour | P62: =+H61*0.5 -> 1.5 | Q62: =P62*Labor_Fuel_Interest!$C$12 -> 18.6 | U62: =T62+Q62+O62+N62+M62+L62 -> 18.6 | V62: =+(L62+N62+Q62+T62)/H$61 -> 6.2
B63: Irrigation Setup | C63: acre | I63: Jan | U63: 258
B64: Harvest and Post-harvest Costs
B65: Plastic clamshell containers | C65: each | R65: =+IF('General Budget Assumptions'!C$5="100% Ready_Picked_Retail",Yield!B$9, IF('General Budget Assumptions'!C$5="50%PYO 50%Ready_Picked",(Yield!B$9*0.5),(Yield!B$9*0.25))) -> 9960 | S65: 0.16 | T65: =+R65*S65 -> 1593.6 | U65: =T65+Q65+O65+N65+M65+L65 -> 1593.6 | V65: =+(L65+N65+Q65+T65)/1 -> 1593.6
B66: Harvest (labor for picking) | C66: hours | P66: =+IF('General Budget Assumptions'!C$5="100% Ready_Picked_Retail",398.4, IF('General Budget Assumptions'!C$5="50%PYO 50%Ready_Picked",(398.4*0.5),(398.4*0.25))) -> 398.4 | Q66: =P66*Labor_Fuel_Interest!$C$12 -> 4940.16 | U66: =T66+Q66+O66+N66+M66+L66 -> 4940.16 | V66: =+(L66+N66+Q66+T66)/1 -> 4940.16
B67: Refrigeration
B68: Refrigerator fix cost | C68: acre | R68: 1 | S68: 440 | T68: =+R68*S68 -> 440 | U68: =T68+Q68+O68+N68+M68+L68 -> 440
B69: Electricity | C69: days | R69: 30 | S69: 1.22 | T69: =+R69*S69 -> 36.6 | U69: =T69+Q69+O69+N69+M69+L69 -> 36.6 | V69: =+(L69+N69+Q69+T69)/1 -> 36.6
B70: Marketing (10% of gross revenue) | C70: acre | R70: 1 | S70: =+IF('General Budget Assumptions'!C$5="100% Ready_Picked_Retail",(Yield!B$9*'Blueberry prices'!C$9),IF('General Budget Assumptions'!C$5="50%PYO 50%Ready_Picked", ((0.5*Yield!B$9*'Blueberry prices'!B$9)+(0.5*Yield!B$9*'Blueberry prices'!C$9)), ((0.75*Yield!B$9*'Blueberry prices'!B$9)+(0.25*Yield!B$9*'Blueberry prices'!C$9))))*0.1 -> 3602.2 | T70: =+R70*S70 -> 3602.2 | U70: =T70+Q70+O70+N70+M70+L70 -> 3602.2 | V70: =+(L70+N70+Q70+T70)/1 -> 3602.2
B71: Totals | J71: =SUM(J7:J70) -> 6.4158 | K71: 27.649626 | L71: 34.065426 | M71: 42.42128 | N71: 14.71 | O71: 33.16 | P71: 475.566 | Q71: 5921.68982 | T71: =SUM(T7:T70) -> 5910.957083 | U71: =SUM(U7:U70) -> 12215.00361 | V71: =SUM(V7:V70) -> 11313.5586
B72: Interest on Operating Captial | U72: =+(V71*Labor_Fuel_Interest!C$16)/2 -> 353.5487061
B73: Operator and Unpaid family labor | P73: 19.95 | Q73: =+P73*Labor_Fuel_Interest!C$11 -> 344.5365 | U73: =+Q73 -> 344.5365
B74: Total Specified Cost | U74: =SUM(U71:U73) -> 12913.08882
X200: Budget Year 5
X202: Items | Z202: Unit | AA202: Price | AB202: Quantity | AC202: Amount | AD202: Your Farm
X204: Direct Expenses
X205: Fertilizer
X206: Ammonium Sulfate | Z206: lb | AA206: =+S$16 -> 0.3745 | AB206: =+R$28+R$16+R$39 -> 60 | AC206: =+AA$8*AB$8 -> 22.47
X207: Soil Test | Z207: each | AA207: =+S$8 -> 15 | AB207: =+R$8 -> 1 | AC207: =+AA$9*AB$9 -> 15
X208: Weed control
X209: Chemicals
X210: Serenade ASO | Z210: qt | AA210: =+S$21 -> 9.95375 | AB210: =+SUM(R$21,R$44) -> 6 | AC210: =+AA$12*AB$12 -> 59.7225
X211: Entrust SC | Z211: oz | AA211: =+S$19 -> 14.13645833 | AB211: =+SUM(R$19,R$42) -> 10 | AC211: =AB$13*AA$13 -> 141.3645833
X212: Pristine | Z212: oz | AA212: =+S$20 -> 3.179354167 | AB212: =+SUM(R$20,R$43) -> 0 | AC212: =AB$14*AA$14 -> 0
X213: Switch 62.5 WG | Z213: oz | AA213: =+S$31 -> 5.544642857 | AB213: =+SUM(R$31,R$51) -> 0 | AC213: =+AA$15*AB$15 -> 0
X214: Assail 30 SG | Z214: oz | AA214: =+S$32 -> 4.466015625 | AB214: =+SUM(R$32,R$52) -> 0 | AC214: =+AA$16*AB$16 -> 0
X215: Operator Labor
X216: Tractors/Utility vehicles | Z216: hour | AA216: =Labor_Fuel_Interest!$C$11 -> 17.27 | AB216: =+SUM(P$13,P$18,P$25,P$27,P$30,P$36,P$41,P$48,P$50,P$56,P$60,P$15,P$38) -> 5.066 | AC216: =AB$18*AA$18 -> 87.48982
X217: Hand Labor
X218: Special Labor | Z218: hour | AA218: =Labor_Fuel_Interest!$C$12 -> 12.4 | AB218: =SUM(P$7,P$9,P$66) -> 459 | AC218: =AB$20*AA$20 -> 5691.6
X219: Irrigation Labor
X220: Special Labor | Z220: hour | AA220: =Labor_Fuel_Interest!C$12 -> 12.4 | AB220: =+SUM(P$11,P$23,P$34,P$46,P$54,P$58,P$62) -> 11.5 | AC220: =AB$22*AA$22 -> 142.6
X221: Diesel Fuel
X222: Tractors | Z222: gal | AA222: =Labor_Fuel_Interest!$E$4 -> 2.3 | AB222: =+SUM(K$13,K$25,K$27,K$36,K$48,K$56,K$60,K$15,K$38)/AA$24 -> 11.73462 | AC222: =AA$24*AB$24 -> 26.989626
X223: Gasoline
X224: Utility vehicles | Z224: gal | AA224: =Labor_Fuel_Interest!$E$5 -> 2.2 | AB224: =+SUM(K$18,K$30,K$41,K$50)/AA$26 -> 0.3 | AC224: =AB$26*AA$26 -> 0.66
X225: Repair & Maintenance
X226: Implements | Z226: acre | AA226: =+N$71 -> 14.71 | AB226: 1 | AC226: =AB$28*AA$28 -> 14.71
X227: Tractors | Z227: acre | AA227: =J$71 -> 6.4158 | AB227: 1 | AC227: =AB$29*AA$29 -> 6.4158
X228: Post-harvest Expenses
X229: Plastic clamshell containers | Z229: each | AA229: =+S$65 -> 0.16 | AB229: =+R$65 -> 9960 | AC229: =+AB$31*AA$31 -> 1593.6
X230: Electricity | Z230: days | AA230: =+R$69 -> 30 | AB230: =+S$69 -> 1.22 | AC230: =+AA$32*AB$32 -> 36.6
X231: Marketing (10% of gross revenue) | Z231: acre | AA231: =+S$70 -> 3602.2 | AB231: 1 | AC231: =+AA$33*AB$33 -> 3602.2
X232: Irrigation Setup | Z232: acre | AA232: =U$63 -> 258 | AB232: 1 | AC232: =AB$34*AA$34 -> 258
X233: Interest on OP. CAP. | Z233: acre | AA233: =+U$72 -> 353.5487061 | AB233: 1 | AC233: =AB$35*AA$35 -> 353.5487061
X234: Total Direct Expenses | AC234: =SUM(AC$7:AC$35) -> 12052.97104 | AD234: =+SUM(AD204:AD233) -> 0
X236: Fixed Expenses
X237: Implements/Refrigerator | Z237: acre | AA237: =O$71+T$68 -> 473.16 | AB237: 1 | AC237: =AB$39*AA$39 -> 473.16
X238: Tractors | Z238: acre | AA238: =M$71 -> 42.42128 | AB238: 1 | AC238: =AB$40*AA$40 -> 42.42128
X240: Total Fixed Expenses | AC240: =SUM(AC$39:AC$40) -> 515.58128 | AD240: =+SUM(AD237:AD238) -> 0
X242: Operator and Unpaid family labor | Z242: hour | AA242: =Labor_Fuel_Interest!$C$11 -> 17.27 | AB242: =+P$73 -> 19.95 | AC242: =AB$44*AA$44 -> 344.5365
X244: Total Specified Expenses | AC244: =+AC$36+AC$42+AC$44 -> 12913.08882 | AD244: =+SUM(AD234,AD240) -> 0

Sheet Blueberry Budget Y6
B2: Blueberry Enterprise Budget Year 6 | X2: Budget Year 6
B4: Operation / Operating Input | C4: Size/ Unit | D4: Power Unit Size | F4: # | G4: Perf Rate | H4: Times Over | I4: Month | J4: Power Unit Cost | N4: Equipment Cost | P4: Alloc Labor | R4: Operating / Durable Input | U4: Total Costs | X4: Items | Z4: Unit | AA4: Price | AB4: Quantity | AC4: Amount | AD4: Your Farm
J5: R & M | K5: Fuel | L5: Direct | M5: Fixed | N5: Direct | O5: Fixed | P5: Hours | Q5: Cost | R5: Amount | S5: Price | T5: Cost
X6: Direct Expenses
B7: Soil Test Hand Labor | C7: hour | H7: 1 | I7: March | P7: =+H7*0.6 -> 0.6 | Q7: =P7*Labor_Fuel_Interest!$C$12 -> 7.44 | U7: =T7+Q7+O7+N7+M7+L7 -> 7.44 | V7: =+(L7+N7+Q7+T7)/H7 -> 7.44 | X7: Fertilizer
B8: Soil Test | C8: each | R8: 1 | S8: =+'Soil test'!D12 -> 15 | T8: =S8*R8 -> 15 | U8: 15 | V8: =+(L8+N8+Q8+T8)/H7 -> 15 | X8: Ammonium Sulfate | Z8: lb | AA8: =+S$20 -> 0.3745 | AB8: =+R$32+R$20+R$43 -> 60 | AC8: =+AA$8*AB$8 -> 22.47
B9: Pruner (Hand) | C9: each | H9: 1 | I9: March | P9: =+IF('General Budget Assumptions'!C$3="6'x12'",50,60) -> 60 | Q9: =+P9*Labor_Fuel_Interest!C$12 -> 744 | U9: 744 | V9: =+(L9+N9+Q9+T9)/H9 -> 744 | X9: Soil Test | Z9: each | AA9: =+S$8 -> 15 | AB9: =+R$8 -> 1 | AC9: =+AA$9*AB$9 -> 15
B10: Incorporate Mulch | H10: 1 | I10: March | X10: Weed control
B11: Trailer Utility | C11: 10ft | D11: MFWD 50hp | F11: 4 | G11: =+Equipment!I$47 -> 0.6 | J11: =+H10*Equipment!M$47 -> 0.51 | K11: =+Equipment!K$47*H10 -> 3.5466 | L11: =J11+K11 -> 4.0566 | M11: =+Equipment!P$47*H10 -> 3.372 | N11: =+Equipment!L$47*H10 -> 0.09 | O11: =+Equipment!O$47*H10 -> 0.31 | P11: =G11*H10 -> 0.6 | Q11: =P11*Labor_Fuel_Interest!$C$11 -> 10.362 | U11: =T11+Q11+O11+N11+M11+L11 -> 18.1906 | V11: =+(L11+N11+Q11+T11)/H$10 -> 14.5086 | X11: Mulch | Z11: cu yd | AA11: =+S$13 -> 19.83333333 | AB11: =+R$13 -> 68 | AC11: =+AB$11*AA$11 -> 1348.666667
B12: Hand Labor | C12: hour | P12: 16 | Q12: =P12*Labor_Fuel_Interest!$C$12 -> 198.4 | U12: 198.4 | V12: =+(L12+N12+Q12+T12)/H$10 -> 198.4 | X12: Chemicals
B13: Mulch | C13: cu yd | R13: 68 | S13: =+'Mulch cost'!D$10 -> 19.83333333 | T13: =R13*S13 -> 1348.666667 | U13: =T13+Q13+O13+N13+M13+L13 -> 1348.666667 | V13: =+(L13+N13+Q13+T13)/H$10 -> 1348.666667 | X13: Serenade ASO | Z13: qt | AA13: =+S$25 -> 9.95375 | AB13: =+SUM(R$25,R$48) -> 6 | AC13: =+AA$13*AB$13 -> 59.7225
B14: Irrigate & Check | H14: 2 | I14: Apr | X14: Entrust SC | Z14: oz | AA14: =+S$23 -> 14.13645833 | AB14: =+SUM(R$23,R$46) -> 10 | AC14: =AB$14*AA$14 -> 141.3645833
B15: Irrigation Labor | C15: hour | P15: =0.5*H14 -> 1 | Q15: =P15*Labor_Fuel_Interest!$C$12 -> 12.4 | U15: =T15+Q15+O15+N15+M15+L15 -> 12.4 | V15: =+(L15+N15+Q15+T15)/H$14 -> 6.2 | X15: Pristine | Z15: oz | AA15: =+S$24 -> 3.179354167 | AB15: =+SUM(R$24,R$47) -> 0 | AC15: =AB$15*AA$15 -> 0
B16: Mow Between Rows | H16: 2 | I16: Apr | X16: Switch 62.5 WG | Z16: oz | AA16: =+S$35 -> 5.544642857 | AB16: =+SUM(R$35,R$55) -> 0 | AC16: =+AA$16*AB$16 -> 0
B17: Rotary Cutter | C17: 7ft | D17: MFWD 50hp | F17: 8 | G17: =+Equipment!I29 -> 0.169 | J17: =+H16*Equipment!M29 -> 0.4394 | K17: =+H16*Equipment!K29 -> 1.997918 | L17: =SUM(J17,K17) -> 2.437318 | M17: =+H16*Equipment!P29 -> 2.90004 | N17: =+H16*Equipment!L29 -> 1.28 | O17: =+H16*Equipment!O29 -> 0.9 | P17: =G17*H16 -> 0.338 | Q17: =P17*Labor_Fuel_Interest!$C$11 -> 5.83726 | U17: =T17+Q17+O17+N17+M17+L17 -> 13.354618 | V17: =+(L17+N17+Q17+T17)/H$16 -> 4.777289 | X17: Assail 30 SG | Z17: oz | AA17: =+S$36 -> 4.466015625 | AB17: =+SUM(R$36,R$56) -> 0 | AC17: =+AA$17*AB$17 -> 0
B18: Fertilizing | H18: 1 | I18: Apr | X18: Operator Labor
B19: Side Dresser | C19: 1R 3ft | D19: MFWD 50hp | F19: 8 | G19: =+Equipment!I$32 -> 0.846 | J19: =+H18*Equipment!M$32 -> 1.0998 | K19: =+H18*Equipment!K$32 -> 5.000706 | L19: =J19+K19 -> 6.100506 | M19: =+H18*Equipment!P$32 -> 7.25868 | N19: =+H18*Equipment!L$32 -> 2.33 | O19: =+H18*Equipment!O$32 -> 9.14 | P19: =G19*H18 -> 0.846 | Q19: =P19*Labor_Fuel_Interest!$C$11 -> 14.61042 | U19: =T19+Q19+O19+N19+M19+L19 -> 39.439606 | V19: =+(L19+N19+Q19+T19)/H$26 -> 7.680308667 | X19: Tractors/Utility vehicles | Z19: hour | AA19: =Labor_Fuel_Interest!$C$11 -> 17.27 | AB19: =+SUM(P$17,P$22,P$29,P$31,P$34,P$40,P$45,P$52,P$54,P$60,P$64,P$11,P$19,P$42) -> 5.666 | AC19: =AB$19*AA$19 -> 97.85182
B20: Ammonium sulfate | C20: lb | R20: 20 | S20: =+'Chemical & Fertilizer Costs'!F$24 -> 0.3745 | T20: =R20*S20 -> 7.49 | U20: 7.49 | V20: =+(L20+N20+Q20+T20)/H$26 -> 2.496666667 | X20: Hand Labor
B21: Spray # 1 | H21: =IF('General Budget Assumptions'!$C$4="moderate",2,1) -> 1 | I21: Apr | X21: Special Labor | Z21: hour | AA21: =Labor_Fuel_Interest!$C$12 -> 12.4 | AB21: =SUM(P$7,P$9,P$70,P$12) -> 556.6 | AC21: =AB$21*AA$21 -> 6901.84
B22: Sprayer - Utility | C22: 4ft | D22: 4*4 | F22: 11 | G22: =+Equipment!I$38 -> 0.25 | J22: =+H21*Equipment!M$38 -> 0.24 | K22: =+H21*Equipment!K$38 -> 0.33 | L22: =J22+K22 -> 0.57 | M22: =+H21*Equipment!P$38 -> 1.6225 | N22: =+H21*Equipment!L$38 -> 0.02 | O22: =+H21*Equipment!O$38 -> 0.17 | P22: =G22*H21 -> 0.25 | Q22: =P22*Labor_Fuel_Interest!$C$11 -> 4.3175 | U22: =T22+Q22+O22+N22+M22+L22 -> 6.7 | V22: =+(L22+N22+Q22+T22)/H$21 -> 4.9075 | X22: Irrigation Labor
B23: Entrust SC | C23: oz | R23: =+'Chemical & Fertilizer Costs'!F$36 -> 5 | S23: =+'Chemical & Fertilizer Costs'!H$7 -> 14.13645833 | T23: =R23*S23 -> 70.68229167 | U23: =T23+Q23+O23+N23+M23+L23 -> 70.68229167 | V23: =+(L23+N23+Q23+T23)/H$21 -> 70.68229167 | X23: Special Labor | Z23: hour | AA23: =Labor_Fuel_Interest!C$12 -> 12.4 | AB23: =+SUM(P$15,P$27,P$38,P$50,P$58,P$62,P$66) -> 11.5 | AC23: =AB$23*AA$23 -> 142.6
B24: Pristine | C24: oz | R24: =IF('General Budget Assumptions'!$C$4="Low",,'Chemical & Fertilizer Costs'!$F$40) -> 0 | S24: ='Chemical & Fertilizer Costs'!$H$8 -> 3.179354167 | T24: 0 | U24: 0 | V24: =+(L24+N24+Q24+T24)/H$21 -> 0 | X24: Diesel Fuel
B25: Serenade ASO | C25: qt | R25: =IF('General Budget Assumptions'!$C$4="Low",'Chemical & Fertilizer Costs'!$F$31,) -> 3 | S25: ='Chemical & Fertilizer Costs'!H$6 -> 9.95375 | T25: =R25*S25 -> 29.86125 | U25: 29.86125 | V25: =+(L25+N25+Q25+T25)/H$21 -> 29.86125 | X25: Tractors | Z25: gal | AA25: =Labor_Fuel_Interest!$E$4 -> 2.3 | AB25: =+SUM(K$17,K$29,K$31,K$40,K$52,K$60,K$64,K$11,K$19,K$42)/AA$25 -> 13.27662 | AC25: =AA$25*AB$25 -> 30.536226
B26: Irrigate & Check | H26: 3 | I26: May | X26: Gasoline
B27: Irrigation Labor | C27: hour | P27: =0.5*H26 -> 1.5 | Q27: =P27*Labor_Fuel_Interest!$C$12 -> 18.6 | U27: =T27+Q27+O27+N27+M27+L27 -> 18.6 | V27: =+(L27+N27+Q27+T27)/H$26 -> 6.2 | X27: Utility vehicles | Z27: gal | AA27: =Labor_Fuel_Interest!$E$5 -> 2.2 | AB27: =+SUM(K$22,K$34,K$45,K$54)/AA$27 -> 0.3 | AC27: =AB$27*AA$27 -> 0.66
B28: Mow Between Rows | H28: 2 | I28: May | X28: Repair & Maintenance
B29: Rotary Cutter | C29: 7ft | D29: MFWD 50hp | F29: 8 | G29: =+Equipment!I$29 -> 0.169 | J29: =+H28*Equipment!M$29 -> 0.4394 | K29: =+H28*Equipment!K$29 -> 1.997918 | L29: =SUM(J29,K29) -> 2.437318 | M29: =+H28*Equipment!P$29 -> 2.90004 | N29: =+H28*Equipment!L$29 -> 1.28 | O29: =+H28*Equipment!O$29 -> 0.9 | P29: =G29*H28 -> 0.338 | Q29: =P29*Labor_Fuel_Interest!$C$11 -> 5.83726 | U29: =T29+Q29+O29+N29+M29+L29 -> 13.354618 | V29: =+(L29+N29+Q29+T29)/H$28 -> 4.777289 | X29: Implements | Z29: acre | AA29: =+N$75 -> 14.8 | AB29: 1 | AC29: =AB$29*AA$29 -> 14.8
B30: Fertilizing | H30: 1 | I30: May | X30: Tractors | Z30: acre | AA30: =J$75 -> 6.9258 | AB30: 1 | AC30: =AB$30*AA$30 -> 6.9258
B31: Side Dresser | C31: 1R 3ft | D31: MFWD 50hp | F31: 8 | G31: =+Equipment!I$32 -> 0.846 | J31: =+H30*Equipment!M$32 -> 1.0998 | K31: =+H30*Equipment!K$32 -> 5.000706 | L31: =J31+K31 -> 6.100506 | M31: =+H30*Equipment!P$32 -> 7.25868 | N31: =+H30*Equipment!L$32 -> 2.33 | O31: =+H30*Equipment!O$32 -> 9.14 | P31: =G31*H30 -> 0.846 | Q31: =P31*Labor_Fuel_Interest!$C$11 -> 14.61042 | U31: =T31+Q31+O31+N31+M31+L31 -> 39.439606 | V31: =+(L31+N31+Q31+T31)/H$30 -> 23.040926 | X31: Post-harvest Expenses
B32: Ammonium sulfate | C32: lb | R32: 20 | S32: =+'Chemical & Fertilizer Costs'!F$24 -> 0.3745 | T32: =R32*S32 -> 7.49 | U32: 7.49 | V32: =+(L32+N32+Q32+T32)/H$30 -> 7.49 | X32: Plastic clamshell containers | Z32: each | AA32: =+S$69 -> 0.16 | AB32: =+R$69 -> 12000 | AC32: =+AB$32*AA$32 -> 1920
B33: Spray # 2 | H33: =IF('General Budget Assumptions'!$C$4="Moderate",1,) -> 0 | I33: May | X33: Electricity | Z33: days | AA33: =+R$73 -> 30 | AB33: =+S$73 -> 1.22 | AC33: =+AA$33*AB$33 -> 36.6
B34: Sprayer - Utility | C34: 4ft | D34: 4*4 | F34: 11 | G34: =+Equipment!I$38 -> 0.25 | J34: =+H33*Equipment!M$38 -> 0 | K34: =+H33*Equipment!K$38 -> 0 | L34: =J34+K34 -> 0 | M34: =+H33*Equipment!P$38 -> 0 | N34: =+H33*Equipment!L$38 -> 0 | O34: =+H33*Equipment!O$38 -> 0 | P34: =G34*H33 -> 0 | Q34: =P34*Labor_Fuel_Interest!C11 -> 0 | U34: =T34+Q34+O34+N34+M34+L34 -> 0 | V34: =+(L34+N34+Q34+T34)/1 -> 0 | X34: Marketing (10% of gross revenue) | Z34: acre | AA34: =+S$74 -> 4340 | AB34: 1 | AC34: =+AA$34*AB$34 -> 4340
B35: Switch 62.5 | C35: oz | R35: =IF('General Budget Assumptions'!$C$4="Moderate",'Chemical & Fertilizer Costs'!F$45,) -> 0 | S35: ='Chemical & Fertilizer Costs'!H$9 -> 5.544642857 | T35: =R35*S35 -> 0 | U35: 0 | V35: =+(L35+N35+Q35+T35)/1 -> 0 | X35: Irrigation Setup | Z35: acre | AA35: =U$67 -> 258 | AB35: 1 | AC35: =AB$35*AA$35 -> 258
B36: Assail 30 SG | C36: oz | R36: =IF('General Budget Assumptions'!$C$4="Moderate",'Chemical & Fertilizer Costs'!F$50,) -> 0 | S36: ='Chemical & Fertilizer Costs'!H$10 -> 4.466015625 | T36: 0 | U36: 0 | V36: =+(L36+N36+Q36+T36)/1 -> 0 | X36: Interest on OP. CAP. | Z36: acre | AA36: =+U$76 -> 466.5881222 | AB36: 1 | AC36: =AB$36*AA$36 -> 466.5881222
B37: Irrigate & Check | H37: 4 | I37: June | X37: Total Direct Expenses | AC37: =SUM(AC$7:AC$36) -> 15803.62572 | AD37: =+SUM(AD6:AD36) -> 0
B38: Irrigation Labor | C38: hour | P38: =0.5*H37 -> 2 | Q38: =P38*Labor_Fuel_Interest!$C$12 -> 24.8 | U38: =T38+Q38+O38+N38+M38+L38 -> 24.8 | V38: =+(L38+N38+Q38+T38)/H$37 -> 6.2
B39: Mow Between Rows | H39: 2 | I39: June | X39: Fixed Expenses
B40: Rotary Cutter | C40: 7ft | D40: MFWD 50hp | F40: 8 | G40: =+Equipment!I$29 -> 0.169 | J40: =+H39*Equipment!M$29 -> 0.4394 | K40: =+H39*Equipment!K$29 -> 1.997918 | L40: =SUM(J40,K40) -> 2.437318 | M40: =+H39*Equipment!P$29 -> 2.90004 | N40: =+H39*Equipment!L$29 -> 1.28 | O40: =+H39*Equipment!O$29 -> 0.9 | P40: =G40*H39 -> 0.338 | Q40: =P40*Labor_Fuel_Interest!C$11 -> 5.83726 | U40: =T40+Q40+O40+N40+M40+L40 -> 13.354618 | V40: =+(L40+N40+Q40+T40)/H$39 -> 4.777289 | X40: Implements/Refrigerator | Z40: acre | AA40: =O$75+T$72 -> 473.47 | AB40: 1 | AC40: =AB$40*AA$40 -> 473.47
B41: Fertilizing | H41: 1 | I41: June | X41: Tractors | Z41: acre | AA41: =M$75 -> 45.79328 | AB41: 1 | AC41: =AB$41*AA$41 -> 45.79328
B42: Side Dresser | C42: 1R 3ft | D42: MFWD 50hp | F42: 8 | G42: =+Equipment!I$32 -> 0.846 | J42: =+H41*Equipment!M$32 -> 1.0998 | K42: =+H41*Equipment!K$32 -> 5.000706 | L42: =J42+K42 -> 6.100506 | M42: =+H41*Equipment!P$32 -> 7.25868 | N42: =+H41*Equipment!L$32 -> 2.33 | O42: =+H41*Equipment!O$32 -> 9.14 | P42: =G42*H41 -> 0.846 | Q42: =P42*Labor_Fuel_Interest!$C$11 -> 14.61042 | U42: =T42+Q42+O42+N42+M42+L42 -> 39.439606 | V42: =+(L42+N42+Q42+T42)/H$30 -> 23.040926
B43: Ammonium sulfate | C43: lb | R43: 20 | S43: =+'Chemical & Fertilizer Costs'!F$24 -> 0.3745 | T43: =R43*S43 -> 7.49 | U43: 7.49 | V43: =+(L43+N43+Q43+T43)/H$30 -> 7.49 | X43: Total Fixed Expenses | AC43: =SUM(AC$40:AC$41) -> 519.26328 | AD43: =+SUM(AD40:AD41) -> 0
B44: Spray # 3 | H44: =IF('General Budget Assumptions'!$C$4="moderate",2,1) -> 1 | I44: June
B45: Sprayer - Utility | C45: 4ft | D45: 4*4 | F45: 11 | G45: =+Equipment!I$38 -> 0.25 | J45: =(Equipment!M$38)*H44 -> 0.24 | K45: =H44*Equipment!K$38 -> 0.33 | L45: =J45+K45 -> 0.57 | M45: =+H44*Equipment!P$38 -> 1.6225 | N45: =+H44*Equipment!L$38 -> 0.02 | O45: =+H44*Equipment!O$38 -> 0.17 | P45: =G45*H44 -> 0.25 | Q45: =P45*Labor_Fuel_Interest!$C$11 -> 4.3175 | U45: =T45+Q45+O45+N45+M45+L45 -> 6.7 | V45: =+(L45+N45+Q45+T45)/H$44 -> 4.9075 | X45: Operator and Unpaid family labor | Z45: hour | AA45: =Labor_Fuel_Interest!$C$11 -> 17.27 | AB45: =+P$77 -> 19.95 | AC45: =AB$45*AA$45 -> 344.5365
B46: Entrust SC | C46: oz | R46: =+'Chemical & Fertilizer Costs'!F$36 -> 5 | S46: =+'Chemical & Fertilizer Costs'!H$7 -> 14.13645833 | T46: =R46*S46 -> 70.68229167 | U46: =T46+Q46+O46+N46+M46+L46 -> 70.68229167 | V46: =+(L46+N46+Q46+T46)/H$44 -> 70.68229167
B47: Pristine | C47: oz | R47: =IF('General Budget Assumptions'!$C$4="Low",,'Chemical & Fertilizer Costs'!$F$40) -> 0 | S47: ='Chemical & Fertilizer Costs'!$H$8 -> 3.179354167 | T47: 0 | U47: 0 | V47: =+(L47+N47+Q47+T47)/H$44 -> 0 | X47: Total Specified Expenses | AC47: =+AC$37+AC$43+AC$45 -> 16667.4255 | AD47: =+SUM(AD37,AD43) -> 0
B48: Serenade ASO | C48: qt | R48: =IF('General Budget Assumptions'!$C$4="Low",'Chemical & Fertilizer Costs'!$F$31,) -> 3 | S48: ='Chemical & Fertilizer Costs'!H$6 -> 9.95375 | T48: =R48*S48 -> 29.86125 | U48: 29.86125 | V48: =+(L48+N48+Q48+T48)/H$44 -> 29.86125
B49: Irrigate & Check | H49: 4 | I49: July
B50: Irrigation Labor | C50: hour | P50: =+H49*0.5 -> 2 | Q50: =P50*Labor_Fuel_Interest!$C$12 -> 24.8 | U50: =T50+Q50+O50+N50+M50+L50 -> 24.8 | V50: =+(L50+N50+Q50+T50)/H$49 -> 6.2
B51: Mow Between Rows | H51: 2 | I51: July
B52: Rotary Cutter | C52: 7ft | D52: MFWD 50hp | F52: 8 | G52: =+Equipment!I$29 -> 0.169 | J52: =+H51*Equipment!M$29 -> 0.4394 | K52: =+H51*Equipment!K$29 -> 1.997918 | L52: =SUM(J52,K52) -> 2.437318 | M52: =+H51*Equipment!P$29 -> 2.90004 | N52: =+H51*Equipment!L$29 -> 1.28 | O52: =+H51*Equipment!O$29 -> 0.9 | P52: =G52*H51 -> 0.338 | Q52: =P52*Labor_Fuel_Interest!C$11 -> 5.83726 | U52: =T52+Q52+O52+N52+M52+L52 -> 13.354618 | V52: =+(L52+N52+Q52+T52)/H$51 -> 4.777289
B53: Spray # 4 | H53: =IF('General Budget Assumptions'!$C$4="Moderate",1,) -> 0 | I53: July
B54: Sprayer - Utility | C54: 4ft | D54: 4*4 | F54: 11 | G54: =+Equipment!I$38 -> 0.25 | J54: =(Equipment!M$38)*H53 -> 0 | K54: =H53*Equipment!K$38 -> 0 | L54: =J54+K54 -> 0 | M54: =+H53*Equipment!P$38 -> 0 | N54: =+H53*Equipment!L$38 -> 0 | O54: =+H53*Equipment!O$38 -> 0 | P54: =G54*H53 -> 0 | Q54: =P54*Labor_Fuel_Interest!$C$11 -> 0 | U54: =T54+Q54+O54+N54+M54+L54 -> 0 | V54: =+(L54+N54+Q54+T54)/1 -> 0
B55: Switch 62.5 | C55: oz | R55: =IF('General Budget Assumptions'!$C$4="Moderate",'Chemical & Fertilizer Costs'!F$45,) -> 0 | S55: ='Chemical & Fertilizer Costs'!H$9 -> 5.544642857 | T55: =R55*S55 -> 0 | U55: =T55+Q55+O55+N55+M55+L55 -> 0 | V55: =+(L55+N55+Q55+T55)/1 -> 0
B56: Assail 30 SG | C56: oz | R56: =IF('General Budget Assumptions'!$C$4="Moderate",'Chemical & Fertilizer Costs'!F$50,) -> 0 | S56: ='Chemical & Fertilizer Costs'!H$10 -> 4.466015625 | T56: 0 | U56: 0 | V56: =+(L56+N56+Q56+T56)/1 -> 0
B57: Irrigate & Check | H57: 4 | I57: Aug
B58: Irrigation Labor | C58: hour | P58: =+H57*0.5 -> 2 | Q58: =P58*Labor_Fuel_Interest!$C$12 -> 24.8 | U58: =T58+Q58+O58+N58+M58+L58 -> 24.8 | V58: =+(L58+N58+Q58+T58)/H$57 -> 6.2
B59: Mow Between Rows | H59: 2 | I59: Aug
B60: Rotary Cutter | C60: 7ft | D60: MFWD 50hp | F60: 8 | G60: =+Equipment!I$29 -> 0.169 | J60: =+H59*Equipment!M$29 -> 0.4394 | K60: =+H59*Equipment!K$29 -> 1.997918 | L60: =SUM(J60,K60) -> 2.437318 | M60: =+H59*Equipment!P$29 -> 2.90004 | N60: =+H59*Equipment!L$29 -> 1.28 | O60: =+H59*Equipment!O$29 -> 0.9 | P60: =G60*H59 -> 0.338 | Q60: =P60*Labor_Fuel_Interest!C$11 -> 5.83726 | U60: =T60+Q60+O60+N60+M60+L60 -> 13.354618 | V60: =+(L60+N60+Q60+T60)/H$59 -> 4.777289 | Y60: -
B61: Irrigate & Check | H61: 3 | I61: Sept
B62: Irrigation Labor | C62: hour | P62: =+H61*0.5 -> 1.5 | Q62: =P62*Labor_Fuel_Interest!$C$12 -> 18.6 | U62: =T62+Q62+O62+N62+M62+L62 -> 18.6 | V62: =+(L62+N62+Q62+T62)/H$61 -> 6.2
B63: Mow Between Rows | H63: 2 | I63: Sept
B64: Rotary Cutter | C64: 7ft | D64: MFWD 50hp | F64: 8 | G64: =+Equipment!I$29 -> 0.169 | J64: =+H63*Equipment!M$29 -> 0.4394 | K64: =+H63*Equipment!K$29 -> 1.997918 | L64: =SUM(J64,K64) -> 2.437318 | M64: =+H63*Equipment!P$29 -> 2.90004 | N64: =+H63*Equipment!L$29 -> 1.28 | O64: =+H63*Equipment!O$29 -> 0.9 | P64: =G64*H63 -> 0.338 | Q64: =P64*Labor_Fuel_Interest!C$11 -> 5.83726 | U64: =T64+Q64+O64+N64+M64+L64 -> 13.354618 | V64: =+(L64+N64+Q64+T64)/H$63 -> 4.777289
B65: Irrigate & Check | H65: 3 | I65: Oct
B66: Irrigation Labor | C66: hour | P66: =+H65*0.5 -> 1.5 | Q66: =P66*Labor_Fuel_Interest!$C$12 -> 18.6 | U66: =T66+Q66+O66+N66+M66+L66 -> 18.6 | V66: =+(L66+N66+Q66+T66)/H$65 -> 6.2
B67: Irrigation Setup | C67: acre | I67: Jan | U67: 258
B68: Harvest and Post-harvest Costs
B69: Plastic clamshell containers | C69: each | R69: =+IF('General Budget Assumptions'!C$5="100% Ready_Picked_Retail",Yield!B$10, IF('General Budget Assumptions'!C$5="50%PYO 50%Ready_Picked",(Yield!B$10*0.5),(Yield!B$10*0.25))) -> 12000 | S69: 0.16 | T69: =+R69*S69 -> 1920 | U69: =T69+Q69+O69+N69+M69+L69 -> 1920 | V69: =+(L69+N69+Q69+T69)/1 -> 1920
B70: Harvest (labor for picking) | C70: hours | P70: =+IF('General Budget Assumptions'!C$5="100% Ready_Picked_Retail",480, IF('General Budget Assumptions'!C$5="50%PYO 50%Ready_Picked",(480*0.5),(480*0.25))) -> 480 | Q70: =P70*Labor_Fuel_Interest!$C$12 -> 5952 | U70: =T70+Q70+O70+N70+M70+L70 -> 5952 | V70: =+(L70+N70+Q70+T70)/1 -> 5952
B71: Refrigeration
B72: Refrigerator fix cost | C72: acre | R72: 1 | S72: 440 | T72: =+R72*S72 -> 440 | U72: =T72+Q72+O72+N72+M72+L72 -> 440
B73: Electricity | C73: days | R73: 30 | S73: 1.22 | T73: =+R73*S73 -> 36.6 | U73: =T73+Q73+O73+N73+M73+L73 -> 36.6 | V73: =+(L73+N73+Q73+T73)/1 -> 36.6
B74: Marketing (10% of gross revenue) | C74: acre | R74: 1 | S74: =+IF('General Budget Assumptions'!C$5="100% Ready_Picked_Retail",(Yield!B$10*'Blueberry prices'!C$9),IF('General Budget Assumptions'!C$5="50%PYO 50%Ready_Picked", ((0.5*Yield!B$10*'Blueberry prices'!B$9)+(0.5*Yield!B$10*'Blueberry prices'!C$9)), ((0.75*Yield!B$10*'Blueberry prices'!B$9)+(0.25*Yield!B$10*'Blueberry prices'!C$9))))*0.1 -> 4340 | T74: =+R74*S74 -> 4340 | U74: =T74+Q74+O74+N74+M74+L74 -> 4340 | V74: =+(L74+N74+Q74+T74)/1 -> 4340
B75: Totals | J75: =SUM(J7:J74) -> 6.9258 | K75: 31.196226 | L75: 38.122026 | M75: 45.79328 | N75: 14.8 | O75: 33.47 | P75: 573.766 | Q75: 7142.29182 | T75: =SUM(T7:T74) -> 8323.82375 | U75: =SUM(U7:U74) -> 15856.30088 | V75: =SUM(V7:V74) -> 14930.81991
B76: Interest on Operating Captial | U76: =+(V75*Labor_Fuel_Interest!C$16)/2 -> 466.5881222
B77: Operator and Unpaid family labor | P77: 19.95 | Q77: =+P77*Labor_Fuel_Interest!C$11 -> 344.5365 | U77: =+Q77 -> 344.5365
B78: Total Specified Cost | U78: =SUM(U75:U77) -> 16667.4255
X200: Budget Year 6
X202: Items | Z202: Unit | AA202: Price | AB202: Quantity | AC202: Amount | AD202: Your Farm
X204: Direct Expenses
X205: Fertilizer
X206: Ammonium Sulfate | Z206: lb | AA206: =+S$20 -> 0.3745 | AB206: =+R$32+R$20+R$43 -> 60 | AC206: =+AA$8*AB$8 -> 22.47
X207: Soil Test | Z207: each | AA207: =+S$8 -> 15 | AB207: =+R$8 -> 1 | AC207: =+AA$9*AB$9 -> 15
X208: Weed control
X209: Mulch | Z209: cu yd | AA209: =+S$13 -> 19.83333333 | AB209: =+R$13 -> 68 | AC209: =+AB$11*AA$11 -> 1348.666667
X210: Chemicals
X211: Serenade ASO | Z211: qt | AA211: =+S$25 -> 9.95375 | AB211: =+SUM(R$25,R$48) -> 6 | AC211: =+AA$13*AB$13 -> 59.7225
X212: Entrust SC | Z212: oz | AA212: =+S$23 -> 14.13645833 | AB212: =+SUM(R$23,R$46) -> 10 | AC212: =AB$14*AA$14 -> 141.3645833
X213: Pristine | Z213: oz | AA213: =+S$24 -> 3.179354167 | AB213: =+SUM(R$24,R$47) -> 0 | AC213: =AB$15*AA$15 -> 0
X214: Switch 62.5 WG | Z214: oz | AA214: =+S$35 -> 5.544642857 | AB214: =+SUM(R$35,R$55) -> 0 | AC214: =+AA$16*AB$16 -> 0
X215: Assail 30 SG | Z215: oz | AA215: =+S$36 -> 4.466015625 | AB215: =+SUM(R$36,R$56) -> 0 | AC215: =+AA$17*AB$17 -> 0
X216: Operator Labor
X217: Tractors/Utility vehicles | Z217: hour | AA217: =Labor_Fuel_Interest!$C$11 -> 17.27 | AB217: =+SUM(P$17,P$22,P$29,P$31,P$34,P$40,P$45,P$52,P$54,P$60,P$64,P$11,P$19,P$42) -> 5.666 | AC217: =AB$19*AA$19 -> 97.85182
X218: Hand Labor
X219: Special Labor | Z219: hour | AA219: =Labor_Fuel_Interest!$C$12 -> 12.4 | AB219: =SUM(P$7,P$9,P$70,P$12) -> 556.6 | AC219: =AB$21*AA$21 -> 6901.84
X220: Irrigation Labor
X221: Special Labor | Z221: hour | AA221: =Labor_Fuel_Interest!C$12 -> 12.4 | AB221: =+SUM(P$15,P$27,P$38,P$50,P$58,P$62,P$66) -> 11.5 | AC221: =AB$23*AA$23 -> 142.6
X222: Diesel Fuel
X223: Tractors | Z223: gal | AA223: =Labor_Fuel_Interest!$E$4 -> 2.3 | AB223: =+SUM(K$17,K$29,K$31,K$40,K$52,K$60,K$64,K$11,K$19,K$42)/AA$25 -> 13.27662 | AC223: =AA$25*AB$25 -> 30.536226
X224: Gasoline
X225: Utility vehicles | Z225: gal | AA225: =Labor_Fuel_Interest!$E$5 -> 2.2 | AB225: =+SUM(K$22,K$34,K$45,K$54)/AA$27 -> 0.3 | AC225: =AB$27*AA$27 -> 0.66
X226: Repair & Maintenance
X227: Implements | Z227: acre | AA227: =+N$75 -> 14.8 | AB227: 1 | AC227: =AB$29*AA$29 -> 14.8
X228: Tractors | Z228: acre | AA228: =J$75 -> 6.9258 | AB228: 1 | AC228: =AB$30*AA$30 -> 6.9258
X229: Post-harvest Expenses
X230: Plastic clamshell containers | Z230: each | AA230: =+S$69 -> 0.16 | AB230: =+R$69 -> 12000 | AC230: =+AB$32*AA$32 -> 1920
X231: Electricity | Z231: days | AA231: =+R$73 -> 30 | AB231: =+S$73 -> 1.22 | AC231: =+AA$33*AB$33 -> 36.6
X232: Marketing (10% of gross revenue) | Z232: acre | AA232: =+S$74 -> 4340 | AB232: 1 | AC232: =+AA$34*AB$34 -> 4340
X233: Irrigation Setup | Z233: acre | AA233: =U$67 -> 258 | AB233: 1 | AC233: =AB$35*AA$35 -> 258
X234: Interest on OP. CAP. | Z234: acre | AA234: =+U$76 -> 466.5881222 | AB234: 1 | AC234: =AB$36*AA$36 -> 466.5881222
X235: Total Direct Expenses | AC235: =SUM(AC$7:AC$36) -> 15803.62572 | AD235: =+SUM(AD204:AD234) -> 0
X237: Fixed Expenses
X238: Implements/Refrigerator | Z238: acre | AA238: =O$75+T$72 -> 473.47 | AB238: 1 | AC238: =AB$40*AA$40 -> 473.47
X239: Tractors | Z239: acre | AA239: =M$75 -> 45.79328 | AB239: 1 | AC239: =AB$41*AA$41 -> 45.79328
X241: Total Fixed Expenses | AC241: =SUM(AC$40:AC$41) -> 519.26328 | AD241: =+SUM(AD238:AD239) -> 0
X243: Operator and Unpaid family labor | Z243: hour | AA243: =Labor_Fuel_Interest!$C$11 -> 17.27 | AB243: =+P$77 -> 19.95 | AC243: =AB$45*AA$45 -> 344.5365
X245: Total Specified Expenses | AC245: =+AC$37+AC$43+AC$45 -> 16667.4255 | AD245: =+SUM(AD235,AD241) -> 0

Sheet Blueberry Budget Y7
B2: Blueberry Enterprise Budget Year 7 | X2: Budget Year 7
B4: Operation / Operating Input | C4: Size/ Unit | D4: Power Unit Size | F4: # | G4: Perf Rate | H4: Times Over | I4: Month | J4: Power Unit Cost | N4: Equipment Cost | P4: Alloc Labor | R4: Operating / Durable Input | U4: Total Costs | X4: Items | Z4: Unit | AA4: Price | AB4: Quantity | AC4: Amount | AD4: Your Farm
J5: R & M | K5: Fuel | L5: Direct | M5: Fixed | N5: Direct | O5: Fixed | P5: Hours | Q5: Cost | R5: Amount | S5: Price | T5: Cost
X6: Direct Expenses
B7: Soil Test Hand Labor | C7: hour | H7: 1 | I7: March | P7: =+H7*0.6 -> 0.6 | Q7: =P7*Labor_Fuel_Interest!$C$12 -> 7.44 | U7: =T7+Q7+O7+N7+M7+L7 -> 7.44 | V7: =+(L7+N7+Q7+T7)/H7 -> 7.44 | X7: Fertilizer
B8: Soil Test | C8: each | R8: 1 | S8: =+'Soil test'!D$12 -> 15 | T8: =S8*R8 -> 15 | U8: 15 | V8: =+(L8+N8+Q8+T8)/H7 -> 15 | X8: Ammonium Sulfate | Z8: lb | AA8: =+S$16 -> 0.3745 | AB8: =+R$28+R$16+R$39 -> 60 | AC8: =+AA$8*AB$8 -> 22.47
B9: Pruner (Hand) | C9: each | H9: 1 | I9: March | P9: =+IF('General Budget Assumptions'!C$3="6'x12'",50,60) -> 60 | Q9: =+P9*Labor_Fuel_Interest!C$12 -> 744 | U9: 744 | V9: =+(L9+N9+Q9+T9)/H9 -> 744 | X9: Soil Test | Z9: each | AA9: =+S$8 -> 15 | AB9: =+R$8 -> 1 | AC9: =+AA$9*AB$9 -> 15
B10: Irrigate & Check | H10: 2 | I10: Apr | X10: Weed control
B11: Irrigation Labor | C11: hour | P11: =0.5*H10 -> 1 | Q11: =P11*Labor_Fuel_Interest!$C$12 -> 12.4 | U11: =T11+Q11+O11+N11+M11+L11 -> 12.4 | V11: =+(L11+N11+Q11+T11)/H$10 -> 6.2 | X11: Chemicals
B12: Mow Between Rows | H12: 2 | I12: Apr | X12: Serenade ASO | Z12: qt | AA12: =+S$21 -> 9.95375 | AB12: =+SUM(R$21,R$44) -> 6 | AC12: =+AA$12*AB$12 -> 59.7225
B13: Rotary Cutter | C13: 7ft | D13: MFWD 50hp | F13: 8 | G13: =+Equipment!I$29 -> 0.169 | J13: =+H12*Equipment!M$29 -> 0.4394 | K13: =+H12*Equipment!K$29 -> 1.997918 | L13: =SUM(J13,K13) -> 2.437318 | M13: =+H12*Equipment!P$29 -> 2.90004 | N13: =+H12*Equipment!L$29 -> 1.28 | O13: =+H12*Equipment!O$29 -> 0.9 | P13: =G13*H12 -> 0.338 | Q13: =P13*Labor_Fuel_Interest!$C$11 -> 5.83726 | U13: =T13+Q13+O13+N13+M13+L13 -> 13.354618 | V13: =+(L13+N13+Q13+T13)/H$12 -> 4.777289 | X13: Entrust SC | Z13: oz | AA13: =+S$19 -> 14.13645833 | AB13: =+SUM(R$19,R$42) -> 10 | AC13: =AB$13*AA$13 -> 141.3645833
B14: Fertilizing | H14: 1 | I14: Apr | X14: Pristine | Z14: oz | AA14: =+S$20 -> 3.179354167 | AB14: =+SUM(R$20,R$43) -> 0 | AC14: =AB$14*AA$14 -> 0
B15: Side Dresser | C15: 1R 3ft | D15: MFWD 50hp | F15: 8 | G15: =+Equipment!I$32 -> 0.846 | J15: =+H14*Equipment!M$32 -> 1.0998 | K15: =+H14*Equipment!K$32 -> 5.000706 | L15: =J15+K15 -> 6.100506 | M15: =+H14*Equipment!P$32 -> 7.25868 | N15: =+H14*Equipment!L$32 -> 2.33 | O15: =+H14*Equipment!O$32 -> 9.14 | P15: =G15*H14 -> 0.846 | Q15: =P15*Labor_Fuel_Interest!$C$11 -> 14.61042 | U15: =T15+Q15+O15+N15+M15+L15 -> 39.439606 | V15: =+(L15+N15+Q15+T15)/H$26 -> 23.040926 | X15: Switch 62.5 WG | Z15: oz | AA15: =+S$31 -> 5.544642857 | AB15: =+SUM(R$31,R$51) -> 0 | AC15: =+AA$15*AB$15 -> 0
B16: Ammonium sulfate | C16: lb | R16: 20 | S16: =+'Chemical & Fertilizer Costs'!F$24 -> 0.3745 | T16: =R16*S16 -> 7.49 | U16: 7.49 | V16: =+(L16+N16+Q16+T16)/H$26 -> 7.49 | X16: Assail 30 SG | Z16: oz | AA16: =+S$32 -> 4.466015625 | AB16: =+SUM(R$32,R$52) -> 0 | AC16: =+AA$16*AB$16 -> 0
B17: Spray # 1 | H17: =IF('General Budget Assumptions'!$C$4="moderate",2,1) -> 1 | I17: Apr | X17: Operator Labor
B18: Sprayer - Utility | C18: 4ft | D18: 4*4 | F18: 11 | G18: =+Equipment!I$38 -> 0.25 | J18: =+H17*Equipment!M$38 -> 0.24 | K18: =+H17*Equipment!K$38 -> 0.33 | L18: =J18+K18 -> 0.57 | M18: =+H17*Equipment!P$38 -> 1.6225 | N18: =+H17*Equipment!L$38 -> 0.02 | O18: =+H17*Equipment!O$38 -> 0.17 | P18: =G18*H17 -> 0.25 | Q18: =P18*Labor_Fuel_Interest!$C$11 -> 4.3175 | U18: =T18+Q18+O18+N18+M18+L18 -> 6.7 | V18: =+(L18+N18+Q18+T18)/H$17 -> 4.9075 | X18: Tractors/Utility vehicles | Z18: hour | AA18: =Labor_Fuel_Interest!$C$11 -> 17.27 | AB18: =+SUM(P$13,P$18,P$25,P$27,P$30,P$36,P$41,P$48,P$50,P$56,P$60,P$15,P$38) -> 5.066 | AC18: =AB$18*AA$18 -> 87.48982
B19: Entrust SC | C19: oz | R19: =+'Chemical & Fertilizer Costs'!F$36 -> 5 | S19: =+'Chemical & Fertilizer Costs'!H$7 -> 14.13645833 | T19: =R19*S19 -> 70.68229167 | U19: =T19+Q19+O19+N19+M19+L19 -> 70.68229167 | V19: =+(L19+N19+Q19+T19)/H$17 -> 70.68229167 | X19: Hand Labor
B20: Pristine | C20: oz | R20: =IF('General Budget Assumptions'!$C$4="Low",,'Chemical & Fertilizer Costs'!$F$40) -> 0 | S20: ='Chemical & Fertilizer Costs'!$H$8 -> 3.179354167 | T20: 0 | U20: 0 | V20: =+(L20+N20+Q20+T20)/H$17 -> 0 | X20: Special Labor | Z20: hour | AA20: =Labor_Fuel_Interest!$C$12 -> 12.4 | AB20: =SUM(P$7,P$9,P$66) -> 540.6 | AC20: =AB$20*AA$20 -> 6703.44
B21: Serenade ASO | C21: qt | R21: =IF('General Budget Assumptions'!$C$4="Low",'Chemical & Fertilizer Costs'!$F$31,) -> 3 | S21: ='Chemical & Fertilizer Costs'!H$6 -> 9.95375 | T21: =R21*S21 -> 29.86125 | U21: 29.86125 | V21: =+(L21+N21+Q21+T21)/H$17 -> 29.86125 | X21: Irrigation Labor
B22: Irrigate & Check | H22: 3 | I22: May | X22: Special Labor | Z22: hour | AA22: =Labor_Fuel_Interest!C$12 -> 12.4 | AB22: =+SUM(P$11,P$23,P$34,P$46,P$54,P$58,P$62) -> 11.5 | AC22: =AB$22*AA$22 -> 142.6
B23: Irrigation Labor | C23: hour | P23: =0.5*H22 -> 1.5 | Q23: =P23*Labor_Fuel_Interest!$C$12 -> 18.6 | U23: =T23+Q23+O23+N23+M23+L23 -> 18.6 | V23: =+(L23+N23+Q23+T23)/H$22 -> 6.2 | X23: Diesel Fuel
B24: Mow Between Rows | H24: 2 | I24: May | X24: Tractors | Z24: gal | AA24: =Labor_Fuel_Interest!$E$4 -> 2.3 | AB24: =+SUM(K$13,K$25,K$27,K$36,K$48,K$56,K$60,K$15,K$38)/AA$24 -> 11.73462 | AC24: =AA$24*AB$24 -> 26.989626
B25: Rotary Cutter | C25: 7ft | D25: MFWD 50hp | F25: 8 | G25: =+Equipment!I$29 -> 0.169 | J25: =+H24*Equipment!M$29 -> 0.4394 | K25: =+H24*Equipment!K$29 -> 1.997918 | L25: =SUM(J25,K25) -> 2.437318 | M25: =+H24*Equipment!P$29 -> 2.90004 | N25: =+H24*Equipment!L$29 -> 1.28 | O25: =+H24*Equipment!O$29 -> 0.9 | P25: =G25*H24 -> 0.338 | Q25: =P25*Labor_Fuel_Interest!$C$11 -> 5.83726 | U25: =T25+Q25+O25+N25+M25+L25 -> 13.354618 | V25: =+(L25+N25+Q25+T25)/H$24 -> 4.777289 | X25: Gasoline
B26: Fertilizing | H26: 1 | I26: May | X26: Utility vehicles | Z26: gal | AA26: =Labor_Fuel_Interest!$E$5 -> 2.2 | AB26: =+SUM(K$18,K$30,K$41,K$50)/AA$26 -> 0.3 | AC26: =AB$26*AA$26 -> 0.66
B27: Side Dresser | C27: 1R 3ft | D27: MFWD 50hp | F27: 8 | G27: =+Equipment!I$32 -> 0.846 | J27: =+H26*Equipment!M$32 -> 1.0998 | K27: =+H26*Equipment!K$32 -> 5.000706 | L27: =J27+K27 -> 6.100506 | M27: =+H26*Equipment!P$32 -> 7.25868 | N27: =+H26*Equipment!L$32 -> 2.33 | O27: =+H26*Equipment!O$32 -> 9.14 | P27: =G27*H26 -> 0.846 | Q27: =P27*Labor_Fuel_Interest!$C$11 -> 14.61042 | U27: =T27+Q27+O27+N27+M27+L27 -> 39.439606 | V27: =+(L27+N27+Q27+T27)/H$26 -> 23.040926 | X27: Repair & Maintenance
B28: Ammonium sulfate | C28: lb | R28: 20 | S28: =+'Chemical & Fertilizer Costs'!F$24 -> 0.3745 | T28: =R28*S28 -> 7.49 | U28: 7.49 | V28: =+(L28+N28+Q28+T28)/H$26 -> 7.49 | X28: Implements | Z28: acre | AA28: =+N$71 -> 14.71 | AB28: 1 | AC28: =AB$28*AA$28 -> 14.71
B29: Spray # 2 | H29: =IF('General Budget Assumptions'!$C$4="Moderate",1,) -> 0 | I29: May | X29: Tractors | Z29: acre | AA29: =J$71 -> 6.4158 | AB29: 1 | AC29: =AB$29*AA$29 -> 6.4158
B30: Sprayer - Utility | C30: 4ft | D30: 4*4 | F30: 11 | G30: =+Equipment!I$38 -> 0.25 | J30: =+H29*Equipment!M$38 -> 0 | K30: =+H29*Equipment!K$38 -> 0 | L30: =J30+K30 -> 0 | M30: =+H29*Equipment!P$38 -> 0 | N30: =+H29*Equipment!L$38 -> 0 | O30: =+H29*Equipment!O$38 -> 0 | P30: =G30*H29 -> 0 | Q30: =P30*Labor_Fuel_Interest!C11 -> 0 | U30: =T30+Q30+O30+N30+M30+L30 -> 0 | V30: =+(L30+N30+Q30+T30)/1 -> 0 | X30: Post-harvest Expenses
B31: Switch 62.5 | C31: oz | R31: =IF('General Budget Assumptions'!$C$4="Moderate",'Chemical & Fertilizer Costs'!F$45,) -> 0 | S31: ='Chemical & Fertilizer Costs'!H$9 -> 5.544642857 | T31: =R31*S31 -> 0 | U31: 0 | V31: =+(L31+N31+Q31+T31)/1 -> 0 | X31: Plastic clamshell containers | Z31: each | AA31: =+S$65 -> 0.16 | AB31: =+R$65 -> 12000 | AC31: =+AB$31*AA$31 -> 1920
B32: Assail 30 SG | C32: oz | R32: =IF('General Budget Assumptions'!$C$4="Moderate",'Chemical & Fertilizer Costs'!F$50,) -> 0 | S32: ='Chemical & Fertilizer Costs'!H$10 -> 4.466015625 | T32: 0 | U32: 0 | V32: =+(L32+N32+Q32+T32)/1 -> 0 | X32: Electricity | Z32: days | AA32: =+R$69 -> 30 | AB32: =+S$69 -> 1.22 | AC32: =+AA$32*AB$32 -> 36.6
B33: Irrigate & Check | H33: 4 | I33: June | X33: Marketing (10% of gross revenue) | Z33: acre | AA33: =+S$70 -> 4340 | AB33: 1 | AC33: =+AA$33*AB$33 -> 4340
B34: Irrigation Labor | C34: hour | P34: =0.5*H33 -> 2 | Q34: =P34*Labor_Fuel_Interest!$C$12 -> 24.8 | U34: =T34+Q34+O34+N34+M34+L34 -> 24.8 | V34: =+(L34+N34+Q34+T34)/H$33 -> 6.2 | X34: Irrigation Setup | Z34: acre | AA34: =U$63 -> 258 | AB34: 1 | AC34: =AB$34*AA$34 -> 258
B35: Mow Between Rows | H35: 2 | I35: June | X35: Interest on OP. CAP. | Z35: acre | AA35: =+U$72 -> 418.4249561 | AB35: 1 | AC35: =AB$35*AA$35 -> 418.4249561
B36: Rotary Cutter | C36: 7ft | D36: MFWD 50hp | F36: 8 | G36: =+Equipment!I$29 -> 0.169 | J36: =+H35*Equipment!M$29 -> 0.4394 | K36: =+H35*Equipment!K$29 -> 1.997918 | L36: =SUM(J36,K36) -> 2.437318 | M36: =+H35*Equipment!P$29 -> 2.90004 | N36: =+H35*Equipment!L$29 -> 1.28 | O36: =+H35*Equipment!O$29 -> 0.9 | P36: =G36*H35 -> 0.338 | Q36: =P36*Labor_Fuel_Interest!C$11 -> 5.83726 | U36: =T36+Q36+O36+N36+M36+L36 -> 13.354618 | V36: =+(L36+N36+Q36+T36)/H$35 -> 4.777289 | X36: Total Direct Expenses | AC36: =SUM(AC$7:AC$35) -> 14193.88729 | AD36: =+SUM(AD6:AD35) -> 0
B37: Fertilizing | H37: 1 | I37: June
B38: Side Dresser | C38: 1R 3ft | D38: MFWD 50hp | F38: 8 | G38: =+Equipment!I$32 -> 0.846 | J38: =+H37*Equipment!M$32 -> 1.0998 | K38: =+H37*Equipment!K$32 -> 5.000706 | L38: =J38+K38 -> 6.100506 | M38: =+H37*Equipment!P$32 -> 7.25868 | N38: =+H37*Equipment!L$32 -> 2.33 | O38: =+H37*Equipment!O$32 -> 9.14 | P38: =G38*H37 -> 0.846 | Q38: =P38*Labor_Fuel_Interest!$C$11 -> 14.61042 | U38: =T38+Q38+O38+N38+M38+L38 -> 39.439606 | V38: =+(L38+N38+Q38+T38)/H$26 -> 23.040926 | X38: Fixed Expenses
B39: Ammonium sulfate | C39: lb | R39: 20 | S39: =+'Chemical & Fertilizer Costs'!F$24 -> 0.3745 | T39: =R39*S39 -> 7.49 | U39: 7.49 | V39: =+(L39+N39+Q39+T39)/H$26 -> 7.49 | X39: Implements/Refrigerator | Z39: acre | AA39: =O$71+T$68 -> 473.16 | AB39: 1 | AC39: =AB$39*AA$39 -> 473.16
B40: Spray # 3 | H40: =IF('General Budget Assumptions'!$C$4="moderate",2,1) -> 1 | I40: June | X40: Tractors | Z40: acre | AA40: =M$71 -> 42.42128 | AB40: 1 | AC40: =AB$40*AA$40 -> 42.42128
B41: Sprayer - Utility | C41: 4ft | D41: 4*4 | F41: 11 | G41: =+Equipment!I$38 -> 0.25 | J41: =(Equipment!M$38)*H40 -> 0.24 | K41: =H40*Equipment!K$38 -> 0.33 | L41: =J41+K41 -> 0.57 | M41: =+H40*Equipment!P$38 -> 1.6225 | N41: =+H40*Equipment!L$38 -> 0.02 | O41: =+H40*Equipment!O$38 -> 0.17 | P41: =G41*H40 -> 0.25 | Q41: =P41*Labor_Fuel_Interest!$C$11 -> 4.3175 | U41: =T41+Q41+O41+N41+M41+L41 -> 6.7 | V41: =+(L41+N41+Q41+T41)/H$40 -> 4.9075
B42: Entrust SC | C42: oz | R42: =+'Chemical & Fertilizer Costs'!F$36 -> 5 | S42: =+'Chemical & Fertilizer Costs'!H$7 -> 14.13645833 | T42: =R42*S42 -> 70.68229167 | U42: =T42+Q42+O42+N42+M42+L42 -> 70.68229167 | V42: =+(L42+N42+Q42+T42)/H$40 -> 70.68229167 | X42: Total Fixed Expenses | AC42: =SUM(AC$39:AC$40) -> 515.58128 | AD42: =+SUM(AD39:AD40) -> 0
B43: Pristine | C43: oz | R43: =IF('General Budget Assumptions'!$C$4="Low",,'Chemical & Fertilizer Costs'!$F$40) -> 0 | S43: ='Chemical & Fertilizer Costs'!$H$8 -> 3.179354167 | T43: 0 | U43: 0 | V43: =+(L43+N43+Q43+T43)/H$40 -> 0
B44: Serenade ASO | C44: qt | R44: =IF('General Budget Assumptions'!$C$4="Low",'Chemical & Fertilizer Costs'!$F$31,) -> 3 | S44: ='Chemical & Fertilizer Costs'!H$6 -> 9.95375 | T44: =R44*S44 -> 29.86125 | U44: 29.86125 | V44: =+(L44+N44+Q44+T44)/H$40 -> 29.86125 | X44: Operator and Unpaid family labor | Z44: hour | AA44: =Labor_Fuel_Interest!$C$11 -> 17.27 | AB44: =+P$73 -> 19.95 | AC44: =AB$44*AA$44 -> 344.5365
B45: Irrigate & Check | H45: 4 | I45: July
B46: Irrigation Labor | C46: hour | P46: =+H45*0.5 -> 2 | Q46: =P46*Labor_Fuel_Interest!$C$12 -> 24.8 | U46: =T46+Q46+O46+N46+M46+L46 -> 24.8 | V46: =+(L46+N46+Q46+T46)/H$45 -> 6.2 | X46: Total Specified Expenses | AC46: =+AC$36+AC$42+AC$44 -> 15054.00507 | AD46: =+SUM(AD36,AD42) -> 0
B47: Mow Between Rows | H47: 2 | I47: July
B48: Rotary Cutter | C48: 7ft | D48: MFWD 50hp | F48: 8 | G48: =+Equipment!I$29 -> 0.169 | J48: =+H47*Equipment!M$29 -> 0.4394 | K48: =+H47*Equipment!K$29 -> 1.997918 | L48: =SUM(J48,K48) -> 2.437318 | M48: =+H47*Equipment!P$29 -> 2.90004 | N48: =+H47*Equipment!L$29 -> 1.28 | O48: =+H47*Equipment!O$29 -> 0.9 | P48: =G48*H47 -> 0.338 | Q48: =P48*Labor_Fuel_Interest!C$11 -> 5.83726 | U48: =T48+Q48+O48+N48+M48+L48 -> 13.354618 | V48: =+(L48+N48+Q48+T48)/H$47 -> 4.777289
B49: Spray # 4 | H49: =IF('General Budget Assumptions'!$C$4="Moderate",1,) -> 0 | I49: July
B50: Sprayer - Utility | C50: 4ft | D50: 4*4 | F50: 11 | G50: =+Equipment!I$38 -> 0.25 | J50: =(Equipment!M$38)*H49 -> 0 | K50: =H49*Equipment!K$38 -> 0 | L50: =J50+K50 -> 0 | M50: =+H49*Equipment!P$38 -> 0 | N50: =+H49*Equipment!L$38 -> 0 | O50: =+H49*Equipment!O$38 -> 0 | P50: =G50*H49 -> 0 | Q50: =P50*Labor_Fuel_Interest!$C$11 -> 0 | U50: =T50+Q50+O50+N50+M50+L50 -> 0 | V50: =+(L50+N50+Q50+T50)/1 -> 0
B51: Switch 62.5 | C51: oz | R51: =IF('General Budget Assumptions'!$C$4="Moderate",'Chemical & Fertilizer Costs'!F$45,) -> 0 | S51: ='Chemical & Fertilizer Costs'!H$9 -> 5.544642857 | T51: =R51*S51 -> 0 | U51: =T51+Q51+O51+N51+M51+L51 -> 0 | V51: =+(L51+N51+Q51+T51)/1 -> 0
B52: Assail 30 SG | C52: oz | R52: =IF('General Budget Assumptions'!$C$4="Moderate",'Chemical & Fertilizer Costs'!F$50,) -> 0 | S52: ='Chemical & Fertilizer Costs'!H$10 -> 4.466015625 | T52: 0 | U52: 0 | V52: =+(L52+N52+Q52+T52)/1 -> 0
B53: Irrigate & Check | H53: 4 | I53: Aug
B54: Irrigation Labor | C54: hour | P54: =+H53*0.5 -> 2 | Q54: =P54*Labor_Fuel_Interest!$C$12 -> 24.8 | U54: =T54+Q54+O54+N54+M54+L54 -> 24.8 | V54: =+(L54+N54+Q54+T54)/H$53 -> 6.2
B55: Mow Between Rows | H55: 2 | I55: Aug
B56: Rotary Cutter | C56: 7ft | D56: MFWD 50hp | F56: 8 | G56: =+Equipment!I$29 -> 0.169 | J56: =+H55*Equipment!M$29 -> 0.4394 | K56: =+H55*Equipment!K$29 -> 1.997918 | L56: =SUM(J56,K56) -> 2.437318 | M56: =+H55*Equipment!P$29 -> 2.90004 | N56: =+H55*Equipment!L$29 -> 1.28 | O56: =+H55*Equipment!O$29 -> 0.9 | P56: =G56*H55 -> 0.338 | Q56: =P56*Labor_Fuel_Interest!C$11 -> 5.83726 | U56: =T56+Q56+O56+N56+M56+L56 -> 13.354618 | V56: =+(L56+N56+Q56+T56)/H$55 -> 4.777289
B57: Irrigate & Check | H57: 3 | I57: Sept
B58: Irrigation Labor | C58: hour | P58: =+H57*0.5 -> 1.5 | Q58: =P58*Labor_Fuel_Interest!$C$12 -> 18.6 | U58: =T58+Q58+O58+N58+M58+L58 -> 18.6 | V58: =+(L58+N58+Q58+T58)/H$57 -> 6.2
B59: Mow Between Rows | H59: 2 | I59: Sept | Y59: -
B60: Rotary Cutter | C60: 7ft | D60: MFWD 50hp | F60: 8 | G60: =+Equipment!I$29 -> 0.169 | J60: =+H59*Equipment!M$29 -> 0.4394 | K60: =+H59*Equipment!K$29 -> 1.997918 | L60: =SUM(J60,K60) -> 2.437318 | M60: =+H59*Equipment!P$29 -> 2.90004 | N60: =+H59*Equipment!L$29 -> 1.28 | O60: =+H59*Equipment!O$29 -> 0.9 | P60: =G60*H59 -> 0.338 | Q60: =P60*Labor_Fuel_Interest!C$11 -> 5.83726 | U60: =T60+Q60+O60+N60+M60+L60 -> 13.354618 | V60: =+(L60+N60+Q60+T60)/H$59 -> 4.777289
B61: Irrigate & Check | H61: 3 | I61: Oct
B62: Irrigation Labor | C62: hour | P62: =+H61*0.5 -> 1.5 | Q62: =P62*Labor_Fuel_Interest!$C$12 -> 18.6 | U62: =T62+Q62+O62+N62+M62+L62 -> 18.6 | V62: =+(L62+N62+Q62+T62)/H$61 -> 6.2
B63: Irrigation Setup | C63: acre | I63: Jan | U63: 258
B64: Harvest and Post-harvest Costs
B65: Plastic clamshell containers | C65: each | R65: =+IF('General Budget Assumptions'!C$5="100% Ready_Picked_Retail",Yield!B$11, IF('General Budget Assumptions'!C$5="50%PYO 50%Ready_Picked",(Yield!B$11*0.5),(Yield!B$11*0.25))) -> 12000 | S65: 0.16 | T65: =+R65*S65 -> 1920 | U65: =T65+Q65+O65+N65+M65+L65 -> 1920 | V65: =+(L65+N65+Q65+T65)/1 -> 1920
B66: Harvest (labor for picking) | C66: hours | P66: =+IF('General Budget Assumptions'!C$5="100% Ready_Picked_Retail",480, IF('General Budget Assumptions'!C$5="50%PYO 50%Ready_Picked",(480*0.5),(480*0.25))) -> 480 | Q66: =P66*Labor_Fuel_Interest!$C$12 -> 5952 | U66: =T66+Q66+O66+N66+M66+L66 -> 5952 | V66: =+(L66+N66+Q66+T66)/1 -> 5952
B67: Refrigeration
B68: Refrigerator fix cost | C68: acre | R68: 1 | S68: 440 | T68: =+R68*S68 -> 440 | U68: =T68+Q68+O68+N68+M68+L68 -> 440
B69: Electricity | C69: days | R69: 30 | S69: 1.22 | T69: =+R69*S69 -> 36.6 | U69: =T69+Q69+O69+N69+M69+L69 -> 36.6 | V69: =+(L69+N69+Q69+T69)/1 -> 36.6
B70: Marketing (10% of gross revenue) | C70: acre | R70: 1 | S70: =+IF('General Budget Assumptions'!C$5="100% Ready_Picked_Retail",(Yield!B$11*'Blueberry prices'!C$9),IF('General Budget Assumptions'!C$5="50%PYO 50%Ready_Picked", ((0.5*Yield!B$11*'Blueberry prices'!B$9)+(0.5*Yield!B$11*'Blueberry prices'!C$9)), ((0.75*Yield!B$11*'Blueberry prices'!B$9)+(0.25*Yield!B$11*'Blueberry prices'!C$9))))*0.1 -> 4340 | T70: =+R70*S70 -> 4340 | U70: =T70+Q70+O70+N70+M70+L70 -> 4340 | V70: =+(L70+N70+Q70+T70)/1 -> 4340
B71: Totals | J71: =SUM(J7:J70) -> 6.4158 | K71: 27.649626 | L71: 34.065426 | M71: 42.42128 | N71: 14.71 | O71: 33.16 | P71: 557.166 | Q71: 6933.52982 | T71: =SUM(T7:T70) -> 6975.157083 | U71: =SUM(U7:U70) -> 14291.04361 | V71: =SUM(V7:V70) -> 13389.5986
B72: Interest on Operating Captial | U72: =+(V71*Labor_Fuel_Interest!C$16)/2 -> 418.4249561
B73: Operator and Unpaid family labor | P73: 19.95 | Q73: =+P73*Labor_Fuel_Interest!C$11 -> 344.5365 | U73: =+Q73 -> 344.5365
B74: Total Specified Cost | U74: =SUM(U71:U73) -> 15054.00507
X200: Budget Year 7
X202: Items | Z202: Unit | AA202: Price | AB202: Quantity | AC202: Amount | AD202: Your Farm
X204: Direct Expenses
X205: Fertilizer
X206: Ammonium Sulfate | Z206: lb | AA206: =+S$16 -> 0.3745 | AB206: =+R$28+R$16+R$39 -> 60 | AC206: =+AA$8*AB$8 -> 22.47
X207: Soil Test | Z207: each | AA207: =+S$8 -> 15 | AB207: =+R$8 -> 1 | AC207: =+AA$9*AB$9 -> 15
X208: Weed control
X209: Chemicals
X210: Serenade ASO | Z210: qt | AA210: =+S$21 -> 9.95375 | AB210: =+SUM(R$21,R$44) -> 6 | AC210: =+AA$12*AB$12 -> 59.7225
X211: Entrust SC | Z211: oz | AA211: =+S$19 -> 14.13645833 | AB211: =+SUM(R$19,R$42) -> 10 | AC211: =AB$13*AA$13 -> 141.3645833
X212: Pristine | Z212: oz | AA212: =+S$20 -> 3.179354167 | AB212: =+SUM(R$20,R$43) -> 0 | AC212: =AB$14*AA$14 -> 0
X213: Switch 62.5 WG | Z213: oz | AA213: =+S$31 -> 5.544642857 | AB213: =+SUM(R$31,R$51) -> 0 | AC213: =+AA$15*AB$15 -> 0
X214: Assail 30 SG | Z214: oz | AA214: =+S$32 -> 4.466015625 | AB214: =+SUM(R$32,R$52) -> 0 | AC214: =+AA$16*AB$16 -> 0
X215: Operator Labor
X216: Tractors/Utility vehicles | Z216: hour | AA216: =Labor_Fuel_Interest!$C$11 -> 17.27 | AB216: =+SUM(P$13,P$18,P$25,P$27,P$30,P$36,P$41,P$48,P$50,P$56,P$60,P$15,P$38) -> 5.066 | AC216: =AB$18*AA$18 -> 87.48982
X217: Hand Labor
X218: Special Labor | Z218: hour | AA218: =Labor_Fuel_Interest!$C$12 -> 12.4 | AB218: =SUM(P$7,P$9,P$66) -> 540.6 | AC218: =AB$20*AA$20 -> 6703.44
X219: Irrigation Labor
X220: Special Labor | Z220: hour | AA220: =Labor_Fuel_Interest!C$12 -> 12.4 | AB220: =+SUM(P$11,P$23,P$34,P$46,P$54,P$58,P$62) -> 11.5 | AC220: =AB$22*AA$22 -> 142.6
X221: Diesel Fuel
X222: Tractors | Z222: gal | AA222: =Labor_Fuel_Interest!$E$4 -> 2.3 | AB222: =+SUM(K$13,K$25,K$27,K$36,K$48,K$56,K$60,K$15,K$38)/AA$24 -> 11.73462 | AC222: =AA$24*AB$24 -> 26.989626
X223: Gasoline
X224: Utility vehicles | Z224: gal | AA224: =Labor_Fuel_Interest!$E$5 -> 2.2 | AB224: =+SUM(K$18,K$30,K$41,K$50)/AA$26 -> 0.3 | AC224: =AB$26*AA$26 -> 0.66
X225: Repair & Maintenance
X226: Implements | Z226: acre | AA226: =+N$71 -> 14.71 | AB226: 1 | AC226: =AB$28*AA$28 -> 14.71
X227: Tractors | Z227: acre | AA227: =J$71 -> 6.4158 | AB227: 1 | AC227: =AB$29*AA$29 -> 6.4158
X228: Post-harvest Expenses
X229: Plastic clamshell containers | Z229: each | AA229: =+S$65 -> 0.16 | AB229: =+R$65 -> 12000 | AC229: =+AB$31*AA$31 -> 1920
X230: Electricity | Z230: days | AA230: =+R$69 -> 30 | AB230: =+S$69 -> 1.22 | AC230: =+AA$32*AB$32 -> 36.6
X231: Marketing (10% of gross revenue) | Z231: acre | AA231: =+S$70 -> 4340 | AB231: 1 | AC231: =+AA$33*AB$33 -> 4340
X232: Irrigation Setup | Z232: acre | AA232: =U$63 -> 258 | AB232: 1 | AC232: =AB$34*AA$34 -> 258
X233: Interest on OP. CAP. | Z233: acre | AA233: =+U$72 -> 418.4249561 | AB233: 1 | AC233: =AB$35*AA$35 -> 418.4249561
X234: Total Direct Expenses | AC234: =SUM(AC$7:AC$35) -> 14193.88729 | AD234: =+SUM(AD204:AD233) -> 0
X236: Fixed Expenses
X237: Implements/Refrigerator | Z237: acre | AA237: =O$71+T$68 -> 473.16 | AB237: 1 | AC237: =AB$39*AA$39 -> 473.16
X238: Tractors | Z238: acre | AA238: =M$71 -> 42.42128 | AB238: 1 | AC238: =AB$40*AA$40 -> 42.42128
X240: Total Fixed Expenses | AC240: =SUM(AC$39:AC$40) -> 515.58128 | AD240: =+SUM(AD237:AD238) -> 0
X242: Operator and Unpaid family labor | Z242: hour | AA242: =Labor_Fuel_Interest!$C$11 -> 17.27 | AB242: =+P$73 -> 19.95 | AC242: =AB$44*AA$44 -> 344.5365
X244: Total Specified Expenses | AC244: =+AC$36+AC$42+AC$44 -> 15054.00507 | AD244: =+SUM(AD234,AD240) -> 0

Sheet Equipment (hidden)
B2: Machinery | T2: Power Unit
B4: Description | D4: Size | E4: Power Unit | F4: Purchase Price | G4: Annual Use | H4: Useful Life | I4: Perf Rate | J4: Labor | K4: Fuel | L4: R & M (IMP) | M4: R & M (PU) | N4: Total Direct | O4: Fixed (IMP) | P4: Fixed (PU) | Q4: Total Cost | T4: Unit Type | U4: Size | V4: # | W4: Purchase Price | X4: Annual Use | Y4: Useful Life | Z4: Fuel Use (gal)/hr | AA4: Labor | AB4: Fuel | AC4: R & M | AD4: Total Direct | AE4: Fixed | AF4: Total Cost
B5: Auger | D5: 18" | E5: MFWD 50hp | F5: 1877 | G5: 500 | H5: 20 | I5: 2 | J5: =I5*Labor_Fuel_Interest!$C$11 -> 34.54 | K5: =IF(E5="MFWD 50hp",I5*$AB$5,IF(E5="MFWD 75hp",I5*$AB$6,I5*Equipment!$AB$7)) -> 11.822 | L5: 0 | M5: 1.7 | N5: =SUM(J5,K5,M5) -> 48.062 | O5: 0.68 | P5: 11.34 | Q5: =SUM(N5,O5,P5) -> 60.082 | T5: Tractor (40-59hp) RB | U5: MFWD 50hp | V5: 4 | W5: 27500 | X5: 600 | Y5: 8 | Z5: 2.57 | AA5: =Labor_Fuel_Interest!$C$11 -> 17.27 | AB5: =Z5*Labor_Fuel_Interest!$E$4 -> 5.911 | AC5: 0.85 | AD5: =SUM(AC5,AB5,AA5) -> 24.031 | AE5: 5.62 | AF5: =SUM(AE5,AD5) -> 29.651
B6: Auger | D6: 24" | E6: MFWD 50hp | F6: 1877 | G6: 80 | H6: 20 | I6: 2 | J6: =I6*Labor_Fuel_Interest!$C$11 -> 34.54 | K6: =IF(E6="MFWD 50hp",I6*$AB$5,IF(E6="MFWD 75hp",I6*$AB$6,I6*Equipment!$AB$7)) -> 11.822 | L6: 1.99 | M6: 1.7 | N6: 48.062 | O6: 4.13 | P6: 11.34 | Q6: 63.532 | T6: Tractor (60-89hp) RB | U6: MFWD 75hp | V6: 8 | W6: 42000 | X6: 600 | Y6: 8 | Z6: 3.87 | AA6: =Labor_Fuel_Interest!$C$11 -> 17.27 | AB6: =Z6*Labor_Fuel_Interest!$E$4 -> 8.901 | AC6: 1.3 | AD6: =SUM(AC6,AB6,AA6) -> 27.471 | AE6: 8.58 | AF6: =SUM(AE6,AD6) -> 36.051
B7: Bd Shaper (BLue B.) | D7: Bed 8' ctr | E7: MFWD 50hp | F7: 2740 | G7: 40 | H7: 16 | I7: 0.808 | J7: =I7*Labor_Fuel_Interest!$C$11 -> 13.95416 | K7: =IF(E7="MFWD 50hp",I7*$AB$5,IF(E7="MFWD 75hp",I7*$AB$6,I7*Equipment!$AB$7)) -> 4.776088 | L7: 1.66 | M7: =+AC5*I7 -> 0.6868 | N7: =SUM(J7,K7,L7,M7) -> 21.077048 | O7: 4.71 | P7: =+AC5*I7 -> 0.6868 | Q7: 26.473848 | T7: Utility Vehicle | U7: 4*4 | V7: 11 | W7: 12485 | X7: 200 | Y7: 13 | Z7: 0.6 | AA7: =Labor_Fuel_Interest!$C$11 -> 17.27 | AB7: =Z7*Labor_Fuel_Interest!$E$5 -> 1.32 | AC7: 0.96 | AD7: =SUM(AC7,AB7,AA7) -> 19.55 | AE7: 6.49 | AF7: =SUM(AE7,AD7) -> 26.04
B8: Blade-Scraper | D8: 6-7' | E8: MFWD 50hp | F8: 1583 | G8: 200 | H8: 20 | I8: 2.5 | J8: =I8*Labor_Fuel_Interest!$C$11 -> 43.175 | K8: =IF(E8="MFWD 50hp",I8*$AB$5,IF(E8="MFWD 75hp",I8*$AB$6,I8*Equipment!$AB$7)) -> 14.7775 | L8: 1.87 | M8: 2.13 | N8: 60.0825 | O8: 1.71 | P8: 14.17 | Q8: 75.9625
B9: Brush Blade | D9: 7ft | E9: MFWD 50hp | F9: 1250 | G9: 50 | H9: 30 | I9: 0.5 | J9: =I9*Labor_Fuel_Interest!$C$11 -> 8.635 | K9: =IF(E9="MFWD 50hp",I9*$AB$5,IF(E9="MFWD 75hp",I9*$AB$6,I9*Equipment!$AB$7)) -> 2.9555 | L9: 0 | M9: 0.39 | N9: 11.9805 | O9: 0.94 | P9: 2.62 | Q9: 15.5405
B10: BS, L, T, Fung S Berry | D10: 6ft ctr | E10: MFWD 75hp | F10: 6290 | G10: 54 | H10: 16 | I10: 1.078 | J10: =I10*Labor_Fuel_Interest!$C$11 -> 18.61706 | K10: =IF(E10="MFWD 50hp",I10*$AB$5,IF(E10="MFWD 75hp",I10*$AB$6,I10*Equipment!$AB$7)) -> 9.595278 | L10: 3.76 | M10: 1.02 | N10: 29.232338 | O10: 12.06 | P10: 6.8 | Q10: 48.092338
B11: Chain Harrow | D11: 6ft | E11: 4*4 | F11: 430 | G11: 100 | H11: 1 | I11: 0.343 | J11: =I11*Labor_Fuel_Interest!$C$11 -> 5.92361 | K11: =IF(E11="MFWD 50hp",I11*$AB$5,IF(E11="MFWD 75hp",I11*$AB$6,I11*Equipment!$AB$7)) -> 0.45276 | L11: 0.01 | M11: 0.33 | N11: 6.70637 | O11: 1.55 | P11: 2.23 | Q11: 10.48637
B12: Chisel Plow | D12: 8ft | E12: MFWD 75hp | F12: 7463 | G12: 150 | H12: 12 | I12: 0.22 | J12: =I12*Labor_Fuel_Interest!$C$11 -> 3.7994 | K12: =IF(E12="MFWD 50hp",I12*$AB$5,IF(E12="MFWD 75hp",I12*$AB$6,I12*Equipment!$AB$7)) -> 1.95822 | L12: 0.59 | M12: 0.2 | N12: 5.95762 | O12: 1.15 | P12: 1.39 | Q12: 8.49762
B13: Chisel Plow | D13: 5ft | E13: MFWD 50hp | F13: 2800 | G13: 150 | H13: 12 | I13: 0.22 | J13: =I13*Labor_Fuel_Interest!$C$11 -> 3.7994 | K13: =IF(E13="MFWD 50hp",I13*$AB$5,IF(E13="MFWD 75hp",I13*$AB$6,I13*Equipment!$AB$7)) -> 1.30042 | L13: 0.22 | M13: 0.17 | N13: 5.26982 | O13: 0.43 | P13: 1.15 | Q13: 6.84982
B14: Culitipacker | D14: 12ft | E14: MFWD 75hp | F14: 5583 | G14: 3000 | H14: 12 | I14: 0.124 | J14: =I14*Labor_Fuel_Interest!$C$11 -> 2.14148 | K14: =IF(E14="MFWD 50hp",I14*$AB$5,IF(E14="MFWD 75hp",I14*$AB$6,I14*Equipment!$AB$7)) -> 1.103724 | L14: 0.16 | M14: 0.11 | N14: 3.355204 | O14: 0.25 | P14: 0.78 | Q14: 4.385204
B15: Cultivate | D15: 2-row | E15: MFWD 75hp | F15: 4160 | G15: 59 | H15: 27 | I15: 0.312 | J15: =I15*Labor_Fuel_Interest!$C$11 -> 5.38824 | K15: =IF(E15="MFWD 50hp",I15*$AB$5,IF(E15="MFWD 75hp",I15*$AB$6,I15*Equipment!$AB$7)) -> 2.777112 | L15: 0.32 | M15: 0.29 | N15: 8.455352 | O15: 1.69 | P15: 1.97 | Q15: 12.115352
B16: Cyclone Spin | D16: 825lb | E16: MFWD 75hp | F16: 899 | G16: 50 | H16: 8 | I16: 0.084 | J16: =I16*Labor_Fuel_Interest!$C$11 -> 1.45068 | K16: =IF(E16="MFWD 50hp",I16*$AB$5,IF(E16="MFWD 75hp",I16*$AB$6,I16*Equipment!$AB$7)) -> 0.747684 | L16: 0.05 | M16: 0.07 | N16: 2.268364 | O16: 0.22 | P16: 0.53 | Q16: 3.018364
B17: Disk Bed (Hipper) | D17: 1-row | E17: MFWD 50hp | F17: 3167 | G17: 160 | H17: 10 | I17: 0.75 | J17: =I17*Labor_Fuel_Interest!$C$11 -> 12.9525 | K17: =IF(E17="MFWD 50hp",I17*$AB$5,IF(E17="MFWD 75hp",I17*$AB$6,I17*Equipment!$AB$7)) -> 4.43325 | L17: 0.44 | M17: 0.64 | N17: 18.02575 | O17: 1.9 | P17: 4.25 | Q17: 24.17575
B18: Disk Bed (Hipper) | D18: 2-row | E18: MFWD 75hp | F18: 3785 | G18: 160 | H18: 10 | I18: 0.284 | J18: =I18*Labor_Fuel_Interest!$C$11 -> 4.90468 | K18: =IF(E18="MFWD 50hp",I18*$AB$5,IF(E18="MFWD 75hp",I18*$AB$6,I18*Equipment!$AB$7)) -> 2.527884 | L18: 0.2 | M18: 0.26 | N18: 7.692564 | O18: 0.86 | P18: 1.79 | Q18: 10.342564
B19: Disk Harrow | D19: 6ft | E19: MFWD 50hp | F19: 2224 | G19: 180 | H19: 10 | I19: 0.33 | J19: =I19*Labor_Fuel_Interest!$C$11 -> 5.6991 | K19: =IF(E19="MFWD 50hp",I19*$AB$5,IF(E19="MFWD 75hp",I19*$AB$6,I19*Equipment!$AB$7)) -> 1.95063 | L19: 0.2 | M19: =+AC5*I19 -> 0.2805 | N19: =SUM(J19,K19,L19,M19) -> 8.13023 | O19: 0.47 | P19: =+AE5*I19 -> 1.8546 | Q19: =SUM(N19,O19,P19) -> 10.45483
B20: Disk Harrow | D20: 10ft | E20: MFWD 75hp | F20: 7889 | G20: 180 | H20: 10 | I20: 0.198 | J20: =I20*Labor_Fuel_Interest!$C$11 -> 3.41946 | K20: =IF(E20="MFWD 50hp",I20*$AB$5,IF(E20="MFWD 75hp",I20*$AB$6,I20*Equipment!$AB$7)) -> 1.762398 | L20: 0.43 | M20: 0.18 | N20: 5.361858 | O20: 1.01 | P20: 1.25 | Q20: 7.621858
B21: Fert Appl (Liquid) | D21: 4r-6ft | E21: MFWD 50hp | F21: 15003 | G21: 150 | H21: 8 | I21: 1.309 | J21: =I21*Labor_Fuel_Interest!$C$11 -> 22.60643 | K21: =IF(E21="MFWD 50hp",I21*$AB$5,IF(E21="MFWD 75hp",I21*$AB$6,I21*Equipment!$AB$7)) -> 7.737499 | L21: 13.09 | M21: 1.03 | N21: 31.373929 | O21: 16.31 | P21: 6.88 | Q21: 54.563929
B22: Fert Spreader (Pull Type) | D22: 10ft | E22: MFWD 50hp | F22: 4540 | G22: 12 | H22: 10 | I22: 0.235 | J22: =I22*Labor_Fuel_Interest!$C$11 -> 4.05845 | K22: =IF(E22="MFWD 50hp",I22*$AB$5,IF(E22="MFWD 75hp",I22*$AB$6,I22*Equipment!$AB$7)) -> 1.389085 | L22: 2.67 | M22: =+AC5*I22 -> 0.19975 | N22: 5.647285 | O22: 10.49 | P22: =+AE5*I22 -> 1.3207 | Q22: 17.457985
B23: Front End Loader | D23: .5yd | E23: MFWD 50hp | F23: 5822 | G23: 100 | H23: 10 | I23: 0.6 | J23: =I23*Labor_Fuel_Interest!$C$11 -> 10.362 | K23: =IF(E23="MFWD 50hp",I23*$AB$5,IF(E23="MFWD 75hp",I23*$AB$6,I23*Equipment!$AB$7)) -> 3.5466 | L23: 1.04 | M23: =+AC5*I23 -> 0.51 | N23: =SUM(J23,K23,L23,M23) -> 15.4586 | O23: 4.6 | P23: =+AE5*I23 -> 3.372 | Q23: =SUM(N23,O23,P23) -> 23.4306
B24: Grain drill | D24: 6 ft | E24: MFWD 50hp | F24: =+(10500+11129)/2 -> 10814.5 | G24: 150 | H24: 10 | I24: 0.39286 | J24: =+I24*Labor_Fuel_Interest!C11 -> 6.7846922 | K24: =IF(E24="MFWD 50hp",I24*$AB$5,IF(E24="MFWD 75hp",I24*$AB$6,I24*Equipment!$AB$7)) -> 2.32219546 | L24: 1.95 | M24: =+AC5*I24 -> 0.333931 | N24: =SUM(J24,K24,L24,M24) -> 11.39081866 | O24: 3.47 | P24: =+AE5*I24 -> 2.2078732 | Q24: =+SUM(N24,O24,P24) -> 17.06869186 | R24: https://www.marketbook.ca/listings/farm-equipment/for-sale/list/category/1122/planting-equipment-grain-drills/manufacturer/land-pride, https://www.auctiontime.com/listings/farm-equipment/auction-results/list/category/1122/planting-equipment-grain-drills
B25: Harvester Pecan | D25: 61" | E25: MFWD 50hp | F25: 19632 | G25: 100 | H25: 15 | I25: 0.5 | J25: =I25*Labor_Fuel_Interest!$C$11 -> 8.635 | K25: =IF(E25="MFWD 50hp",I25*$AB$5,IF(E25="MFWD 75hp",I25*$AB$6,I25*Equipment!$AB$7)) -> 2.9555 | L25: 4.91 | M25: 0.42 | N25: 12.0105 | O25: 10.04 | P25: 2.83 | Q25: 24.8805
B26: Mulch Lifter | D26: 1 row | E26: MFWD 75hp | F26: 1900 | G26: 29 | H26: 30 | I26: 0.589 | J26: =I26*Labor_Fuel_Interest!$C$11 -> 10.17203 | K26: =IF(E26="MFWD 50hp",I26*$AB$5,IF(E26="MFWD 75hp",I26*$AB$6,I26*Equipment!$AB$7)) -> 5.242689 | L26: 0.12 | M26: 0.55 | N26: 15.964719 | O26: 2.77 | P26: 3.71 | Q26: 22.444719
B27: Planter/Transplanter | D27: 1row | E27: MFWD 75hp | F27: 2380 | G27: 31 | H27: 19 | I27: 1.586 | J27: =I27*Labor_Fuel_Interest!$C$11 -> 27.39022 | K27: =IF(E27="MFWD 50hp",I27*$AB$5,IF(E27="MFWD 75hp",I27*$AB$6,I27*Equipment!$AB$7)) -> 14.116986 | L27: 0.12 | M27: 1.5 | N27: 43.007206 | O27: 10.76 | P27: 10 | Q27: 63.767206
B28: Rotary Cutter | D28: 6ft | E28: MFWD 50hp | F28: 3484 | G28: 185 | H28: 10 | I28: 0.572 | J28: =I28*Labor_Fuel_Interest!$C$11 -> 9.87844 | K28: =IF(E28="MFWD 50hp",I28*$AB$5,IF(E28="MFWD 75hp",I28*$AB$6,I28*Equipment!$AB$7)) -> 3.381092 | L28: 1.61 | M28: 0.45 | N28: 13.709532 | O28: 1.26 | P28: 3.01 | Q28: 17.979532
B29: Rotary Cutter | D29: 7ft | E29: MFWD 50hp | F29: 4690 | G29: 185 | H29: 10 | I29: 0.169 | J29: =I29*Labor_Fuel_Interest!$C$11 -> 2.91863 | K29: =IF(E29="MFWD 50hp",I29*$AB$5,IF(E29="MFWD 75hp",I29*$AB$6,I29*Equipment!$AB$7)) -> 0.998959 | L29: 0.64 | M29: =+I29*AC6 -> 0.2197 | N29: =SUM(J29,K29,M29) -> 4.137289 | O29: 0.45 | P29: =+I29*AE6 -> 1.45002 | Q29: =SUM(N29,O29,P29) -> 6.037309
B30: Rotary Tiller | D30: 5ft | E30: MFWD 50hp | F30: 2130 | G30: 49 | H30: 18 | I30: 0.97 | J30: =I30*Labor_Fuel_Interest!$C$11 -> 16.7519 | K30: =IF(E30="MFWD 50hp",I30*$AB$5,IF(E30="MFWD 75hp",I30*$AB$6,I30*Equipment!$AB$7)) -> 5.73367 | L30: 1.88 | M30: =+I30*AC5 -> 0.8245 | N30: =SUM(J30,K30,L30,M30) -> 25.19007 | O30: 2.86 | P30: =+I30*AE5 -> 5.4514 | Q30: 33.50147
B31: Pecan Shaker PTO | D31: up to 38'' | E31: MFWD 50hp | F31: 9232 | G31: 50 | H31: 15 | I31: 0.5 | J31: =I31*Labor_Fuel_Interest!$C$11 -> 8.635 | K31: =IF(E31="MFWD 50hp",I31*$AB$5,IF(E31="MFWD 75hp",I31*$AB$6,I31*Equipment!$AB$7)) -> 2.9555 | L31: 3.1 | M31: 0.42 | N31: 12.0105 | O31: 9.52 | P31: 2.83 | Q31: 24.3605
B32: Side Dresser | D32: 1r 3ft | E32: MFWD 50hp | F32: 3860 | G32: 42 | H32: 10 | I32: 0.846 | J32: =I32*Labor_Fuel_Interest!$C$11 -> 14.61042 | K32: =IF(E32="MFWD 50hp",I32*$AB$5,IF(E32="MFWD 75hp",I32*$AB$6,I32*Equipment!$AB$7)) -> 5.000706 | L32: 2.33 | M32: =+I32*AC6 -> 1.0998 | N32: =SUM(J32,K32,L32,M32) -> 23.040926 | O32: 9.14 | P32: =+I32*AE6 -> 7.25868 | Q32: =SUM(N32,O32,P32) -> 39.439606
B33: Spray (Broadcast) | D33: 27' | E33: MFWD 50hp | F33: 5022 | G33: 200 | H33: 8 | I33: 0.062 | J33: =I33*Labor_Fuel_Interest!$C$11 -> 1.07074 | K33: =IF(E33="MFWD 50hp",I33*$AB$5,IF(E33="MFWD 75hp",I33*$AB$6,I33*Equipment!$AB$7)) -> 0.366482 | L33: 0.14 | M33: 0.04 | N33: 1.477222 | O33: 0.19 | P33: 0.27 | Q33: 1.937222
B34: Sprayer (Band) | D34: 12' | E34: MFWD 50hp | F34: 597 | G34: 200 | H34: 5 | I34: 0.352 | J34: =I34*Labor_Fuel_Interest!$C$11 -> 6.07904 | K34: =IF(E34="MFWD 50hp",I34*$AB$5,IF(E34="MFWD 75hp",I34*$AB$6,I34*Equipment!$AB$7)) -> 2.080672 | L34: 0.04 | M34: 0.27 | N34: 8.429712 | O34: 0.24 | P34: 1.85 | Q34: 10.519712
B35: Sprayer (BC & Wand) | D35: 12ft | E35: 4*4 | F35: 597 | G35: 200 | H35: 5 | I35: 0.5 | J35: =I35*Labor_Fuel_Interest!$C$11 -> 8.635 | K35: =IF(E35="MFWD 50hp",I35*$AB$5,IF(E35="MFWD 75hp",I35*$AB$6,I35*Equipment!$AB$7)) -> 0.66 | L35: 0.05 | M35: 0.48 | N35: 9.775 | O35: 0.34 | P35: 3.24 | Q35: 13.355
B36: Sprayer (BC & Wand) | D36: 4ft | E36: 4*4 | F36: 597 | G36: 200 | H36: 5 | I36: 0.25 | J36: =I36*Labor_Fuel_Interest!$C$11 -> 4.3175 | K36: =IF(E36="MFWD 50hp",I36*$AB$5,IF(E36="MFWD 75hp",I36*$AB$6,I36*Equipment!$AB$7)) -> 0.33 | L36: 0.02 | M36: 0.24 | N36: 4.8875 | O36: 0.17 | P36: 1.62 | Q36: 6.6775
B37: Sprayer (Broadcast) | D37: 12ft | E37: 4*4 | F37: 597 | G37: 200 | H37: 5 | I37: 0.5 | J37: =I37*Labor_Fuel_Interest!$C$11 -> 8.635 | K37: =IF(E37="MFWD 50hp",I37*$AB$5,IF(E37="MFWD 75hp",I37*$AB$6,I37*Equipment!$AB$7)) -> 0.66 | L37: 0.05 | M37: 0.48 | N37: 9.775 | O37: 0.34 | P37: 3.24 | Q37: 13.355
B38: Sprayer - Utility | D38: 4ft | E38: 4*4 | F38: 597 | G38: 200 | H38: 5 | I38: 0.25 | J38: =I38*Labor_Fuel_Interest!$C$11 -> 4.3175 | K38: =IF(E38="MFWD 50hp",I38*$AB$5,IF(E38="MFWD 75hp",I38*$AB$6,I38*Equipment!$AB$7)) -> 0.33 | L38: 0.02 | M38: =+I38*AC7 -> 0.24 | N38: =SUM(J38,K38,M38) -> 4.8875 | O38: 0.17 | P38: =+AE7*I38 -> 1.6225 | Q38: =SUM(N38,O38,P38) -> 6.68
B39: Sprayer A-B Orchard | D39: 16' 300gal | E39: MFWD 50hp | F39: 14636 | G39: 200 | H39: 16 | I39: 0.286 | J39: =I39*Labor_Fuel_Interest!$C$11 -> 4.93922 | K39: =IF(E39="MFWD 50hp",I39*$AB$5,IF(E39="MFWD 75hp",I39*$AB$6,I39*Equipment!$AB$7)) -> 1.690546 | L39: 1.04 | M39: 0.22 | N39: 6.849766 | O39: 2.04 | P39: 1.5 | Q39: 10.389766
B40: Sprayer Air Blast | D40: 16' 100gal | E40: MFWD 75hp | F40: 7376 | G40: 12 | H40: 16 | I40: 0.245 | J40: =I40*Labor_Fuel_Interest!$C$11 -> 4.23115 | K40: =IF(E40="MFWD 50hp",I40*$AB$5,IF(E40="MFWD 75hp",I40*$AB$6,I40*Equipment!$AB$7)) -> 2.180745 | L40: 7.54 | M40: 0.23 | N40: 6.641895 | O40: 14.71 | P40: 1.54 | Q40: 22.891895
B41: Sprayer - Pull Type | D41: 12ft | E41: 4*4 | F41: 640 | G41: 1 | H41: 1 | I41: 0.5 | J41: =I41*Labor_Fuel_Interest!$C$11 -> 8.635 | K41: =IF(E41="MFWD 50hp",I41*$AB$5,IF(E41="MFWD 75hp",I41*$AB$6,I41*Equipment!$AB$7)) -> 0.66 | L41: 3.2 | M41: 0.48 | N41: 9.775 | O41: 337.6 | P41: 3.24 | Q41: 350.615
B42: Sub-Soiler | D42: 1 shank | E42: MFWD 75hp | F42: 558 | G42: 54 | H42: 23 | I42: 1.078 | J42: =I42*Labor_Fuel_Interest!$C$11 -> 18.61706 | K42: =IF(E42="MFWD 50hp",I42*$AB$5,IF(E42="MFWD 75hp",I42*$AB$6,I42*Equipment!$AB$7)) -> 9.595278 | L42: 0.33 | M42: 1.02 | N42: 29.232338 | O42: 0.91 | P42: 6.8 | Q42: 36.942338
B43: Sub-Soiler | D43: 2 shank | E43: MFWD 50hp | F43: 1870 | G43: 20 | H43: 23 | I43: 0.404 | J43: =I43*AA5 -> 6.97708 | K43: =IF(E43="MFWD 50hp",I43*$AB$5,IF(E43="MFWD 75hp",I43*$AB$6,I43*Equipment!$AB$7)) -> 2.388044 | L43: 1.13 | M43: =+I43*AC5 -> 0.3434 | N43: =SUM(J43,K43,L43,M43) -> 10.838524 | O43: 2.67 | P43: =+I43*AE5 -> 2.27048 | Q43: =SUM(N43,O43,P43) -> 15.779004
B44: Take up Reel (Mulch) | D44: 1 row | E44: MFWD 75hp | F44: 995 | G44: 42 | H44: 10 | I44: 0.588 | J44: =I44*Labor_Fuel_Interest!$C$11 -> 10.15476 | K44: =IF(E44="MFWD 50hp",I44*$AB$5,IF(E44="MFWD 75hp",I44*$AB$6,I44*Equipment!$AB$7)) -> 5.233788 | L44: 0.41 | M44: 0.55 | N44: 15.938548 | O44: 1.79 | P44: 3.71 | Q44: 21.438548
B45: Trailer BB Plants | D45: 10ft | E45: MFWD 50hp | F45: 1185 | G45: 200 | H45: 15 | I45: 2 | J45: =I45*Labor_Fuel_Interest!$C$11 -> 34.54 | K45: =IF(E45="MFWD 50hp",I45*$AB$5,IF(E45="MFWD 75hp",I45*$AB$6,I45*Equipment!$AB$7)) -> 11.822 | L45: 0.31 | M45: =+I45*AC5 -> 1.7 | N45: =SUM(J45,K45,L45,M45) -> 48.372 | O45: 1.18 | P45: =+I45*AE5 -> 11.24 | Q45: 60.792
B46: Trailer Fruit 4'*6' | D46: trip | E46: 4*4 | F46: 500 | G46: 200 | H46: 15 | I46: 1 | J46: =I46*Labor_Fuel_Interest!$C$11 -> 17.27 | K46: =IF(E46="MFWD 50hp",I46*$AB$5,IF(E46="MFWD 75hp",I46*$AB$6,I46*Equipment!$AB$7)) -> 1.32 | L46: 0.13 | M46: 0.96 | N46: 19.55 | O46: 0.25 | P46: 6.49 | Q46: 26.29
B47: Trailer Utility | D47: 10ft | E47: MFWD 50hp | F47: 1185 | G47: 200 | H47: 15 | I47: 0.6 | J47: =I47*Labor_Fuel_Interest!$C$11 -> 10.362 | K47: =IF(E47="MFWD 50hp",I47*$AB$5,IF(E47="MFWD 75hp",I47*$AB$6,I47*Equipment!$AB$7)) -> 3.5466 | L47: 0.09 | M47: =+I47*AC5 -> 0.51 | N47: =SUM(J47,K47,L47,M47) -> 14.5086 | O47: 0.31 | P47: =+I47*AE5 -> 3.372 | Q47: 18.1906
B48: Trailer Utility Limb | D48: 10ft | E48: MFWD 75hp | F48: 1095 | G48: 200 | H48: 15 | I48: 4 | J48: =I48*Labor_Fuel_Interest!$C$11 -> 69.08 | K48: =IF(E48="MFWD 50hp",I48*$AB$5,IF(E48="MFWD 75hp",I48*$AB$6,I48*Equipment!$AB$7)) -> 35.604 | L48: 0.58 | M48: 3.79 | N48: 108.474 | O48: 2.19 | P48: 25.23 | Q48: 135.894
B49: Trailer Water | D49: 10ft | E49: MFWD 50hp | F49: 1691 | G49: 150 | H49: 10 | I49: 0.6 | J49: =I49*Labor_Fuel_Interest!$C$11 -> 10.362 | K49: =IF(E49="MFWD 50hp",I49*$AB$5,IF(E49="MFWD 75hp",I49*$AB$6,I49*Equipment!$AB$7)) -> 3.5466 | L49: 0.27 | M49: 0.4 | N49: 14.3086 | O49: 0.86 | P49: 2.65 | Q49: 17.8186
B50: Wagon (dump) Pecan | D50: 12ft | E50: MFWD 50hp | F50: 10000 | G50: 50 | H50: 15 | I50: 0.333 | J50: =I50*Labor_Fuel_Interest!$C$11 -> 5.75091 | K50: =IF(E50="MFWD 50hp",I50*$AB$5,IF(E50="MFWD 75hp",I50*$AB$6,I50*Equipment!$AB$7)) -> 1.968363 | L50: 3.72 | M50: 0.28 | N50: 7.999273 | O50: 6.8 | P50: 1.88 | Q50: 16.679273

Sheet Chemical & Fertilizer Costs (hidden)
B4: Chemical Costs
B5: Type | D5: Average Price | E5: Purchase Unit | F5: Conversion | G5: Application unit amount | H5: Average Price per application unit | I5: Label Rate Range
B6: Serenade ASO | D6: =AVERAGE(K32:K35) -> 99.5375 | E6: 2.5 gal. | F6: 1 gal = 4 qt | G6: 10 | H6: =D6/G6 -> 9.95375 | I6: 2-4 qt/acre
B7: Entrust SC | D7: =AVERAGE(K37:K39) -> 452.3666667 | E7: 1 quart | F7: 1 qt = 32oz | G7: 32 | H7: 14.13645833 | I7: 4-6 floz/acre
B8: Pristine | D8: =AVERAGE(K41:K44) -> 381.5225 | E8: 120 ounce | F8: 120 oz = 120 oz | G8: 120 | H8: 3.179354167 | I8: 18.5-23 oz/acre
B9: Switch 62.5 WG | D9: =AVERAGE(K46:K49) -> 155.25 | E9: 28 ounce | F9: 28 oz = 28 oz | G9: 28 | H9: 5.544642857 | I9: 11-14 oz/acre
B10: Assail 30 SG | D10: =AVERAGE(K51:K54) -> 285.825 | E10: 4 lbs | F10: 1 lbs = 16 oz | G10: 64 | H10: 4.466015625 | I10: 4.5-5.3 oz/acre
B15: Fertilizer Costs
B17: Type | D17: Unit | E17: Cost | F17: $/lb
B18: All purpose 10 - 10 - 10 | D18: 50lb Bag | E18: 10 | F18: =+E18/50 -> 0.2
B19: All purpose 10 - 10 - 10 | D19: 40lb Bag | E19: 9.49 | F19: =+E19/40 -> 0.23725
B20: All purpose 10 - 10 - 10 | D20: 50lb Bag | E20: 9.5 | F20: =+E20/50 -> 0.19
B21: All purpose 10 - 10 - 10 | D21: 50lb bag | E21: 11.95 | F21: =+E21/50 -> 0.239
B22: Average price (10-10-10) | D22: 50lb Bag | E22: 12.75 | F22: =+AVERAGE(F18:F21) -> 0.2165625
B23: Sulfur | D23: 50lb Bag | E23: 18 | F23: =+E23/50 -> 0.36
B24: Amonium Sulfate | D24: 50lb bag | E24: =+(18.95+18.5)/2 -> 18.725 | F24: =+E24/50 -> 0.3745
B28: Chemical Costs
B30: Insecticide/Fungicide | D30: Unit | E30: Label Rate Range | F30: Application rate (qt/acre) | G30: Rate used (highest labeled rate) | H30: Spray volume | I30: Trail mix rate | J30: Amount | K30: Price | L30: Notes
B31: Serenade ASO | D31: 2.5 gallon | E31: 2-4 qt/acre | F31: =(2+4)/2 -> 3 | G31: 4 qt/acre | H31: 50 gal/acre | I31: 20 ml/L | J31: 1
B32: Input Supplier A | K32: 105
B33: Input Supplier B | K33: 100
B34: Input Supplier C | K34: 100
B35: Input Supplier D | K35: 93.15
B36: Entrust SC | D36: 1 quart | E36: 4-6 fl oz/acre | F36: =(4+6)/2 -> 5 | G36: 6 fl oz/acre | H36: 50 gal/acre | I36: .9 ml/L | J36: 1
B37: Input Supplier A | K37: 445 | L37: Called to check price
B38: Input Supplier B | K38: 475
B39: Input Supplier D | K39: 437.1
B40: Pristine | D40: 120 ounce | E40: 18.5-23 oz/acre | F40: =(18.5+23)/2 -> 20.75 | G40: 23 oz/acre | H40: 50 gal/acre | I40: 3.4 g/L | J40: 1
B41: Input Supplier A | K41: 408.99
B42: Input Supplier B | K42: 350
B43: Input Supplier C | K43: 387
B44: Input Supplier D | K44: 380.1 | L44: 7.5lbs container size
B45: Switch 62.5 WG | D45: 28 ounce | E45: 11-14 oz/acre | F45: =(11+14)/2 -> 12.5 | G45: 14 oz/acre | H45: 50 gal/acre | I45: 2.1 g/L | J45: 1
B46: Input Supplier A | K46: 153
B47: Input Supplier B | K47: 146
B48: Input Supplier C | K48: 155
B49: Input Supplier D | K49: 167
B50: Assail 30SG | D50: 4 lbs | E50: 4.5-5.3 oz/acre | F50: =(4.5+5.3)/2 -> 4.9 | G50: 5.3 oz/acre | H50: 50 gal/acre | I50: .8 g/L | J50: 1
B51: Input Supplier A | K51: 325
B52: Input Supplier B | K52: 280
B53: Input Supplier C | K53: 291
B54: Input Supplier D | K54: 247.3

Sheet Plant Costs (hidden)
B2: Plant Costs
B4: Variety | D4: Unit | E4: Type | F4: Size | G4: Amount | H4: Price | I4: Notes
B5: Premier Rabbiteye | D5: each | E5: Rabbiteye | G5: 1
B6: Nursery B | H6: 4.5 | I6: 2 year old plant (price when you buy 100 plants)
B7: Nursery A | H7: 3.55 | I7: 1 liter container size plants, 12''-18'' branch
B8: Nursery D | H8: 13 | I8: 1 gallon container size plants, also availible in 3 gallon containers
B9: Nursery E | H9: 6.85 | I9: 1 gallon container size plants, also availible in 3 gallon containers
B10: Nursery F | H10: 6.5 | I10: Plants are 2''-3'' in size Bare root
B11: Titan Rabbiteye | D11: each | E11: Rabbiteye | G11: 1
B12: Nursery F | H12: 6.5 | I12: Plants are 2''-3'' in size Bare root
B13: Ochlockonee Rabbiteye | D13: each | E13: Rabbiteye | G13: 1
B14: Nursery F | H14: 6.5 | I14: Plants are 2''-3'' in size Bare root
F17: Type | H17: Two year old plant
F18: Rabbiteye | H18: =AVERAGE(H6) -> 4.5

Sheet Grass seed (hidden)
C5: Grass seed | D5: Unit | E5: Price | F5: website
C6: Source A | D6: lb | E6: 2.35 | F6: https://www.uky.edu/ccd/sites/www.uky.edu.ccd/files/2019blueberrybudget_wholesale_retail.pdf
C7: Source B | D7: lb | E7: =134.99/50 -> 2.6998 | F7: https://www.outsidepride.com/seed/grass-seed/fescue-grass-seed/creeping-red-fescue-grass-seed.html
C8: Source C | D8: lb | E8: =144.95/50 -> 2.899 | F8: https://seedbarn.com/products/seedranch-creeping-red-fescue-grass-seed-50-lbs?variant=12532386529380&currency=USD&utm_medium=product_sync&utm_source=google&utm_content=sag_organic&utm_campaign=sag_organic
C9: Source D | D9: lb | E9: =121.53/50 -> 2.4306 | F9: https://www.idealtruevalue.com/store/p/147994-50-LB-Creeping-Red-Fescue-Grass-Seed-Bulk-Bagged.aspx?feed=Froogle
C10: Average | E10: =+AVERAGE(E6:E9) -> 2.59485

Sheet Soil test (hidden)
B4: Soil test prpbe | C4: Unit | D4: Price | E4: website
B5: Input supplier A | C5: 1 | D5: 88.75 | E5: https://www.certifiedmtp.com/ams-40in-plated-one-piece-step-probe/?gclid=EAIaIQobChMIgpb10YnG6wIVmOSzCh0qpgfoEAQYAiABEgKMCvD_BwE
B6: Input supplier B | C6: 1 | D6: 82.25 | E6: https://www.forestry-suppliers.com/product_pages/products.php?mi=70091&itemnum=77636&redir=Y
B7: Input supplier C | D7: 102.9 | E7: https://www.grainger.com/product/4KMK3?gclid=EAIaIQobChMIyendv4fG6wIVBO21Ch3xOAd5EAQYECABEgKdwPD_BwE&cm_mmc=PPC:+Google+PLA&ef_id=EAIaIQobChMIyendv4fG6wIVBO21Ch3xOAd5EAQYECABEgKdwPD_BwE:G:s&s_kwcid=AL!2966!3!264955916096!!!g!438976780705!&gucid=N:N:PS:Paid:GGL:CSM-2295:KL09CE:20500731
B8: Input supplier D | D8: 109.73 | E8: https://www.zoro.com/soil-probes/c/8061/
B9: Average | C9: 1 | D9: =+AVERAGE(D5:D8) -> 95.9075
B11: Soil test | C11: Unit | D11: Price | E11: website
B12: UT Soil lab | C12: 1 | D12: 15 | E12: https://soillab.tennessee.edu/

Sheet Mulch cost (hidden)
B4: Mulch | C4: Unit | D4: Price | E4: Nursery
B5: Nursery A | C5: cu yard | D5: 23 | E5: Living Earth Knoxville
B6: Nursery B | C6: cu yard | D6: 24 | E6: Kellems Recycling
B7: Nursery C (sawdust) | C7: cu yard | D7: 12.5 | E7: http://ccetompkins.org/resources/mulch-topsoil-manure-sources-2018
B8: Nursery D | C8: cu yard | D8: 37.5 | E8: Mulch and More (865) 932-7550
B9: Nursery E | C9: cu yard | D9: 39.5 | E9: Southern Nurseries (Website Price) Nashville & Hendersonville, TN
B10: Average (lowest prices, excluding outliers) | C10: cu yard | D10: =+AVERAGE(D5:D7) -> 19.83333333
